Workbook

Sheet HomePage

Sheet Start Menu
B7: User name: | D7: =B34 -> Telmo Miguel Martins Ribeiro | J7: File name: | L7: =B35 -> Tyre4BuildIns Project | R7: Date: | T7: =B36 -> 2022-06-25
G11: Username
G12: Telmo Miguel Martins Ribeiro
G17: File name
G18: Tyre4BuildIns Project
G23: Date
G24: 2022-06-25
B34: =G12 -> Telmo Miguel Martins Ribeiro
B35: =G18 -> Tyre4BuildIns Project
B36: =G24 -> 2022-06-25

Sheet SA_Inp1
B7: User name: | D7: ='Start Menu'!D7:I7 -> Telmo Miguel Martins Ribeiro | J7: File name: | L7: ='Start Menu'!L7:Q7 -> Tyre4BuildIns Project | R7: Date: | T7: ='Start Menu'!T7:U7 -> 2022-06-25
I8: Solution A - Reference
D9: Generic input
C10: Color | D10: Dropdown list input | I10: BUILDING FEATURES
C11: Legend | D11: Input from database
D12: Output value
C14: Location
C15: Country | F15: =Calculation!CI13 -> 1 - Portugal [ENABLED] | J15: Others | M15: ←OR→ | N15: =Calculation!CI14 -> 2 - Other Locations [DISABLED]
C16: 1 - Portugal | F16: Municipality | H16: Coimbra | K16: HDD [˚C] | L16: =Calculation!GL10 -> 1312 | N16: Local | P16: Helsinki_FI | S16: HDD [˚C] | T16: =Calculation!GD37 -> 4854
F17: Altitude [m] | H17: 75 | K17: CDD [˚C] | L17: =Calculation!GL11 -> 500.2 | S17: CDD [˚C] | T17: =Calculation!GD38 -> 4
C19: Facades | N19: Climatization Systems
C20: Main facade (MF) | E20: Length [m] | G20: 15 | I20: Glazing Area [%] | K20: 12 | N20: CoP | P20: 3.5
C21: Back facade (BF) | G21: 15 | K21: 12 | N21: EER | P21: 3.5
C22: Left facade (LF) | G22: 10 | K22: 10
C23: Right facade (RF) | G23: 10 | K23: 10
C25: Floors | J25: Area of external walls | N25: Electricity Cost
C26: Number of floors | E26: 2 | J26: =(G20*(100-K20)*0.01+G21*(100-K21)*0.01+G22*(100-K22)*0.01+G23*(100-K23)*0.01)*E27*E26 -> 239.76 | L26: m2 | N26: Cost [€/kWh] | P26: 0.25
C27: Height of each floor [m] | E27: 2.7

Sheet SA_Inp2
B7: User name: | D7: ='Start Menu'!D7:I7 -> Telmo Miguel Martins Ribeiro | J7: File name: | L7: ='Start Menu'!L7:Q7 -> Tyre4BuildIns Project | R7: Date: | T7: ='Start Menu'!T7:U7 -> 2022-06-25
I8: Solution A - Reference
I10: WALL CONFIGURATION
C14: Reference Wall (A) | P14: Lightweight Steel Frame (LSF)
C15: Layer | D15: Material 1 | G15: λ | H15: R | I15: Material 2 | L15: λ | M15: R | N15: Thickness | P15: Stud Spacing [mm] | R15: 400
B16: interior | D16: (Thickness) [Brand] | G16: [W/(m·K)] | H16: [(m²·K)/W] | I16: (only for non homogeneous layers) | L16: [W/(m·K)] | M16: [(m²·K)/W] | N16: [mm] | P16: Steel Structure | R16: =Calculation!CC20 -> Steel C90/U93 (90 mm) [Pertecno]
C17: 1 | D17: Gypsum Board (12,5 mm) [Gyptec] | G17: =Calculation!CP14 -> 0.175 | H17: =Calculation!CS14 -> 0.07142857143 | I17: --- | L17: =Calculation!CY14 -> --- | M17: =Calculation!DB14 -> --- | N17: =Calculation!DE14 -> 12.5 | P17: Stud Thickness [mm] | R17: =Calculation!DM13*1000 -> 1.5
C18: 2 | D18: OSB (12 mm) [Kronospan] | G18: =Calculation!CP15 -> 0.13 | H18: =Calculation!CS15 -> 0.09230769231 | I18: --- | L18: =Calculation!CY15 -> --- | M18: =Calculation!DB15 -> --- | N18: =Calculation!DE15 -> 12 | P18: Stud Depth [mm] | R18: =Calculation!DM12*1000 -> 90
C19: 3 | D19: Mineral wool (90 mm) [Volcalis] | G19: =Calculation!CP16 -> 0.035 | H19: =Calculation!CS16 -> 2.571428571 | I19: Steel C90/U93 (90 mm) [Pertecno] | L19: =Calculation!CY16 -> 50 | M19: =Calculation!DB16 -> 0.0018 | N19: =Calculation!DE16 -> 90 | P19: Flange Length [mm] | R19: =Calculation!DM15*1000 -> 43
C20: 4 | D20: OSB (12 mm) [Kronospan] | G20: =Calculation!CP17 -> 0.13 | H20: =Calculation!CS17 -> 0.09230769231 | I20: --- | L20: =Calculation!CY17 -> --- | M20: =Calculation!DB17 -> --- | N20: =Calculation!DE17 -> 12
C21: 5 | D21: Mortar (10 mm) | G21: =Calculation!CP18 -> 1.8 | H21: =Calculation!CS18 -> 0.005555555556 | I21: --- | L21: =Calculation!CY18 -> --- | M21: =Calculation!DB18 -> --- | N21: =Calculation!DE18 -> 10 | P21: Thermal Break Strips
C22: 6 | D22: --- | G22: =Calculation!CP19 -> --- | H22: =Calculation!CS19 -> --- | I22: --- | L22: =Calculation!CY19 -> --- | M22: =Calculation!DB19 -> --- | N22: =Calculation!DE19 -> --- | P22: Width [mm]
C23: 7 | D23: --- | G23: =Calculation!CP20 -> --- | H23: =Calculation!CS20 -> --- | I23: --- | L23: =Calculation!CY20 -> --- | M23: =Calculation!DB20 -> --- | N23: =Calculation!DE20 -> ---
C24: 8 | D24: --- | G24: =Calculation!CP21 -> --- | H24: =Calculation!CS21 -> --- | I24: --- | L24: =Calculation!CY21 -> --- | M24: =Calculation!DB21 -> --- | N24: =Calculation!DE21 -> --- | P24: Sheathing Layers
C25: 9 | D25: --- | G25: =Calculation!CP22 -> --- | H25: =Calculation!CS22 -> --- | I25: --- | L25: =Calculation!CY22 -> --- | M25: =Calculation!DB22 -> --- | N25: =Calculation!DE22 -> --- | P25: Thickness [mm] | R25: 24.5
C26: 10 | D26: --- | G26: =Calculation!CP23 -> --- | H26: =Calculation!CS23 -> --- | I26: --- | L26: =Calculation!CY23 -> --- | M26: =Calculation!DB23 -> --- | N26: =Calculation!DE23 -> ---
B27: exterior | M27: Total | N27: =Calculation!DE24 -> 136.5

Sheet SB_Inp1
B7: User name: | D7: ='Start Menu'!D7:I7 -> Telmo Miguel Martins Ribeiro | J7: File name: | L7: ='Start Menu'!L7:Q7 -> Tyre4BuildIns Project | R7: Date: | T7: ='Start Menu'!T7:U7 -> 2022-06-25
I8: Solution B - Improved
I10: BUILDING FEATURES
C14: Location
C15: Country | F15: =Calculation!CI33 -> 1 - Portugal [ENABLED] | M15: ←OR→ | N15: =Calculation!CI34 -> 2 - Other Locations [DISABLED]
C16: 1 - Portugal | F16: Municipality | H16: Coimbra | K16: HDD [˚C] | L16: =Calculation!GN10 -> 1312 | N16: Local | P16: Stockholm_SE | S16: HDD [˚C] | T16: =Calculation!GG37 -> 4351
F17: Altitude [m] | H17: 75 | K17: CDD [˚C] | L17: =Calculation!GN11 -> 500.2 | S17: CDD [˚C] | T17: =Calculation!GG38 -> 3
C19: Facades | N19: Climatization Systems
C20: Main facade (MF) | E20: Length [m] | G20: 15 | I20: Glazing Area [%] | K20: 12 | N20: CoP | P20: 3.5
C21: Back facade (BF) | G21: 15 | K21: 12 | N21: EER | P21: 3.5
C22: Left facade (LF) | G22: 10 | K22: 10
C23: Right facade (RF) | G23: 10 | K23: 10
C25: Floors | J25: Area of external walls | N25: Electricity Cost
C26: Number of floors | E26: 2 | J26: =(G20*(100-K20)*0.01+G21*(100-K21)*0.01+G22*(100-K22)*0.01+G23*(100-K23)*0.01)*E27*E26 -> 239.76 | L26: m2 | N26: Cost [€/kWh] | P26: 0.25
C27: Height of each floor [m] | E27: 2.7

Sheet SB_Inp2
B7: User name: | D7: ='Start Menu'!D7:I7 -> Telmo Miguel Martins Ribeiro | J7: File name: | L7: ='Start Menu'!L7:Q7 -> Tyre4BuildIns Project | R7: Date: | T7: ='Start Menu'!T7:U7 -> 2022-06-25
I8: Solution B - Improved
I10: WALL CONFIGURATION
C14: Improved Wall (B) | P14: Lightweight Steel Frame (LSF)
C15: Layer | D15: Material 1 | G15: λ | H15: R | I15: Material 2 | L15: λ | M15: R | N15: Thickness | P15: Stud Spacing [mm] | R15: 400
B16: interior | D16: (Thickness) [Brand] | G16: [W/(m·K)] | H16: [(m²·K)/W] | I16: (only for non homogeneous layers) | L16: [W/(m·K)] | M16: [(m²·K)/W] | N16: [mm] | P16: Steel Structure | R16: =Calculation!CC40 -> Steel C90/U93 (90 mm) [Pertecno]
C17: 1 | D17: Gypsum Board (12,5 mm) [Gyptec] | G17: =Calculation!CP34 -> 0.175 | H17: =Calculation!CS34 -> 0.07142857143 | I17: --- | L17: =Calculation!CY34 -> --- | M17: =Calculation!DB34 -> --- | N17: =Calculation!DE34 -> 12.5 | P17: Stud Thickness [mm] | R17: =Calculation!DM58*1000 -> 1.5
C18: 2 | D18: OSB (12 mm) [Kronospan] | G18: =Calculation!CP35 -> 0.13 | H18: =Calculation!CS35 -> 0.09230769231 | I18: --- | L18: =Calculation!CY35 -> --- | M18: =Calculation!DB35 -> --- | N18: =Calculation!DE35 -> 12 | P18: Stud Depth [mm] | R18: =Calculation!DM57*1000 -> 90
C19: 3 | D19: Air Cavity (10 mm) [ISO 6946] | G19: =Calculation!CP36 -> --- | H19: =Calculation!CS36 -> 0.15 | I19: TB Strip XPS (10 mm) [IFoam] | L19: =Calculation!CY36 -> 0.035 | M19: =Calculation!DB36 -> 0.2857142857 | N19: =Calculation!DE36 -> 10 | P19: Flange Length [mm] | R19: =Calculation!DM60*1000 -> 43
C20: 4 | D20: Mineral wool (90 mm) [Volcalis] | G20: =Calculation!CP37 -> 0.035 | H20: =Calculation!CS37 -> 2.571428571 | I20: Steel C90/U93 (90 mm) [Pertecno] | L20: =Calculation!CY37 -> 50 | M20: =Calculation!DB37 -> 0.0018 | N20: =Calculation!DE37 -> 90
C21: 5 | D21: Air Cavity (10 mm) [ISO 6946] | G21: =Calculation!CP38 -> --- | H21: =Calculation!CS38 -> 0.15 | I21: TB Strip XPS (10 mm) [IFoam] | L21: =Calculation!CY38 -> 0.035 | M21: =Calculation!DB38 -> 0.2857142857 | N21: =Calculation!DE38 -> 10 | P21: Thermal Break Strips
C22: 6 | D22: OSB (12 mm) [Kronospan] | G22: =Calculation!CP39 -> 0.13 | H22: =Calculation!CS39 -> 0.09230769231 | I22: --- | L22: =Calculation!CY39 -> --- | M22: =Calculation!DB39 -> --- | N22: =Calculation!DE39 -> 12 | P22: Width [mm] | R22: 50
C23: 7 | D23: Mortar (10 mm) | G23: =Calculation!CP40 -> 1.8 | H23: =Calculation!CS40 -> 0.005555555556 | I23: --- | L23: =Calculation!CY40 -> --- | M23: =Calculation!DB40 -> --- | N23: =Calculation!DE40 -> 10
C24: 8 | D24: --- | G24: =Calculation!CP41 -> --- | H24: =Calculation!CS41 -> --- | I24: --- | L24: =Calculation!CY41 -> --- | M24: =Calculation!DB41 -> --- | N24: =Calculation!DE41 -> --- | P24: Sheathing Layers
C25: 9 | D25: --- | G25: =Calculation!CP42 -> --- | H25: =Calculation!CS42 -> --- | I25: --- | L25: =Calculation!CY42 -> --- | M25: =Calculation!DB42 -> --- | N25: =Calculation!DE42 -> --- | P25: Thickness [mm] | R25: 34.5
C26: 10 | D26: --- | G26: =Calculation!CP43 -> --- | H26: =Calculation!CS43 -> --- | I26: --- | L26: =Calculation!CY43 -> --- | M26: =Calculation!DB43 -> --- | N26: =Calculation!DE43 -> ---
B27: exterior | M27: Total | N27: =Calculation!DE44 -> 156.5

Sheet MCA_Inp
B7: User name: | D7: ='Start Menu'!D7:I7 -> Telmo Miguel Martins Ribeiro | J7: File name: | L7: ='Start Menu'!L7:Q7 -> Tyre4BuildIns Project | R7: Date: | T7: ='Start Menu'!T7:U7 -> 2022-06-25
I10: MULTICRITERIA ANALYSIS
C14: Weights' Definition (Calculation Modules)
C15: Final Energy Consumed | F15: 0.35 | G15: Sum.
C16: Environmental Impacts | F16: 0.15 | G16: =SUM(F15:F17) -> 1
C17: Acquisition Cost | F17: 0.5 | G17: =IF(G16=1,"OK!","KO!!!") -> OK!
C19: Weights' Definition (Environmental Indicators)
C20: Abiotic Resources Depletion Potential - Elements (ADPE) | J20: 0.14
C21: Abiotic Resources Depletion Potential - Fossil Resources (ADPF) | J21: 0.14 | K21: Sum.
C22: Acidification Potential (AP) | J22: 0.14 | K22: =SUM(J20:J26) -> 1
C23: Eutrophication Potential (EP) | J23: 0.14
C24: Photochemical Ozone Creation Potential (POCP) | J24: 0.14
C25: Global Warming Potential (GWP) | J25: 0.16 | K25: =IF(K22=1,"OK!","KO!!!") -> OK!
C26: Stratospheric Ozone Layer Depletion Potential (ODP) | J26: 0.14

Sheet Modules
B7: User name: | D7: ='Start Menu'!D7:I7 -> Telmo Miguel Martins Ribeiro | J7: File name: | L7: ='Start Menu'!L7:Q7 -> Tyre4BuildIns Project | R7: Date: | T7: ='Start Menu'!T7:U7 -> 2022-06-25

Sheet SA_UCalc
B7: User name: | D7: ='Start Menu'!D7:I7 -> Telmo Miguel Martins Ribeiro | J7: File name: | L7: ='Start Menu'!L7:Q7 -> Tyre4BuildIns Project | R7: Date: | T7: ='Start Menu'!T7:U7 -> 2022-06-25
I8: Solution A
C10: Element layers
C11: Layer | D11: d | E11: Material 1 | M11: Material 2
B12: Interior | D12: [mm] | E12: Description | I12: λ [W/(m·K)] | K12: R [(m²·K)/W] | M12: Description | Q12: λ [W/(m·K)] | S12: R [(m²·K)/W]
C13: 1 | D13: =Calculation!DM32 -> 12.5 | E13: =Calculation!CM14 -> Gypsum Board (12,5 mm) [Gyptec] | I13: =Calculation!DN32 -> 0.175 | K13: =Calculation!DR32 -> 0.07142857143 | M13: =Calculation!CV14 -> --- | Q13: =Calculation!DP32 -> --- | S13: =Calculation!DS32 -> ---
C14: 2 | D14: =Calculation!DM33 -> 12 | E14: =Calculation!CM15 -> OSB (12 mm) [Kronospan] | I14: =Calculation!DN33 -> 0.13 | K14: =Calculation!DR33 -> 0.09230769231 | M14: =Calculation!CV15 -> --- | Q14: =Calculation!DP33 -> --- | S14: =Calculation!DS33 -> ---
C15: 3 | D15: =Calculation!DM34 -> 90 | E15: =Calculation!CM16 -> Mineral wool (90 mm) [Volcalis] | I15: =Calculation!DN34 -> 0.035 | K15: =Calculation!DR34 -> 2.571428571 | M15: =Calculation!CV16 -> Steel C90/U93 (90 mm) [Pertecno] | Q15: =Calculation!DP34 -> 50 | S15: =Calculation!DS34 -> 0.0018
C16: 4 | D16: =Calculation!DM35 -> 12 | E16: =Calculation!CM17 -> OSB (12 mm) [Kronospan] | I16: =Calculation!DN35 -> 0.13 | K16: =Calculation!DR35 -> 0.09230769231 | M16: =Calculation!CV17 -> --- | Q16: =Calculation!DP35 -> --- | S16: =Calculation!DS35 -> ---
C17: 5 | D17: =Calculation!DM36 -> 10 | E17: =Calculation!CM18 -> Mortar (10 mm) | I17: =Calculation!DN36 -> 1.8 | K17: =Calculation!DR36 -> 0.005555555556 | M17: =Calculation!CV18 -> --- | Q17: =Calculation!DP36 -> --- | S17: =Calculation!DS36 -> ---
C18: 6 | D18: =Calculation!DM37 -> --- | E18: =Calculation!CM19 -> --- | I18: =Calculation!DN37 -> --- | K18: =Calculation!DR37 -> --- | M18: =Calculation!CV19 -> --- | Q18: =Calculation!DP37 -> --- | S18: =Calculation!DS37 -> ---
C19: 7 | D19: =Calculation!DM38 -> --- | E19: =Calculation!CM20 -> --- | I19: =Calculation!DN38 -> --- | K19: =Calculation!DR38 -> --- | M19: =Calculation!CV20 -> --- | Q19: =Calculation!DP38 -> --- | S19: =Calculation!DS38 -> ---
C20: 8 | D20: =Calculation!DM39 -> --- | E20: =Calculation!CM21 -> --- | I20: =Calculation!DN39 -> --- | K20: =Calculation!DR39 -> --- | M20: =Calculation!CV21 -> --- | Q20: =Calculation!DP39 -> --- | S20: =Calculation!DS39 -> ---
C21: 9 | D21: =Calculation!DM40 -> --- | E21: =Calculation!CM22 -> --- | I21: =Calculation!DN40 -> --- | K21: =Calculation!DR40 -> --- | M21: =Calculation!CV22 -> --- | Q21: =Calculation!DP40 -> --- | S21: =Calculation!DS40 -> ---
C22: 10 | D22: =Calculation!DM41 -> --- | E22: =Calculation!CM23 -> --- | I22: =Calculation!DN41 -> --- | K22: =Calculation!DR41 -> --- | M22: =Calculation!CV23 -> --- | Q22: =Calculation!DP41 -> --- | S22: =Calculation!DS41 -> ---
B23: Exterior
C24: Surface thermal resistances | H24: Method | I24: Parameter | K24: 1 - ISO 6946 | M24: 2 - Gorgolewski | O24: 3 - Gorgolewski | Q24: 4 - Gorgolewski | S24: 5 - ASHRAE
C25: Rsi | E25: Rse | H25: selection | K25: Combined Method | M25: Method 1 | O25: Method 2 | Q25: Method 3 | S25: Zone Method
C26: 0.13 | E26: 0.04 | H26: 1 | I26: R | J26: [(m2K)/W] | K26: =Calculation!DY13 -> 1.887022152 | M26: =Calculation!DY14 -> 1.525061247 | O26: =Calculation!DY15 -> 1.361677396 | Q26: =Calculation!DY16 -> 1.307568518 | S26: =Calculation!DY17 -> 1.455561577
C27: [(m²·K)/W] | E27: [(m²·K)/W] | I27: U | J27: [W/m2K] | K27: =1/K26 -> 0.5299354853 | M27: =1/M26 -> 0.6557113702 | O27: =1/O26 -> 0.734388338 | Q27: =1/Q26 -> 0.7647782781 | S27: =1/S26 -> 0.6870200587

Sheet SB_UCalc
B7: User name: | D7: ='Start Menu'!D7:I7 -> Telmo Miguel Martins Ribeiro | J7: File name: | L7: ='Start Menu'!L7:Q7 -> Tyre4BuildIns Project | R7: Date: | T7: ='Start Menu'!T7:U7 -> 2022-06-25
I8: Solution B
C10: Element layers
C11: Layer | D11: d | E11: Material 1 | M11: Material 2
B12: Interior | D12: [mm] | E12: Description | I12: λ [W/(m·K)] | K12: R [(m²·K)/W] | M12: Description | Q12: λ [W/(m·K)] | S12: R [(m²·K)/W]
C13: 1 | D13: =Calculation!DM77 -> 12.5 | E13: =Calculation!CM34 -> Gypsum Board (12,5 mm) [Gyptec] | I13: =Calculation!DN77 -> 0.175 | K13: =Calculation!DR77 -> 0.07142857143 | M13: =Calculation!CV34 -> --- | Q13: =Calculation!DP77 -> --- | S13: =Calculation!DS77 -> ---
C14: 2 | D14: =Calculation!DM78 -> 12 | E14: =Calculation!CM35 -> OSB (12 mm) [Kronospan] | I14: =Calculation!DN78 -> 0.13 | K14: =Calculation!DR78 -> 0.09230769231 | M14: =Calculation!CV35 -> --- | Q14: =Calculation!DP78 -> --- | S14: =Calculation!DS78 -> ---
C15: 3 | D15: =Calculation!DM79 -> 10 | E15: =Calculation!CM36 -> Air Cavity (10 mm) [ISO 6946] | I15: =Calculation!DN79 -> --- | K15: =Calculation!DR79 -> 0.15 | M15: =Calculation!CV36 -> TB Strip XPS (10 mm) [IFoam] | Q15: =Calculation!DP79 -> 0.035 | S15: =Calculation!DS79 -> 0.2857142857
C16: 4 | D16: =Calculation!DM80 -> 90 | E16: =Calculation!CM37 -> Mineral wool (90 mm) [Volcalis] | I16: =Calculation!DN80 -> 0.035 | K16: =Calculation!DR80 -> 2.571428571 | M16: =Calculation!CV37 -> Steel C90/U93 (90 mm) [Pertecno] | Q16: =Calculation!DP80 -> 50 | S16: =Calculation!DS80 -> 0.0018
C17: 5 | D17: =Calculation!DM81 -> 10 | E17: =Calculation!CM38 -> Air Cavity (10 mm) [ISO 6946] | I17: =Calculation!DN81 -> --- | K17: =Calculation!DR81 -> 0.15 | M17: =Calculation!CV38 -> TB Strip XPS (10 mm) [IFoam] | Q17: =Calculation!DP81 -> 0.035 | S17: =Calculation!DS81 -> 0.2857142857
C18: 6 | D18: =Calculation!DM82 -> 12 | E18: =Calculation!CM39 -> OSB (12 mm) [Kronospan] | I18: =Calculation!DN82 -> 0.13 | K18: =Calculation!DR82 -> 0.09230769231 | M18: =Calculation!CV39 -> --- | Q18: =Calculation!DP82 -> --- | S18: =Calculation!DS82 -> ---
C19: 7 | D19: =Calculation!DM83 -> 10 | E19: =Calculation!CM40 -> Mortar (10 mm) | I19: =Calculation!DN83 -> 1.8 | K19: =Calculation!DR83 -> 0.005555555556 | M19: =Calculation!CV40 -> --- | Q19: =Calculation!DP83 -> --- | S19: =Calculation!DS83 -> ---
C20: 8 | D20: =Calculation!DM84 -> --- | E20: =Calculation!CM41 -> --- | I20: =Calculation!DN84 -> --- | K20: =Calculation!DR84 -> --- | M20: =Calculation!CV41 -> --- | Q20: =Calculation!DP84 -> --- | S20: =Calculation!DS84 -> ---
C21: 9 | D21: =Calculation!DM85 -> --- | E21: =Calculation!CM42 -> --- | I21: =Calculation!DN85 -> --- | K21: =Calculation!DR85 -> --- | M21: =Calculation!CV42 -> --- | Q21: =Calculation!DP85 -> --- | S21: =Calculation!DS85 -> ---
C22: 10 | D22: =Calculation!DM86 -> --- | E22: =Calculation!CM43 -> --- | I22: =Calculation!DN86 -> --- | K22: =Calculation!DR86 -> --- | M22: =Calculation!CV43 -> --- | Q22: =Calculation!DP86 -> --- | S22: =Calculation!DS86 -> ---
B23: Exterior
C24: Surface thermal resistances | H24: Method | I24: Parameter | K24: 1 - ISO 6946 | M24: 2 - Gorgolewski | O24: 3 - Gorgolewski | Q24: 4 - Gorgolewski | S24: 5 - ASHRAE
C25: Rsi | E25: Rse | H25: selection | K25: Combined Method | M25: Method 1 | O25: Method 2 | Q25: Method 3 | S25: Zone Method
C26: 0.13 | E26: 0.04 | H26: =SA_UCalc!H26 -> 1 | I26: R | J26: [(m2K)/W] | K26: =Calculation!DY58 -> 2.215104484 | M26: =Calculation!DY59 -> 1.965425295 | O26: =Calculation!DY60 -> 1.685187001 | Q26: =Calculation!DY61 -> 1.746039457 | S26: =Calculation!DY62 -> 1.942790248
C27: [(m²·K)/W] | E27: [(m²·K)/W] | I27: U | J27: [W/m2K] | K27: =1/K26 -> 0.4514459734 | M27: =1/M26 -> 0.5087957311 | O27: =1/O26 -> 0.593405954 | Q27: =1/Q26 -> 0.5727247433 | S27: =1/S26 -> 0.5147236049

Sheet Energy
B7: User name: | D7: ='Start Menu'!D7:I7 -> Telmo Miguel Martins Ribeiro | J7: File name: | L7: ='Start Menu'!L7:Q7 -> Tyre4BuildIns Project | R7: Date: | T7: ='Start Menu'!T7:U7 -> 2022-06-25
C10: Parameters | P10: Annual Balance
F11: Solution A | I11: Solution B | M11: Heating
C12: U-Value | F12: =Calculation!GD51 -> 0.5299354853 | H12: W/(m²·K) | I12: =Calculation!GG51 -> 0.4514459734 | K12: W/(m²·K) | O12: Final Energy | S12: Energy Saved
O13: Solution A | Q13: Solution B
C14: External Walls Area | F14: =Calculation!GD52 -> 239.76 | H14: m² | I14: =Calculation!GG52 -> 239.76 | K14: m² | M14: Per unit area | O14: =Calculation!GD59 -> 4.767602446 | P14: kWh/m2 | Q14: =Calculation!GG59 -> 4.061465946 | R14: kWh/m2 | S14: =Calculation!GJ59 -> 0.7061365005 | T14: kWh/m2
M15: Total | O15: =Calculation!GD60 -> 1143.080363 | P15: kWh | Q15: =Calculation!GG60 -> 973.7770752 | R15: kWh | S15: =Calculation!GJ60 -> 169.3032874 | T15: kWh
C16: Localization | F16: =Calculation!GD53 -> Coimbra | I16: =Calculation!GG53 -> Coimbra | M16: Cooling
O17: Final Energy | S17: Energy Saved
C18: Altitude | F18: =Calculation!GD54 -> 75 | H18: m | I18: =Calculation!GG54 -> 75 | K18: m | O18: Solution A | Q18: Solution B
M19: Per unit area | O19: =Calculation!GD61 -> 1.817648433 | P19: kWh/m2 | Q19: =Calculation!GG61 -> 1.548433892 | R19: kWh/m2 | S19: =Calculation!GJ61 -> 0.2692145408 | T19: kWh/m2
C20: Heating Degrees Days | F20: =Calculation!GD55 -> 1312 | H20: ˚C | I20: =Calculation!GG55 -> 1312 | K20: ˚C | M20: Total | O20: =Calculation!GD62 -> 435.7993882 | P20: kWh | Q20: =Calculation!GG62 -> 371.2525099 | R20: kWh | S20: =Calculation!GJ62 -> 64.54687831 | T20: kWh
C21: (Ref. Temperature: 18 ˚C) | M21: Total
C22: Cooling Degrees Days | F22: =Calculation!GD56 -> 500.2 | H22: ˚C | I22: =Calculation!GG56 -> 500.2 | K22: ˚C | O22: Final Energy | S22: Energy Saved
C23: (Ref. Temperature: 25 ˚C) | O23: Solution A | Q23: Solution B
C24: CoP | F24: =Calculation!GD57 -> 3.5 | I24: =Calculation!GG57 -> 3.5 | M24: Per unit area | O24: =Calculation!GD63 -> 6.585250879 | P24: kWh/m2 | Q24: =Calculation!GG63 -> 5.609899838 | R24: kWh/m2 | S24: =Calculation!GJ63 -> 0.9753510413 | T24: kWh/m2
M25: Total | O25: =Calculation!GD64 -> 1578.879751 | P25: kWh | Q25: =Calculation!GG64 -> 1345.029585 | R25: kWh | S25: =Calculation!GJ64 -> 233.8501657 | T25: kWh
C26: EER | F26: =Calculation!GD58 -> 3.5 | I26: =Calculation!GG58 -> 3.5 | N26: Percentage of Saved Energy | R26: =Calculation!GM64 -> 0.1481114477

Sheet SA_LCA
B7: User name: | D7: ='Start Menu'!D7:I7 -> Telmo Miguel Martins Ribeiro | J7: File name: | L7: ='Start Menu'!L7:Q7 -> Tyre4BuildIns Project | R7: Date: | T7: ='Start Menu'!T7:U7 -> 2022-06-25
I8: Solution A
C10: Environmental Performance Indicator | H10: Photochemical Ozone Creation Potential (POCP) | Q10: Life Cycle Stages | T10: A1+A2+A3
C12: Environmental Performance of the Improved Wall Materials (per functional unit)
B13: Interior | C13: Layer | E13: Material 1 | M13: Material 2
E14: Description | I14: Indicator value | K14: Unit | M14: Description | Q14: Indicator value | S14: Unit
C15: 1 | E15: =Calculation!GU66 -> Gypsum Board (12,5 mm) [Gyptec] | I15: =Calculation!GX66 -> 0.00094 | K15: =Calculation!HA66 -> kg C2H4-eq | M15: =Calculation!GU77 -> --- | Q15: =Calculation!GX77 -> --- | S15: =Calculation!HA77 -> kg C2H4-eq
C16: 2 | E16: =Calculation!GU67 -> OSB (12 mm) [Kronospan] | I16: =Calculation!GX67 -> 0.006264 | M16: =Calculation!GU78 -> --- | Q16: =Calculation!GX78 -> ---
C17: 3 | E17: =Calculation!GU68 -> Mineral wool (90 mm) [Volcalis] | I17: =Calculation!GX68 -> 0.0006462 | M17: =Calculation!GU79 -> Steel C90/U93 (90 mm) [Pertecno] | Q17: =Calculation!GX79 -> 0.0004660346
C18: 4 | E18: =Calculation!GU69 -> OSB (12 mm) [Kronospan] | I18: =Calculation!GX69 -> 0.006264 | M18: =Calculation!GU80 -> --- | Q18: =Calculation!GX80 -> ---
C19: 5 | E19: =Calculation!GU70 -> Mortar (10 mm) | I19: =Calculation!GX70 -> 0.000245 | M19: =Calculation!GU81 -> --- | Q19: =Calculation!GX81 -> ---
C20: 6 | E20: =Calculation!GU71 -> --- | I20: =Calculation!GX71 -> --- | M20: =Calculation!GU82 -> --- | Q20: =Calculation!GX82 -> ---
C21: 7 | E21: =Calculation!GU72 -> --- | I21: =Calculation!GX72 -> --- | M21: =Calculation!GU83 -> --- | Q21: =Calculation!GX83 -> ---
C22: 8 | E22: =Calculation!GU73 -> --- | I22: =Calculation!GX73 -> --- | M22: =Calculation!GU84 -> --- | Q22: =Calculation!GX84 -> ---
C23: 9 | E23: =Calculation!GU74 -> --- | I23: =Calculation!GX74 -> --- | M23: =Calculation!GU85 -> --- | Q23: =Calculation!GX85 -> ---
B24: Exterior | C24: 10 | E24: =Calculation!GU75 -> --- | I24: =Calculation!GX75 -> --- | M24: =Calculation!GU86 -> --- | Q24: =Calculation!GX86 -> ---
C26: Environmental Performance of the Wall (functional unit - 1 m2 of wall)
C27: =H10 -> Photochemical Ozone Creation Potential (POCP) | L27: =Calculation!GX87 -> 0.0148252346 | M27: =K15 -> kg C2H4-eq

Sheet SB_LCA
B7: User name: | D7: ='Start Menu'!D7:I7 -> Telmo Miguel Martins Ribeiro | J7: File name: | L7: ='Start Menu'!L7:Q7 -> Tyre4BuildIns Project | R7: Date: | T7: ='Start Menu'!T7:U7 -> 2022-06-25
I8: Solution B
C10: Environmental Performance Indicator | H10: Global Warming Potential (GWP) | Q10: Life Cycle Stages | T10: A1+A2+A3
C12: Environmental Performance of the Improved Wall Materials (per functional unit)
B13: Interior | C13: Layer | E13: Material 1 | M13: Material 2
E14: Description | I14: Indicator value | K14: Unit | M14: Description | Q14: Indicator value | S14: Unit
C15: 1 | E15: =Calculation!GU94 -> Gypsum Board (12,5 mm) [Gyptec] | I15: =Calculation!GX94 -> 2.5 | K15: =Calculation!HA94 -> kg CO2-eq | M15: =Calculation!GU105 -> --- | Q15: =Calculation!GX105 -> --- | S15: =Calculation!HA105 -> kg CO2-eq
C16: 2 | E16: =Calculation!GU95 -> OSB (12 mm) [Kronospan] | I16: =Calculation!GX95 -> -9.036 | M16: =Calculation!GU106 -> --- | Q16: =Calculation!GX106 -> ---
C17: 3 | E17: =Calculation!GU96 -> Air Cavity (10 mm) [ISO 6946] | I17: =Calculation!GX96 -> 0 | M17: =Calculation!GU107 -> TB Strip XPS (10 mm) [IFoam] | Q17: =Calculation!GX107 -> 0.7558823529
C18: 4 | E18: =Calculation!GU97 -> Mineral wool (90 mm) [Volcalis] | I18: =Calculation!GX97 -> 1.521 | M18: =Calculation!GU108 -> Steel C90/U93 (90 mm) [Pertecno] | Q18: =Calculation!GX108 -> 0.00553128
C19: 5 | E19: =Calculation!GU98 -> Air Cavity (10 mm) [ISO 6946] | I19: =Calculation!GX98 -> 0 | M19: =Calculation!GU109 -> TB Strip XPS (10 mm) [IFoam] | Q19: =Calculation!GX109 -> 0.7558823529
C20: 6 | E20: =Calculation!GU99 -> OSB (12 mm) [Kronospan] | I20: =Calculation!GX99 -> -9.036 | M20: =Calculation!GU110 -> --- | Q20: =Calculation!GX110 -> ---
C21: 7 | E21: =Calculation!GU100 -> Mortar (10 mm) | I21: =Calculation!GX100 -> 1.42 | M21: =Calculation!GU111 -> --- | Q21: =Calculation!GX111 -> ---
C22: 8 | E22: =Calculation!GU101 -> --- | I22: =Calculation!GX101 -> --- | M22: =Calculation!GU112 -> --- | Q22: =Calculation!GX112 -> ---
C23: 9 | E23: =Calculation!GU102 -> --- | I23: =Calculation!GX102 -> --- | M23: =Calculation!GU113 -> --- | Q23: =Calculation!GX113 -> ---
B24: Exterior | C24: 10 | E24: =Calculation!GU103 -> --- | I24: =Calculation!GX103 -> --- | M24: =Calculation!GU114 -> --- | Q24: =Calculation!GX114 -> ---
C26: Environmental Performance of the Wall (functional unit - 1 m2 of wall)
C27: =H10 -> Global Warming Potential (GWP) | L27: =Calculation!GX115 -> -11.11370401 | M27: =K15 -> kg CO2-eq

Sheet Comp_LCA
B7: User name: | D7: ='Start Menu'!D7:I7 -> Telmo Miguel Martins Ribeiro | J7: File name: | L7: ='Start Menu'!L7:Q7 -> Tyre4BuildIns Project | R7: Date: | T7: ='Start Menu'!T7:U7 -> 2022-06-25
I8: Comparison
C10: Environmental Performance Indicator | H10: Photochemical Ozone Creation Potential (POCP) | Q10: Life Cycle Stages | T10: A1+A2+A3
D14: Solution A | F14: Total | J14: =Calculation!GX144 -> 0.0148252346 | K14: =Calculation!HA123 -> kg C2H4-eq
F17: Wall component | J17: =Calculation!HU123 -> 0.006264 | K17: =Calculation!HA123 -> kg C2H4-eq
F18: OSB (12 mm) [Kronospan] | J18: =IF(VLOOKUP($H$10,Comp_LCA!$D$65:$K$87,8)=1,VLOOKUP(F18,Calculation!$D$9:$L$50,30),IF(VLOOKUP($H$10,Comp_LCA!$D$65:$K$87,8)=2,VLOOKUP(F18,Calculation!$D$9:$L$50,32),IF(VLOOKUP($H$10,Comp_LCA!$D$65:$K$87,8)=3,VLOOKUP(F18,Calculation!$D$9:$L$50,22),IF(VLOOKUP($H$10,Comp_LCA!$D$65:$K$87,8)=4,VLOOKUP(F18,Calculation!$D$9:$L$50,24),IF(VLOOKUP($H$10,Comp_LCA!$D$65:$K$87,8)=5,VLOOKUP(F18,Calculation!$D$9:$L$50,28),IF(VLOOKUP($H$10,Comp_LCA!$D$65:$K$87,8)=6,VLOOKUP(F18,Calculation!$D$9:$L$50,20),IF(VLOOKUP($H$10,Comp_LCA!$D$65:$K$87,8)=7,VLOOKUP(F18,Calculation!$D$9:$L$50,26),0))))))) -> 
D20: Solution B | F20: Total | J20: =Calculation!GX172 -> 0.01519582284 | K20: =Calculation!HA151 -> kg C2H4-eq
F23: Wall component | J23: =Calculation!HU151 -> 0.006264 | K23: =Calculation!HA162 -> kg C2H4-eq
F24: OSB (12 mm) [Kronospan] | J24: =IF(VLOOKUP($H$10,Comp_LCA!$D$65:$K$87,8)=1,VLOOKUP(F24,Calculation!$D$9:$L$50,30),IF(VLOOKUP($H$10,Comp_LCA!$D$65:$K$87,8)=2,VLOOKUP(F24,Calculation!$D$9:$L$50,32),IF(VLOOKUP($H$10,Comp_LCA!$D$65:$K$87,8)=3,VLOOKUP(F24,Calculation!$D$9:$L$50,22),IF(VLOOKUP($H$10,Comp_LCA!$D$65:$K$87,8)=4,VLOOKUP(F24,Calculation!$D$9:$L$50,24),IF(VLOOKUP($H$10,Comp_LCA!$D$65:$K$87,8)=5,VLOOKUP(F24,Calculation!$D$9:$L$50,28),IF(VLOOKUP($H$10,Comp_LCA!$D$65:$K$87,8)=6,VLOOKUP(F24,Calculation!$D$9:$L$50,20),IF(VLOOKUP($H$10,Comp_LCA!$D$65:$K$87,8)=7,VLOOKUP(F24,Calculation!$D$9:$L$50,26),0))))))) -> 
O27: =K14 -> kg C2H4-eq

Sheet SA_CostBen
B7: User name: | D7: ='Start Menu'!D7:I7 -> Telmo Miguel Martins Ribeiro | J7: File name: | L7: ='Start Menu'!L7:Q7 -> Tyre4BuildIns Project | R7: Date: | T7: ='Start Menu'!T7:U7 -> 2022-06-25
I8: Solution A
C10: Cost of the Reference Wall Materials
C11: Layer | E11: Material 1 | M11: Material 2
B12: Interior | E12: Description | I12: Unit cost | K12: Unit consumption | M12: Description | Q12: Unit cost | S12: Unit consumption
C13: 1 | E13: =Calculation!IY11 -> Gypsum Board (12,5 mm) [Gyptec] | I13: =Calculation!JB11 -> 3.25 | J13: =Calculation!JE11 -> €/m² | K13: =Calculation!JH11 -> 1 | L13: =Calculation!JK11 -> m²/m² | M13: =Calculation!JN11 -> --- | Q13: =Calculation!JQ11 -> --- | R13: =Calculation!JT11 -> --- | S13: =Calculation!JW11 -> --- | T13: =Calculation!JZ11 -> ---
C14: 2 | E14: =Calculation!IY12 -> OSB (12 mm) [Kronospan] | I14: =Calculation!JB12 -> 7.32 | J14: =Calculation!JE12 -> €/m² | K14: =Calculation!JH12 -> 1 | L14: =Calculation!JK12 -> m²/m² | M14: =Calculation!JN12 -> --- | Q14: =Calculation!JQ12 -> --- | R14: =Calculation!JT12 -> --- | S14: =Calculation!JW12 -> --- | T14: =Calculation!JZ12 -> ---
C15: 3 | E15: =Calculation!IY13 -> Mineral wool (90 mm) [Volcalis] | I15: =Calculation!JB13 -> 2.916 | J15: =Calculation!JE13 -> €/m² | K15: =Calculation!JH13 -> 1 | L15: =Calculation!JK13 -> m²/m² | M15: =Calculation!JN13 -> Steel C90/U93 (90 mm) [Pertecno] | Q15: =Calculation!JQ13 -> 6.23482 | R15: =Calculation!JT13 -> €/m | S15: =Calculation!JW13 -> 3.307407407 | T15: =Calculation!JZ13 -> m/m²
C16: 4 | E16: =Calculation!IY14 -> OSB (12 mm) [Kronospan] | I16: =Calculation!JB14 -> 7.32 | J16: =Calculation!JE14 -> €/m² | K16: =Calculation!JH14 -> 1 | L16: =Calculation!JK14 -> m²/m² | M16: =Calculation!JN14 -> --- | Q16: =Calculation!JQ14 -> --- | R16: =Calculation!JT14 -> --- | S16: =Calculation!JW14 -> --- | T16: =Calculation!JZ14 -> ---
C17: 5 | E17: =Calculation!IY15 -> Mortar (10 mm) | I17: =Calculation!JB15 -> 2.44 | J17: =Calculation!JE15 -> €/m² | K17: =Calculation!JH15 -> 1 | L17: =Calculation!JK15 -> m²/m² | M17: =Calculation!JN15 -> --- | Q17: =Calculation!JQ15 -> --- | R17: =Calculation!JT15 -> --- | S17: =Calculation!JW15 -> --- | T17: =Calculation!JZ15 -> ---
C18: 6 | E18: =Calculation!IY16 -> --- | I18: =Calculation!JB16 -> --- | J18: =Calculation!JE16 -> --- | K18: =Calculation!JH16 -> --- | L18: =Calculation!JK16 -> --- | M18: =Calculation!JN16 -> --- | Q18: =Calculation!JQ16 -> --- | R18: =Calculation!JT16 -> --- | S18: =Calculation!JW16 -> --- | T18: =Calculation!JZ16 -> ---
C19: 7 | E19: =Calculation!IY17 -> --- | I19: =Calculation!JB17 -> --- | J19: =Calculation!JE17 -> --- | K19: =Calculation!JH17 -> --- | L19: =Calculation!JK17 -> --- | M19: =Calculation!JN17 -> --- | Q19: =Calculation!JQ17 -> --- | R19: =Calculation!JT17 -> --- | S19: =Calculation!JW17 -> --- | T19: =Calculation!JZ17 -> ---
C20: 8 | E20: =Calculation!IY18 -> --- | I20: =Calculation!JB18 -> --- | J20: =Calculation!JE18 -> --- | K20: =Calculation!JH18 -> --- | L20: =Calculation!JK18 -> --- | M20: =Calculation!JN18 -> --- | Q20: =Calculation!JQ18 -> --- | R20: =Calculation!JT18 -> --- | S20: =Calculation!JW18 -> --- | T20: =Calculation!JZ18 -> ---
C21: 9 | E21: =Calculation!IY19 -> --- | I21: =Calculation!JB19 -> --- | J21: =Calculation!JE19 -> --- | K21: =Calculation!JH19 -> --- | L21: =Calculation!JK19 -> --- | M21: =Calculation!JN19 -> --- | Q21: =Calculation!JQ19 -> --- | R21: =Calculation!JT19 -> --- | S21: =Calculation!JW19 -> --- | T21: =Calculation!JZ19 -> ---
C22: 10 | E22: =Calculation!IY20 -> --- | I22: =Calculation!JB20 -> --- | J22: =Calculation!JE20 -> --- | K22: =Calculation!JH20 -> --- | L22: =Calculation!JK20 -> --- | M22: =Calculation!JN20 -> --- | Q22: =Calculation!JQ20 -> --- | R22: =Calculation!JT20 -> --- | S22: =Calculation!JW20 -> --- | T22: =Calculation!JZ20 -> ---
B23: Exterior
C24: Cost of the Reference Wall
C25: Unit cost | F25: Total cost
C26: =Calculation!KL12 -> 43.86708985 | E26: €/m2 | F26: =Calculation!KL13 -> 10517.57346 | H26: €

Sheet SB_CostBen
B7: User name: | D7: ='Start Menu'!D7:I7 -> Telmo Miguel Martins Ribeiro | J7: File name: | L7: ='Start Menu'!L7:Q7 -> Tyre4BuildIns Project | R7: Date: | T7: ='Start Menu'!T7:U7 -> 2022-06-25
I8: Solution B
C10: Cost of the Reference Wall Materials
C11: Layer | E11: Material 1 | M11: Material 2
B12: Interior | E12: Description | I12: Unit cost | K12: Unit consumption | M12: Description | Q12: Unit cost | S12: Unit consumption
C13: 1 | E13: =Calculation!IY28 -> Gypsum Board (12,5 mm) [Gyptec] | I13: =Calculation!JB28 -> 3.25 | J13: =Calculation!JE28 -> €/m² | K13: =Calculation!JH28 -> 1 | L13: =Calculation!JK28 -> m²/m² | M13: =Calculation!JN28 -> --- | Q13: =Calculation!JQ28 -> --- | R13: =Calculation!JT28 -> --- | S13: =Calculation!JW28 -> --- | T13: =Calculation!JZ28 -> ---
C14: 2 | E14: =Calculation!IY29 -> OSB (12 mm) [Kronospan] | I14: =Calculation!JB29 -> 7.32 | J14: =Calculation!JE29 -> €/m² | K14: =Calculation!JH29 -> 1 | L14: =Calculation!JK29 -> m²/m² | M14: =Calculation!JN29 -> --- | Q14: =Calculation!JQ29 -> --- | R14: =Calculation!JT29 -> --- | S14: =Calculation!JW29 -> --- | T14: =Calculation!JZ29 -> ---
C15: 3 | E15: =Calculation!IY30 -> Air Cavity (10 mm) [ISO 6946] | I15: =Calculation!JB30 -> 0 | J15: =Calculation!JE30 -> €/m² | K15: =Calculation!JH30 -> 1 | L15: =Calculation!JK30 -> m²/m² | M15: =Calculation!JN30 -> TB Strip XPS (10 mm) [IFoam] | Q15: =Calculation!JQ30 -> 0.09 | R15: =Calculation!JT30 -> €/m² | S15: =Calculation!JW30 -> 3.307407407 | T15: =Calculation!JZ30 -> m²/m²
C16: 4 | E16: =Calculation!IY31 -> Mineral wool (90 mm) [Volcalis] | I16: =Calculation!JB31 -> 2.916 | J16: =Calculation!JE31 -> €/m² | K16: =Calculation!JH31 -> 1 | L16: =Calculation!JK31 -> m²/m² | M16: =Calculation!JN31 -> Steel C90/U93 (90 mm) [Pertecno] | Q16: =Calculation!JQ31 -> 6.23482 | R16: =Calculation!JT31 -> €/m | S16: =Calculation!JW31 -> 3.307407407 | T16: =Calculation!JZ31 -> m/m²
C17: 5 | E17: =Calculation!IY32 -> Air Cavity (10 mm) [ISO 6946] | I17: =Calculation!JB32 -> 0 | J17: =Calculation!JE32 -> €/m² | K17: =Calculation!JH32 -> 1 | L17: =Calculation!JK32 -> m²/m² | M17: =Calculation!JN32 -> TB Strip XPS (10 mm) [IFoam] | Q17: =Calculation!JQ32 -> 0.09 | R17: =Calculation!JT32 -> €/m² | S17: =Calculation!JW32 -> 3.307407407 | T17: =Calculation!JZ32 -> m²/m²
C18: 6 | E18: =Calculation!IY33 -> OSB (12 mm) [Kronospan] | I18: =Calculation!JB33 -> 7.32 | J18: =Calculation!JE33 -> €/m² | K18: =Calculation!JH33 -> 1 | L18: =Calculation!JK33 -> m²/m² | M18: =Calculation!JN33 -> --- | Q18: =Calculation!JQ33 -> --- | R18: =Calculation!JT33 -> --- | S18: =Calculation!JW33 -> --- | T18: =Calculation!JZ33 -> ---
C19: 7 | E19: =Calculation!IY34 -> Mortar (10 mm) | I19: =Calculation!JB34 -> 2.44 | J19: =Calculation!JE34 -> €/m² | K19: =Calculation!JH34 -> 1 | L19: =Calculation!JK34 -> m²/m² | M19: =Calculation!JN34 -> --- | Q19: =Calculation!JQ34 -> --- | R19: =Calculation!JT34 -> --- | S19: =Calculation!JW34 -> --- | T19: =Calculation!JZ34 -> ---
C20: 8 | E20: =Calculation!IY35 -> --- | I20: =Calculation!JB35 -> --- | J20: =Calculation!JE35 -> --- | K20: =Calculation!JH35 -> --- | L20: =Calculation!JK35 -> --- | M20: =Calculation!JN35 -> --- | Q20: =Calculation!JQ35 -> --- | R20: =Calculation!JT35 -> --- | S20: =Calculation!JW35 -> --- | T20: =Calculation!JZ35 -> ---
C21: 9 | E21: =Calculation!IY36 -> --- | I21: =Calculation!JB36 -> --- | J21: =Calculation!JE36 -> --- | K21: =Calculation!JH36 -> --- | L21: =Calculation!JK36 -> --- | M21: =Calculation!JN36 -> --- | Q21: =Calculation!JQ36 -> --- | R21: =Calculation!JT36 -> --- | S21: =Calculation!JW36 -> --- | T21: =Calculation!JZ36 -> ---
C22: 10 | E22: =Calculation!IY37 -> --- | I22: =Calculation!JB37 -> --- | J22: =Calculation!JE37 -> --- | K22: =Calculation!JH37 -> --- | L22: =Calculation!JK37 -> --- | M22: =Calculation!JN37 -> --- | Q22: =Calculation!JQ37 -> --- | R22: =Calculation!JT37 -> --- | S22: =Calculation!JW37 -> --- | T22: =Calculation!JZ37 -> ---
B23: Exterior
C24: Cost of the Improved Wall
C25: Unit cost | F25: Total cost
C26: =Calculation!KL29 -> 44.46242319 | E26: €/m2 | F26: =Calculation!KL30 -> 10660.31058 | H26: €

Sheet Comp_CostBen
Y5: 0 | Z5: =AA5 -> -142.73712 | AA5: =-F25 -> -142.73712 | AC5: 0 | AD5: =Z5 -> -142.73712
Y6: =Y5+1 -> 1 | Z6: =$L$25 -> 58.46254142 | AA6: =AA5+$L$25 -> -84.27457858 | AC6: 5 | AD6: =Z10 -> 58.46254142
B7: User name: | D7: ='Start Menu'!D7:I7 -> Telmo Miguel Martins Ribeiro | J7: File name: | L7: ='Start Menu'!L7:Q7 -> Tyre4BuildIns Project | R7: Date: | T7: ='Start Menu'!T7:U7 -> 2022-06-25 | Y7: =Y6+1 -> 2 | Z7: =$L$25 -> 58.46254142 | AA7: =AA6+$L$25 -> -25.81203717 | AC7: 10 | AD7: =Z15 -> 58.46254142
I8: Comparison | Y8: 3 | Z8: 58.46254142 | AA8: 32.65050425 | AC8: 15 | AD8: =Z20 -> 58.46254142
Y9: 4 | Z9: 58.46254142 | AA9: 91.11304567 | AC9: 20 | AD9: =Z25 -> 58.46254142
C10: Cost | Y10: 5 | Z10: 58.46254142 | AA10: 149.5755871
C11: Solution A | F11: Unit | H11: Total | Y11: 6 | Z11: 58.46254142 | AA11: 208.0381285
F12: =Calculation!IY43 -> 43.86708985 | G12: €/m2 | H12: =Calculation!IY44 -> 10517.57346 | I12: € | Y12: 7 | Z12: 58.46254142 | AA12: 266.5006699
C13: Solution B | F13: Unit | H13: Total | Y13: 8 | Z13: 58.46254142 | AA13: 324.9632113
F14: =Calculation!IY45 -> 44.46242319 | G14: €/m2 | H14: =Calculation!IY46 -> 10660.31058 | I14: € | Y14: 9 | Z14: 58.46254142 | AA14: 383.4257527
Y15: 10 | Z15: 58.46254142 | AA15: 441.8882942
C16: Energy Benefit | Y16: 11 | Z16: 58.46254142 | AA16: 500.3508356
C17: Saved Energy (per year) | F17: Unit | H17: Total | Y17: 12 | Z17: 58.46254142 | AA17: 558.813377
F18: =Calculation!GJ63 -> 0.9753510413 | G18: kWh/m2/yr | H18: =Calculation!GJ64 -> 233.8501657 | I18: kWh/yr | Y18: 13 | Z18: 58.46254142 | AA18: 617.2759184
Y19: 14 | Z19: 58.46254142 | AA19: 675.7384598
C20: Electricity | Y20: 15 | Z20: 58.46254142 | AA20: 734.2010012
C21: Cost per kWh | F21: =Calculation!IY47 -> 0.25 | G21: €/kWh | Y21: 16 | Z21: 58.46254142 | AA21: 792.6635427
Y22: 17 | Z22: 58.46254142 | AA22: 851.1260841
Y23: =Y22+1 -> 18 | Z23: 58.46254142 | AA23: 909.5886255
Y24: 19 | Z24: 58.46254142 | AA24: 968.0511669
C25: Improvement Cost | F25: =Calculation!IY51 -> 142.73712 | H25: € | I25: Benefit (per year) | L25: =Calculation!IY52 -> 58.46254142 | N25: €/yr | O25: Payback Period | R25: =Calculation!IY53 -> 2.441514114 | T25: yrs | Y25: 20 | Z25: 58.46254142 | AA25: 1026.513708

Sheet MCA
B7: User name: | D7: ='Start Menu'!D7:I7 -> Telmo Miguel Martins Ribeiro | J7: File name: | L7: ='Start Menu'!L7:Q7 -> Tyre4BuildIns Project | R7: Date: | T7: ='Start Menu'!T7:U7 -> 2022-06-25
C10: Criteria Weights | H10: Energy Consumption | K10: Environmental Impacts | N10: Acquisition Cost
H11: =Calculation!KT10 -> 0.35 | K11: =Calculation!KT11 -> 0.15 | N11: =Calculation!KT12 -> 0.5 | R11: Evaluation
C13: Decision Matrix
C14: Solutions | H14: Criteria | R14: Solution A
H15: Energy Consumption (unit area) | K15: Environmental Impacts | N15: Acquisition Cost (unit area)
C16: A | H16: =Calculation!KT39 -> 6.585250879 | J16: kWh/m2 | K16: =Calculation!KU40 -> 0.9042943619 | N16: =Calculation!KV39 -> 43.86708985 | P16: €/m2 | R16: =Calculation!LB39 -> 0.9481609933
C18: B | H18: =Calculation!KT40 -> 5.609899838 | J18: kWh/m2 | K18: =Calculation!KU39 -> 1 | N18: =Calculation!KV40 -> 44.46242319 | P18: €/m2 | R18: Solution B
R20: =Calculation!LB40 -> 0.9789493625
C21: Standardized Decision Matrix
C22: Solutions | H22: Criteria | R22: Best Solution
H23: Energy Consumption | K23: Environmental Impacts | N23: Acquisition Cost
C24: A | H24: =Calculation!KY39 -> 0.8518885523 | K24: =Calculation!KZ39 -> 1 | N24: =Calculation!LA39 -> 1 | R24: =Calculation!LC39 -> B
C26: B | H26: =Calculation!KY40 -> 1 | K26: =Calculation!KZ40 -> 0.9042943619 | N26: =Calculation!LA40 -> 0.9866104164

Sheet Mat_DB
B7: User name: | D7: ='Start Menu'!D7:I7 -> Telmo Miguel Martins Ribeiro | J7: File name: | L7: ='Start Menu'!L7:Q7 -> Tyre4BuildIns Project | R7: Date: | T7: ='Start Menu'!T7:U7 -> 2022-06-25
C10: # | D10: Material Name | H10: Type | J10: Thickness | K10: λ or R | M10: Thermal Reference | O10: Unit Consumption | Q10: Unit Cost | R10: Cost Reference | T10: ADPE | U10: ADPF | V10: AP | W10: EP | X10: POCP | Y10: GWP | Z10: ODP | AA10: LCA Reference | AC10: FL | AD10: SD | AE10: ST
J11: [mm] | Q11: [€/un] | T11: [kg SB-eq/un] | U11: [MJ/un] | V11: [kg SO2-eq/un] | W11: [kg (PO4)3-eq/un] | X11: [kg C2H4-eq/un] | Y11: [kg CO2-eq/un] | Z11: kg CFC11-eq/un | AC11: [mm] | AD11: [mm] | AE11: [mm]
C12: 1 | D12: --- | E12: --- | F12: --- | G12: --- | H12: --- | J12: --- | K12: --- | L12: --- | M12: --- | O12: --- | P12: --- | Q12: --- | R12: --- | T12: --- | U12: --- | V12: --- | W12: --- | X12: --- | Y12: --- | Z12: --- | AA12: --- | AC12: --- | AD12: --- | AE12: ---
C13: =C12+1 -> 2 | D13: Gypsum Board (6 mm) [Gyptec] | E13: Plasterboard (6 mm) [Gyptec] | F13: Plasterboard (6 mm) [Gyptec] | G13: Plasterboard (6 mm) [Gyptec] | H13: Sheathing Panel | J13: 6 | K13: 0.2 | L13: λ [W/(m·K)] | M13: Gyptec | O13: 1 | P13: m²/m² | Q13: 5.03 | R13: Gyptec | T13: 2.448e-07 | U13: 0.168 | V13: 0.00576 | W13: 0.000528 | X13: 0.0004512 | Y13: 1.2 | Z13: 2.928e-08 | AA13: Gyproc | AC13: --- | AD13: --- | AE13: ---
C14: 3 | D14: Gypsum Board (9,5 mm) [Gyptec] | E14: Plasterboard (9,5 mm) [Gyptec] | F14: Plasterboard (9,5 mm) [Gyptec] | G14: Plasterboard (9,5 mm) [Gyptec] | H14: Sheathing Panel | J14: 9.5 | K14: 0.2 | L14: λ [W/(m·K)] | M14: Gyptec | O14: 1 | P14: m²/m² | Q14: 3.51 | R14: Gyptec | T14: 3.876e-07 | U14: 0.266 | V14: 0.00912 | W14: 0.000836 | X14: 0.0007144 | Y14: 1.9 | Z14: 4.636e-08 | AA14: Gyproc | AC14: --- | AD14: --- | AE14: ---
C15: 4 | D15: Gypsum Board (12,5 mm) [Gyptec] | E15: Plasterboard (12,5 mm) [Gyptec] | F15: Plasterboard (12,5 mm) [Gyptec] | G15: Plasterboard (12,5 mm) [Gyptec] | H15: Sheathing Panel | J15: 12.5 | K15: 0.175 | L15: λ [W/(m·K)] | M15: Gyptec | O15: 1 | P15: m²/m² | Q15: 3.25 | R15: Gyptec | T15: 5.1e-07 | U15: 0.35 | V15: 0.012 | W15: 0.0011 | X15: 0.00094 | Y15: 2.5 | Z15: 6.1e-08 | AA15: Gyproc | AC15: --- | AD15: --- | AE15: ---
C16: 5 | D16: Gypsum Board (15 mm) [Gyptec] | E16: Plasterboard (15 mm) [Gyptec] | F16: Plasterboard (15 mm) [Gyptec] | G16: Plasterboard (15 mm) [Gyptec] | H16: Sheathing Panel | J16: 15 | K16: 0.185 | L16: λ [W/(m·K)] | M16: Gyptec | O16: 1 | P16: m²/m² | Q16: 3.9 | R16: Gyptec | T16: 6.12e-07 | U16: 0.42 | V16: 0.0144 | W16: 0.00132 | X16: 0.001128 | Y16: 3 | Z16: 7.32e-08 | AA16: Gyproc | AC16: --- | AD16: --- | AE16: ---
C17: 6 | D17: Gypsum Board (18 mm) [Gyptec] | E17: Plasterboard (18 mm) [Gyptec] | F17: Plasterboard (18 mm) [Gyptec] | G17: Plasterboard (18 mm) [Gyptec] | H17: Sheathing Panel | J17: 18 | K17: 0.2 | L17: λ [W/(m·K)] | M17: Gyptec | O17: 1 | P17: m²/m² | Q17: 5.21 | R17: Gyptec | T17: 7.344e-07 | U17: 0.504 | V17: 0.01728 | W17: 0.001584 | X17: 0.0013536 | Y17: 3.6 | Z17: 8.784e-08 | AA17: Gyproc | AC17: --- | AD17: --- | AE17: ---
C18: 7 | D18: OSB (9 mm) [Kronospan] | E18: OSB (9 mm) [Kronospan] | F18: OSB (9 mm) [Kronospan] | G18: OSB (9 mm) [Kronospan] | H18: Sheathing Panel | J18: 9 | K18: 0.13 | L18: λ [W/(m·K)] | M18: Kronospan | O18: 1 | P18: m²/m² | Q18: 5.49 | R18: Kronospan | T18: 7.425e-07 | U18: 38.52 | V18: 0.008271 | W18: 0.001971 | X18: 0.004698 | Y18: -6.777 | Z18: 8.487e-13 | AA18: Egger | AC18: --- | AD18: --- | AE18: ---
C19: 8 | D19: OSB (12 mm) [Kronospan] | E19: OSB (12 mm) [Kronospan] | F19: OSB (12 mm) [Kronospan] | G19: OSB (12 mm) [Kronospan] | H19: Sheathing Panel | J19: 12 | K19: 0.13 | L19: λ [W/(m·K)] | M19: Kronospan | O19: 1 | P19: m²/m² | Q19: 7.32 | R19: Kronospan | T19: 9.9e-07 | U19: 51.36 | V19: 0.011028 | W19: 0.002628 | X19: 0.006264 | Y19: -9.036 | Z19: 1.1316e-12 | AA19: Egger | AC19: --- | AD19: --- | AE19: ---
C20: 9 | D20: OSB (15 mm) [Kronospan] | E20: OSB (15 mm) [Kronospan] | F20: OSB (15 mm) [Kronospan] | G20: OSB (15 mm) [Kronospan] | H20: Sheathing Panel | J20: 15 | K20: 0.13 | L20: λ [W/(m·K)] | M20: Kronospan | O20: 1 | P20: m²/m² | Q20: 9.07 | R20: Kronospan | T20: 1.2375e-06 | U20: 64.2 | V20: 0.013785 | W20: 0.003285 | X20: 0.00783 | Y20: -11.295 | Z20: 1.4145e-12 | AA20: Egger | AC20: --- | AD20: --- | AE20: ---
C21: 10 | D21: OSB (18 mm) [Kronospan] | E21: OSB (18 mm) [Kronospan] | F21: OSB (18 mm) [Kronospan] | G21: OSB (18 mm) [Kronospan] | H21: Sheathing Panel | J21: 18 | K21: 0.13 | L21: λ [W/(m·K)] | M21: Kronospan | O21: 1 | P21: m²/m² | Q21: 10.93 | R21: Kronospan | T21: 1.485e-06 | U21: 77.04 | V21: 0.016542 | W21: 0.003942 | X21: 0.009396 | Y21: -13.554 | Z21: 1.6974e-12 | AA21: Egger | AC21: --- | AD21: --- | AE21: ---
C22: 11 | D22: OSB (22 mm) [Kronospan] | E22: OSB (22 mm) [Kronospan] | F22: OSB (22 mm) [Kronospan] | G22: OSB (22 mm) [Kronospan] | H22: Sheathing Panel | J22: 22 | K22: 0.13 | L22: λ [W/(m·K)] | M22: Kronospan | O22: 1 | P22: m²/m² | Q22: 13.43 | R22: Kronospan | T22: 1.815e-06 | U22: 94.16 | V22: 0.020218 | W22: 0.004818 | X22: 0.011484 | Y22: -16.566 | Z22: 2.0746e-12 | AA22: Egger | AC22: --- | AD22: --- | AE22: ---
C23: 12 | D23: OSB (25 mm) [Kronospan] | E23: OSB (25 mm) [Kronospan] | F23: OSB (25 mm) [Kronospan] | G23: OSB (25 mm) [Kronospan] | H23: Sheathing Panel | J23: 25 | K23: 0.13 | L23: λ [W/(m·K)] | M23: Kronospan | O23: 1 | P23: m²/m² | Q23: 15.06 | R23: Kronospan | T23: 2.0625e-06 | U23: 107 | V23: 0.022975 | W23: 0.005475 | X23: 0.01305 | Y23: -18.825 | Z23: 2.3575e-12 | AA23: Egger | AC23: --- | AD23: --- | AE23: ---
C24: 13 | D24: Mineral wool (10 mm) [Volcalis] | E24: Mineral wool (10 mm) [Volcalis] | F24: Mineral wool (10 mm) [Volcalis] | G24: Mineral wool (10 mm) [Volcalis] | H24: Cavity Insulation | J24: 10 | K24: 0.035 | L24: λ [W/(m·K)] | M24: Volcalis | O24: 1 | P24: m²/m² | Q24: 0.324 | R24: Volcalis | T24: 1.12e-05 | U24: 3.46 | V24: 0.00101 | W24: 0.000208 | X24: 7.18e-05 | Y24: 0.169 | Z24: 1.77e-12 | AA24: Knauf | AC24: --- | AD24: --- | AE24: ---
C25: 14 | D25: Mineral wool (50 mm) [Volcalis] | E25: Mineral wool (50 mm) [Volcalis] | F25: Mineral wool (50 mm) [Volcalis] | G25: Mineral wool (50 mm) [Volcalis] | H25: Cavity Insulation | J25: 50 | K25: 0.035 | L25: λ [W/(m·K)] | M25: Volcalis | O25: 1 | P25: m²/m² | Q25: 1.62 | R25: Volcalis | T25: 5.6e-05 | U25: 17.3 | V25: 0.00505 | W25: 0.00104 | X25: 0.000359 | Y25: 0.845 | Z25: 8.85e-12 | AA25: Knauf | AC25: --- | AD25: --- | AE25: ---
C26: 15 | D26: Mineral wool (90 mm) [Volcalis] | E26: Mineral wool (90 mm) [Volcalis] | F26: Mineral wool (90 mm) [Volcalis] | G26: Mineral wool (90 mm) [Volcalis] | H26: Cavity Insulation | J26: 90 | K26: 0.035 | L26: λ [W/(m·K)] | M26: Volcalis | O26: 1 | P26: m²/m² | Q26: 2.916 | R26: Volcalis | T26: 0.0001008 | U26: 31.14 | V26: 0.00909 | W26: 0.001872 | X26: 0.0006462 | Y26: 1.521 | Z26: 1.593e-11 | AA26: Knauf | AC26: --- | AD26: --- | AE26: ---
C27: 16 | D27: Mineral wool (100 mm) [Volcalis] | H27: Cavity Insulation | J27: 100 | K27: 0.035 | L27: λ [W/(m·K)] | M27: Volcalis | O27: 1 | P27: m²/m² | Q27: 3.24 | R27: Volcalis | T27: 0.000112 | U27: 34.6 | V27: 0.0101 | W27: 0.00208 | X27: 0.000718 | Y27: 1.69 | Z27: 1.77e-11 | AA27: Knauf | AC27: --- | AD27: --- | AE27: ---
C28: 17 | D28: Mineral wool (120 mm) [Volcalis] | H28: Cavity Insulation | J28: 120 | K28: 0.035 | L28: λ [W/(m·K)] | M28: Volcalis | O28: 1 | P28: m²/m² | Q28: 3.888 | R28: Volcalis | T28: 0.0001344 | U28: 41.52 | V28: 0.01212 | W28: 0.002496 | X28: 0.0008616 | Y28: 2.028 | Z28: 2.124e-11 | AA28: Knauf | AC28: --- | AD28: --- | AE28: ---
C29: 18 | D29: Mineral wool (200 mm) [Volcalis] | E29: Mineral wool (200 mm) [Volcalis] | F29: Mineral wool (200 mm) [Volcalis] | G29: Mineral wool (200 mm) [Volcalis] | H29: Cavity Insulation | J29: 200 | K29: 0.035 | L29: λ [W/(m·K)] | M29: Volcalis | O29: 1 | P29: m²/m² | Q29: 6.48 | R29: Volcalis | T29: 0.000224 | U29: 69.2 | V29: 0.0202 | W29: 0.00416 | X29: 0.001436 | Y29: 3.38 | Z29: 3.54e-11 | AA29: Knauf | AC29: --- | AD29: --- | AE29: ---
C30: 19 | D30: ETICS EPS (40 mm) [Weber] | E30: ETICS EPS (10 cm) [Atlas] | F30: ETICS EPS (10 cm) [Atlas] | G30: ETICS EPS (10 cm) [Atlas] | H30: External Insulation | J30: 40 | K30: 1.15 | L30: R [(m²·K)/W] | M30: Cype | O30: 1 | P30: m²/m² | Q30: 34.2 | R30: Cype | T30: 0.052 | U30: 79.52 | V30: 0.01512 | W30: 0.00172 | X30: 0.00184 | Y30: 4.76 | Z30: 5.22536e-07 | AA30: Atlas | AC30: --- | AD30: --- | AE30: ---
C31: 20 | D31: ETICS EPS (50 mm) [Weber] | E31: ETICS EPS (12 cm) [Atlas] | F31: ETICS EPS (12 cm) [Atlas] | G31: ETICS EPS (12 cm) [Atlas] | H31: External Insulation | J31: 50 | K31: 1.4375 | L31: R [(m²·K)/W] | M31: Cype | O31: 1 | P31: m²/m² | Q31: 35.725 | R31: Cype | T31: 0.065 | U31: 99.4 | V31: 0.0189 | W31: 0.00215 | X31: 0.0023 | Y31: 5.95 | Z31: 6.5317e-07 | AA31: Atlas | AC31: --- | AD31: --- | AE31: ---
C32: 21 | D32: ETICS EPS (70 mm) [Weber] | E32: ETICS EPS (15 cm) [Atlas] | F32: ETICS EPS (15 cm) [Atlas] | G32: ETICS EPS (15 cm) [Atlas] | H32: External Insulation | J32: 70 | K32: 2.0125 | L32: R [(m²·K)/W] | M32: Cype | O32: 1 | P32: m²/m² | Q32: 38.775 | R32: Cype | T32: 0.091 | U32: 139.16 | V32: 0.02646 | W32: 0.00301 | X32: 0.00322 | Y32: 8.33 | Z32: 9.14438e-07 | AA32: Atlas | AC32: --- | AD32: --- | AE32: ---
C33: 22 | D33: ETICS EPS (100 mm) [Weber] | E33: ETICS EPS (20 cm) [Atlas] | F33: ETICS EPS (20 cm) [Atlas] | G33: ETICS EPS (20 cm) [Atlas] | H33: External Insulation | J33: 100 | K33: 2.875 | L33: R [(m²·K)/W] | M33: Cype | O33: 1 | P33: m²/m² | Q33: 43.35 | R33: Cype | T33: 0.13 | U33: 198.8 | V33: 0.0378 | W33: 0.0043 | X33: 0.0046 | Y33: 11.9 | Z33: 1.30634e-06 | AA33: Atlas | AC33: --- | AD33: --- | AE33: ---
C34: 23 | D34: ETICS EPS (120 mm) [Weber] | E34: ETICS EPS (50 mm) | F34: ETICS EPS (50 mm) | G34: ETICS EPS (50 mm) | H34: External Insulation | J34: 120 | K34: 3.45 | L34: R [(m²·K)/W] | M34: Cype | O34: 1 | P34: m²/m² | Q34: 46.4 | R34: Cype | T34: 0.156 | U34: 238.56 | V34: 0.04536 | W34: 0.00516 | X34: 0.00552 | Y34: 14.28 | Z34: 1.567608e-06 | AC34: --- | AD34: --- | AE34: ---
C35: 24 | D35: ETICS EPS (150 mm) [Weber] | E35: ETICS EPS (70 mm) | F35: ETICS EPS (70 mm) | G35: ETICS EPS (70 mm) | H35: External Insulation | J35: 150 | K35: 4.3125 | L35: R [(m²·K)/W] | M35: Cype | O35: 1 | P35: m²/m² | Q35: 50.975 | R35: Cype | T35: 0.195 | U35: 298.2 | V35: 0.0567 | W35: 0.00645 | X35: 0.0069 | Y35: 17.85 | Z35: 1.95951e-06 | AC35: --- | AD35: --- | AE35: ---
C36: 25 | D36: Steel C90/U93 (90 mm) [Pertecno] | E36: Steel Stud (90 mm) [Pertecno] | F36: Steel Stud (90 mm) [Pertecno] | G36: Steel Stud (90 mm) [Pertecno] | H36: LSF Structure (Studs/Tracks) | J36: 90 | K36: 50 | L36: λ [W/(m·K)] | M36: Pertecno | O36: --- | P36: m/m² | Q36: 6.23482 | R36: Pertecno | T36: 1.31188376e-07 | U36: 72.9013 | V36: 2.576412e-05 | W36: 1.501694e-06 | X36: 0.0004660346 | Y36: 0.00553128 | Z36: 0 | AA36: Pertecno | AC36: 43 | AD36: 90 | AE36: 1.5
C37: 26 | D37: Steel C150/U153 (150 mm) [Pertecno] | E37: Steel Stud (150 mm) [Pertecno] | F37: Steel Stud (150 mm) [Pertecno] | G37: Steel Stud (150 mm) [Pertecno] | H37: LSF Structure (Studs/Tracks) | J37: 150 | K37: 50 | L37: λ [W/(m·K)] | M37: Pertecno | O37: --- | P37: m/m² | Q37: 8.04924 | R37: Pertecno | T37: 1.69366032e-07 | U37: 94.1166 | V37: 3.326184e-05 | W37: 1.938708e-06 | X37: 0.0006016572 | Y37: 0.00714096 | Z37: 0 | AA37: Pertecno | AC37: 43 | AD37: 150 | AE37: 1.5
C38: 27 | D38: Steel C200/U204 (200 mm) [Pertecno] | E38: Steel Stud (200 mm) [Pertecno] | F38: Steel Stud (200 mm) [Pertecno] | G38: Steel Stud (200 mm) [Pertecno] | H38: LSF Structure (Studs/Tracks) | J38: 200 | K38: 50 | L38: λ [W/(m·K)] | M38: Pertecno | O38: --- | P38: m/m² | Q38: 12.74977 | R38: Pertecno | T38: 2.68271036e-07 | U38: 149.07805 | V38: 5.268582e-05 | W38: 3.070859e-06 | X38: 0.0009530081 | Y38: 0.01131108 | Z38: 0 | AA38: Pertecno | AC38: 43 | AD38: 200 | AE38: 1.5
C39: 28 | D39: Steel C250/U255 (250 mm) [Pertecno] | E39: Steel Stud (250 mm) [Pertecno] | F39: Steel Stud (250 mm) [Pertecno] | G39: Steel Stud (250 mm) [Pertecno] | H39: LSF Structure (Studs/Tracks) | J39: 250 | K39: 50 | L39: λ [W/(m·K)] | M39: Pertecno | O39: --- | P39: m/m² | Q39: 18.46031 | R39: Pertecno | T39: 3.88427908e-07 | U39: 215.84915 | V39: 7.628346e-05 | W39: 4.446277e-06 | X39: 0.0013798543 | Y39: 0.01637724 | Z39: 0 | AA39: Pertecno | AC39: 43 | AD39: 250 | AE39: 1.5
C40: 29 | D40: TB Strip Aerogel (10 mm) [Spacetherm] | H40: Thermal Break Strip | J40: 10 | K40: 0.015 | L40: λ [W/(m·K)] | M40: Spacetherm | O40: --- | P40: m/m² | Q40: 3.86 | R40: Spacetherm | T40: 2.44495e-06 | U40: 4.57895 | V40: 0.0030195 | W40: 0.0003103 | X40: 0.00020785 | Y40: 0.624 | Z40: 1.7075e-07 | AA40: Spacetherm | AC40: --- | AD40: --- | AE40: ---
C41: 30 | D41: TB Strip Rubber (10 mm) [Acousticork] | H41: Thermal Break Strip | J41: 10 | K41: 0.122 | L41: λ [W/(m·K)] | M41: Acousticork | O41: --- | P41: m/m² | Q41: 0.77 | R41: Acousticork | AC41: --- | AD41: --- | AE41: ---
C42: 31 | D42: TB Strip Aerogel/Rubber (10 mm) [T4BI] | H42: Thermal Break Strip | J42: 10 | K42: 0.023 | L42: λ [W/(m·K)] | M42: Tyre4BuildIns | O42: --- | P42: m/m² | Q42: 110.82 | R42: Tyre4BuildIns | AC42: --- | AD42: --- | AE42: ---
C43: 32 | D43: TB Strip Rubber and Cork (10 mm) [Acousticork] | E43: TB Strip Rubber and Cork (10 mm) | F43: TB Strip Rubber and Cork (10 mm) | G43: TB Strip Rubber and Cork (10 mm) | H43: Thermal Break Strip | J43: 10 | K43: 0.089 | L43: λ [W/(m·K)] | M43: Acousticork | O43: --- | P43: m/m² | Q43: 1.92 | R43: Acousticork | AC43: --- | AD43: --- | AE43: ---
C44: 33 | D44: TB Strip XPS (10 mm) [IFoam] | H44: Thermal Break Strip | J44: 10 | K44: 0.035 | L44: λ [W/(m·K)] | M44: IFoam | O44: --- | P44: m²/m² | Q44: 0.09 | R44: IFoam | T44: 3.764705882e-07 | U44: 16.44117647 | V44: 0.003058823529 | W44: 0.0003970588235 | X44: 0.0001852941176 | Y44: 0.7558823529 | Z44: 2.505882353e-08 | AA44: Danosa | AC44: --- | AD44: --- | AE44: ---
C45: 34 | D45: Air Cavity (10 mm) [ISO 6946] | H45: Air Cavity | J45: 10 | K45: --- | L45: R [(m²·K)/W] | M45: ISO 6946 | O45: --- | P45: m²/m² | Q45: 0 | AC45: --- | AD45: --- | AE45: ---
C46: 35 | D46: Air Cavity (15 mm) [ISO 6946] | H46: Air Cavity | J46: 15 | K46: --- | L46: R [(m²·K)/W] | M46: ISO 6946 | O46: --- | P46: m²/m² | Q46: 0 | AC46: --- | AD46: --- | AE46: ---
C47: 36 | D47: Air Cavity (20 mm) [ISO 6946] | H47: Air Cavity | J47: 20 | K47: --- | L47: R [(m²·K)/W] | M47: ISO 6946 | O47: --- | P47: m²/m² | Q47: 0 | AC47: --- | AD47: --- | AE47: ---
C48: 37 | D48: Air Cavity (25 mm) [ISO 6946] | H48: Air Cavity | J48: 25 | K48: --- | L48: R [(m²·K)/W] | M48: ISO 6946 | O48: --- | P48: m²/m² | Q48: 0 | AC48: --- | AD48: --- | AE48: ---
C49: 38 | D49: Air Cavity (90 mm) [ISO 6946] | H49: Air Cavity | J49: 90 | K49: --- | L49: R [(m²·K)/W] | M49: ISO 6946 | O49: --- | P49: m²/m² | Q49: 0 | AC49: --- | AD49: --- | AE49: ---
C50: 39 | D50: Air Cavity (150 mm) [ISO 6946] | H50: Air Cavity | J50: 150 | K50: --- | L50: R [(m²·K)/W] | M50: ISO 6946 | O50: --- | P50: m²/m² | Q50: 0 | AC50: --- | AD50: --- | AE50: ---
C51: 40 | D51: Air Cavity (200 mm) [ISO 6946] | H51: Air Cavity | J51: 200 | K51: --- | L51: R [(m²·K)/W] | M51: ISO 6946 | O51: --- | P51: m²/m² | Q51: 0 | AC51: --- | AD51: --- | AE51: ---
C52: 41 | D52: Mortar (10 mm) | H52: Other | J52: 10 | K52: 1.8 | L52: λ [W/(m·K)] | M52: ITE50 | O52: 1 | P52: m²/m² | Q52: 2.44 | R52: Cype | T52: 3.17e-06 | U52: 9.05 | V52: 0.00488 | W52: 0.000998 | X52: 0.000245 | Y52: 1.42 | Z52: 9.66e-08 | AA52: EPD27 | AC52: --- | AD52: --- | AE52: ---
C53: 42
C54: =C53+1 -> 43
C55: =C54+1 -> 44
C56: 45
C57: 46
C58: 47
C59: 48
C60: 49
C61: 50
C62: 51
C63: 52
C64: 53
C65: 54
C66: 55
C67: 56
C68: 57
C69: 58
C70: 59
C71: 60
C72: 61
C73: 62
C74: 63
C75: 64
C76: 65
C77: =C76+1 -> 66
C78: 67
C79: 68
C80: 69
C81: 70
C82: 71
C83: 72
C84: 73
C85: 74
C86: 75
C87: 76
C88: 77
C89: 78
C90: 79
C91: 80

Sheet Loc_DB
B7: User name: | D7: ='Start Menu'!D7:I7 -> Telmo Miguel Martins Ribeiro | J7: File name: | L7: ='Start Menu'!L7:Q7 -> Tyre4BuildIns Project | R7: Date: | T7: ='Start Menu'!T7:U7 -> 2022-06-25
F10: # | G10: Local | J10: Heating Degree-Days | N10: Cooling Degree-Days
J11: (Ref. Temp. 18 ºC) | N11: (Ref. Temp. 25 ºC)
F12: 1 | G12: --- | J12: --- | N12: ---
F13: =F12+1 -> 2 | G13: Copenhagen_DK | J13: 6272 | N13: 0
F14: =F13+1 -> 3 | G14: Helsinki_FI | J14: 4854 | N14: 4
F15: 4 | G15: Minsk_BY | J15: 4452 | N15: 5
F16: 5 | G16: Oslo_NO | J16: 6334 | N16: 0
F17: 6 | G17: Stockholm_SE | J17: 4351 | N17: 3
F18: 7 | G18: Berlin_DE | J18: 3211 | N18: 28
F19: 8 | G19: Brussels_BE | J19: 2974 | N19: 16
F20: 9 | G20: Vienna_AT | J20: 3258 | N20: 35
F21: 10 | G21: London_GB | J21: 3008 | N21: 6
F22: 11 | G22: Prague_CZ | J22: 3809 | N22: 15
F23: 12 | G23: Athens_GR | J23: 1142 | N23: 269
F24: 13 | G24: Coimbra_PT | J24: 1485 | N24: 87
F25: 14 | G25: Madrid_SP | J25: 2066 | N25: 212
F26: 15 | G26: Marseille_FR | J26: 1776 | N26: 106
F27: 16 | G27: Rome_IT | J27: 1508 | N27: 73
F28: 17
F29: 18
F30: 19
F31: 20
F32: 21
F33: 22
F34: 23
F35: 24
F36: 25
F37: 26
F38: 27
F39: =F38+1 -> 28
F40: =F39+1 -> 29
F41: =F40+1 -> 30
F42: =F41+1 -> 31
F43: 32
F44: 33
F45: 34
F46: 35
F47: 36
F48: 37
F49: 38
F50: 39
F51: 40
F52: 41
F53: 42
F54: 43
F55: 44
F56: 45
F57: 46
F58: 47
F59: 48
F60: 49
F61: =F60+1 -> 50

Sheet Calculation
B2: DATABASE 1 | BB2: DATABASE 2 | BT2: INPUTS | DJ2: MODULE 1 | GA2: MODULE 2 | GR2: MODULE 3 | IV2: MODULE 4 | KQ2: MODULE 5
C6: 1 | D6: 2 | E6: 3 | F6: 4 | G6: 5 | H6: 6 | I6: 7 | J6: 8 | K6: 9 | L6: 10 | M6: 11 | N6: 12 | O6: 13 | P6: 14 | Q6: 15 | R6: 16 | S6: 17 | T6: 18 | U6: 19 | V6: 20 | W6: 21 | X6: 22 | Y6: 23 | Z6: 24 | AA6: 25 | AB6: 26 | AC6: 27 | AD6: 28 | AE6: 29 | AF6: 30 | AG6: 31 | AH6: 32 | AI6: 33 | AJ6: 34 | AK6: 35 | AL6: 36 | AM6: 37
C7: Ref. | D7: Material | E7: Type | F7: e | G7: λ or R | H7: λ or R value | I7: λ | J7: R | K7: Ref | L7: Ucons | N7: Ucost | P7: ADPE | R7: ADPF | T7: AP | V7: EP | X7: POCP | Z7: GWP | AB7: ODP | AD7: FL | AF7: SD | AH7: ST | AJ7: F1 | AK7: F2 | AL7: F3 | AM7: F4 | AO7: Assistant | BC7: PORTUGAL | BN7: OTHERS | DK7: SOLUTION A | GB7: PORTUGAL | IW7: SOLUTION A | KR7: WEIGHTS (MODULES)
BC8: Municipality | BD8: Ref | BF8: Region | BG8: REF | BI8: HEATING SEASON | BK8: COOLING SEASON | BN8: # | BO8: Local | BP8: HDD | BQ8: CDD | BU8: SOLUTION A | GS8: INDICATORS VALUE A
C9: 1 | D9: =Mat_DB!D12 -> --- | E9: --- | F9: --- | H9: --- | I9: --- | J9: --- | K9: --- | L9: --- | M9: --- | N9: --- | O9: =IF($AM9=1,$AO$10,IF($AM9=2,$AO$11,"---")) -> --- | P9: --- | Q9: =IF($AM9=1,$AP$10,IF($AM9=2,$AP$11,"---")) -> --- | R9: --- | S9: =IF($AM9=1,$AQ$10,IF($AM9=2,$AQ$11,"---")) -> --- | T9: --- | U9: =IF($AM9=1,$AR$10,IF($AM9=2,$AR$11,"---")) -> --- | V9: --- | W9: =IF($AM9=1,$AS$10,IF($AM9=2,$AS$11,"---")) -> --- | X9: --- | Y9: =IF($AM9=1,$AT$10,IF($AM9=2,$AT$11,"---")) -> --- | Z9: --- | AA9: =IF($AM9=1,$AU$10,IF($AM9=2,$AU$11,"---")) -> --- | AB9: --- | AC9: =IF($AM9=1,$AV$10,IF($AM9=2,$AV$11,"---")) -> --- | AD9: --- | AE9: =IF($AM9=1,$AW$10,IF($AM9=2,$AW$11,"---")) -> --- | AF9: --- | AG9: =IF($AM9=1,$AX$10,IF($AM9=2,$AX$11,"---")) -> --- | AH9: --- | AI9: =IF($AM9=1,$AY$10,IF($AM9=2,$AY$11,"---")) -> --- | AJ9: 0 | AK9: 0 | AL9: 0 | AM9: 0 | AO9: --- | AP9: --- | AQ9: --- | AR9: --- | AS9: --- | AT9: --- | AU9: --- | AV9: --- | AW9: --- | AX9: --- | AY9: --- | BH9: z | BI9: GD | BK9: θext,v | BN9: 1 | BO9: =Loc_DB!G12 -> --- | BP9: =Loc_DB!J12 -> --- | BQ9: =Loc_DB!N12 -> --- | GD9: SOLUTION A | GG9: SOLUTION B | GL9: SOLUTION A | GN9: SOLUTION B | KR9: MODULE 1 | KT9: 0
C10: =C9+1 -> 2 | D10: =Mat_DB!D13 -> Gypsum Board (6 mm) [Gyptec] | E10: =Mat_DB!H13 -> Sheathing Panel | F10: =Mat_DB!J13 -> 6 | G10: =Mat_DB!L13 -> λ [W/(m·K)] | H10: =Mat_DB!K13 -> 0.2 | I10: =IF(AK10=1,"---",IF(AK10=2,H10,"---")) -> 0.2 | J10: =IF(AK10=2,"---",IF(AK10=1,H10,"---")) -> --- | K10: =Mat_DB!M13 -> Gyptec | L10: =IF(Mat_DB!O13="","---",Mat_DB!O13) -> 1 | M10: =IF(Mat_DB!P13="","---",Mat_DB!P13) -> m²/m² | N10: =IF(Mat_DB!Q13="","---",Mat_DB!Q13) -> 5.03 | O10: €/m² | P10: =Mat_DB!T13 -> 2.448e-07 | Q10: kg SB-eq/m² | R10: =Mat_DB!U13 -> 0.168 | S10: MJ/m² | T10: =Mat_DB!V13 -> 0.00576 | U10: kg SO2-eq/m² | V10: =Mat_DB!W13 -> 0.000528 | W10: kg (PO4)3-eq/m² | X10: =Mat_DB!X13 -> 0.0004512 | Y10: kg C2H4-eq/m² | Z10: =Mat_DB!Y13 -> 1.2 | AA10: kg CO2-eq/m² | AB10: =Mat_DB!Z13 -> 2.928e-08 | AC10: kg CFC11-eq/m² | AD10: =Mat_DB!AC13 -> --- | AE10: mm | AF10: =Mat_DB!AD13 -> --- | AG10: mm | AH10: =Mat_DB!AE13 -> --- | AI10: mm | AJ10: 1 | AK10: =IF(G10=$CS$67,1,IF(G10=$CS$68,2,"---")) -> 2 | AL10: =IF(E10=$CW$67,1,IF(E10=$CW$68,2,IF(E10=$CW$69,3,IF(E10=$CW$70,4,IF(E10=$CW$71,5,IF(E10=$CW$72,6,IF(E10=$CW$73,7,"---"))))))) -> 5 | AM10: =IF(M10=$DA$67,1,IF(M10=$DA$68,2,"---")) -> 2 | AO10: €/m | AP10: kg SB-eq/m | AQ10: MJ/m | AR10: kg SO2-eq/m | AS10: kg (PO4)3-eq/m | AT10: kg C2H4-eq/m | AU10: kg CO2-eq/m | AV10: kg CFC11-eq/m | AW10: mm | AX10: mm | AY10: mm | BH10: REF | BI10: REF | BJ10: a | BK10: REF | BL10: a | BN10: =BN9+1 -> 2 | BO10: =Loc_DB!G13 -> Copenhagen_DK | BP10: =Loc_DB!J13 -> 6272 | BQ10: =Loc_DB!N13 -> 0 | DK10: WALL | DQ10: AREA FACTORS | DW10: R-VALUE | U-VALUE | GB10: # | GD10: =VLOOKUP($BW$14,$BC$9:$BD$319,2) -> 10 | GG10: =VLOOKUP($BW$34,$BC$9:$BD$319,2) -> 10 | GK10: HDD | GL10: =GD18 -> 1312 | GN10: =GG18 -> 1312 | IY10: Material 1 | JB10: Unit Cost | JH10: Unit Consumption | JN10: Material 2 | JQ10: Unit Cost | JW10: Unit Consumption | KC10: Custo 1 | KF10: Custo 2 | KJ10: COST A | KR10: MODULE 2 | KT10: =BW52 -> 0.35
C11: =C10+1 -> 3 | D11: =Mat_DB!D14 -> Gypsum Board (9,5 mm) [Gyptec] | E11: =Mat_DB!H14 -> Sheathing Panel | F11: =Mat_DB!J14 -> 9.5 | G11: =Mat_DB!L14 -> λ [W/(m·K)] | H11: =Mat_DB!K14 -> 0.2 | I11: =IF(AK11=1,"---",IF(AK11=2,H11,"---")) -> 0.2 | J11: =IF(AK11=2,"---",IF(AK11=1,H11,"---")) -> --- | K11: =Mat_DB!M14 -> Gyptec | L11: =IF(Mat_DB!O14="","---",Mat_DB!O14) -> 1 | M11: =IF(Mat_DB!P14="","---",Mat_DB!P14) -> m²/m² | N11: =IF(Mat_DB!Q14="","---",Mat_DB!Q14) -> 3.51 | O11: €/m² | P11: =Mat_DB!T14 -> 3.876e-07 | Q11: kg SB-eq/m² | R11: =Mat_DB!U14 -> 0.266 | S11: MJ/m² | T11: =Mat_DB!V14 -> 0.00912 | U11: kg SO2-eq/m² | V11: =Mat_DB!W14 -> 0.000836 | W11: kg (PO4)3-eq/m² | X11: =Mat_DB!X14 -> 0.0007144 | Y11: kg C2H4-eq/m² | Z11: =Mat_DB!Y14 -> 1.9 | AA11: kg CO2-eq/m² | AB11: =Mat_DB!Z14 -> 4.636e-08 | AC11: kg CFC11-eq/m² | AD11: =Mat_DB!AC14 -> --- | AE11: mm | AF11: =Mat_DB!AD14 -> --- | AG11: mm | AH11: =Mat_DB!AE14 -> --- | AI11: mm | AJ11: 1 | AK11: =IF(G11=$CS$67,1,IF(G11=$CS$68,2,"---")) -> 2 | AL11: =IF(E11=$CW$67,1,IF(E11=$CW$68,2,IF(E11=$CW$69,3,IF(E11=$CW$70,4,IF(E11=$CW$71,5,IF(E11=$CW$72,6,IF(E11=$CW$73,7,"---"))))))) -> 5 | AM11: =IF(M11=$DA$67,1,IF(M11=$DA$68,2,"---")) -> 2 | AO11: €/m² | AP11: kg SB-eq/m² | AQ11: MJ/m² | AR11: kg SO2-eq/m² | AS11: kg (PO4)3-eq/m² | AT11: kg C2H4-eq/m² | AU11: kg CO2-eq/m² | AV11: kg CFC11-eq/m² | AW11: mm | AX11: mm | AY11: mm | BC11: --- | BD11: 0 | BH11: m | BI11: ⁰C | BJ11: ⁰C/km | BK11: ⁰C | BL11: ⁰C/km | BN11: 3 | BO11: =Loc_DB!G14 -> Helsinki_FI | BP11: =Loc_DB!J14 -> 4854 | BQ11: =Loc_DB!N14 -> 4 | BU11: Building Features 1 | CA11: Building Features 2 | CG11: Location | CK11: Wall Composition | GB11: L | GD11: =BW14 -> Coimbra | GG11: =BW34 -> Coimbra | GK11: CDD | GL11: =(25-GD19)*2928/24 -> 500.2 | GN11: =(25-GG19)*2928/24 -> 500.2 | GS11: Layers | GU11: Material 1 | GX11: Unit Consumption | HD11: Indicator | HJ11: Indicator | HP11: Indicator | HV11: Indicator | IB11: Indicator | IH11: Indicator | IN11: Indicator | IW11: LAYER 1 | IY11: =CM14 -> Gypsum Board (12,5 mm) [Gyptec] | JB11: =VLOOKUP(CO14,$C$9:$AV$61,12) -> 3.25 | JE11: =VLOOKUP(CO14,$C$9:$AV$61,13) -> €/m² | JH11: =IF(VLOOKUP(CO14,$C$9:$AV$61,36)=7,1,VLOOKUP(CO14,$C$9:$AV$61,10)) -> 1 | JK11: =VLOOKUP(CO14,$C$9:$AV$61,11) -> m²/m² | JN11: =CV14 -> --- | JQ11: =VLOOKUP(CX14,$C$9:$AV$61,12) -> --- | JT11: =VLOOKUP(CX14,$C$9:$AV$61,13) -> --- | JW11: =IF(VLOOKUP(CX14,$C$9:$AV$61,36)=1,$AP$17,IF(VLOOKUP(CX14,$C$9:$AV$61,36)=6,$AP$17,VLOOKUP(CX14,$C$9:$AV$61,10))) -> --- | JZ11: =VLOOKUP(CX14,$C$9:$AV$61,11) -> --- | KC11: =IF(CO14=1,0,JB11*JH11) -> 3.25 | KF11: =IF(CX14=1,0,JQ11*JW11) -> 0 | KR11: MODULE 3 | KT11: =BW53 -> 0.15
C12: =C11+1 -> 4 | D12: =Mat_DB!D15 -> Gypsum Board (12,5 mm) [Gyptec] | E12: =Mat_DB!H15 -> Sheathing Panel | F12: =Mat_DB!J15 -> 12.5 | G12: =Mat_DB!L15 -> λ [W/(m·K)] | H12: =Mat_DB!K15 -> 0.175 | I12: 0.175 | J12: --- | K12: =Mat_DB!M15 -> Gyptec | L12: =IF(Mat_DB!O15="","---",Mat_DB!O15) -> 1 | M12: =IF(Mat_DB!P15="","---",Mat_DB!P15) -> m²/m² | N12: =IF(Mat_DB!Q15="","---",Mat_DB!Q15) -> 3.25 | O12: €/m² | P12: =Mat_DB!T15 -> 5.1e-07 | Q12: kg SB-eq/m² | R12: =Mat_DB!U15 -> 0.35 | S12: MJ/m² | T12: =Mat_DB!V15 -> 0.012 | U12: kg SO2-eq/m² | V12: =Mat_DB!W15 -> 0.0011 | W12: kg (PO4)3-eq/m² | X12: =Mat_DB!X15 -> 0.00094 | Y12: kg C2H4-eq/m² | Z12: =Mat_DB!Y15 -> 2.5 | AA12: kg CO2-eq/m² | AB12: =Mat_DB!Z15 -> 6.1e-08 | AC12: kg CFC11-eq/m² | AD12: =Mat_DB!AC15 -> --- | AE12: mm | AF12: =Mat_DB!AD15 -> --- | AG12: mm | AH12: =Mat_DB!AE15 -> --- | AI12: mm | AJ12: 1 | AK12: 2 | AL12: 5 | AM12: 2 | BC12: Abrantes | BD12: 20 | BN12: 4 | BO12: =Loc_DB!G15 -> Minsk_BY | BP12: =Loc_DB!J15 -> 4452 | BQ12: =Loc_DB!N15 -> 5 | DK12: SD | DM12: =VLOOKUP($CE$20,$C$9:$AV$61,30)*0.001 -> 0.09 | DN12: =VLOOKUP(#REF!,$C$9:$AV$61,7) ->  | DO12: =VLOOKUP(#REF!,$C$9:$AV$61,7) ->  | DQ12: F_FL_W | DS12: =DM15/DM17 -> 0.4673913043 | DW12: CHOSEN METHOD | DY12: =SA_UCalc!H26 -> 1 | GB12: ALT | GD12: =$BW$15*0.001 -> 0.075 | GG12: =$BW$35*0.001 -> 0.075 | GS12: LAYER 1 | GU12: =CM14 -> Gypsum Board (12,5 mm) [Gyptec] | GX12: =IF(VLOOKUP(CO14,$C$9:$AV$61,36)=7,1,VLOOKUP(CO14,$C$9:$AV$61,10)) -> 1 | HA12: =VLOOKUP(CO14,$C$9:$AV$61,11) -> m²/m² | HD12: =VLOOKUP(CO14,$C$9:$AV$61,14) -> 5.1e-07 | HG12: kg SB-eq | HJ12: =VLOOKUP(CO14,$C$9:$AV$61,16) -> 0.35 | HM12: MJ | HP12: =VLOOKUP(CO14,$C$9:$AV$61,18) -> 0.012 | HS12: kg SO2-eq | HV12: =VLOOKUP(CO14,$C$9:$AV$61,20) -> 0.0011 | HY12: kg (PO4)3-eq | IB12: =VLOOKUP(CO14,$C$9:$AV$61,22) -> 0.00094 | IE12: kg C2H4-eq | IH12: =VLOOKUP(CO14,$C$9:$AV$61,24) -> 2.5 | IK12: kg CO2-eq | IN12: =VLOOKUP(CO14,$C$9:$AV$61,26) -> 6.1e-08 | IQ12: kg CFC11-eq | IW12: LAYER 2 | IY12: OSB (12 mm) [Kronospan] | JB12: 7.32 | JE12: €/m² | JH12: =IF(VLOOKUP(CO15,$C$9:$AV$61,36)=7,1,VLOOKUP(CO15,$C$9:$AV$61,10)) -> 1 | JK12: m²/m² | JN12: --- | JQ12: =VLOOKUP(CX15,$C$9:$AV$61,12) -> --- | JT12: --- | JW12: --- | JZ12: --- | KC12: 7.32 | KF12: =IF(CX15=1,0,JQ12*JW12) -> 0 | KJ12: Unit | KL12: =SUM(KC11:KE20)+SUM(KF11:KH20) -> 43.86708985 | KR12: MODULE 4 | KT12: =BW54 -> 0.5
C13: 5 | D13: =Mat_DB!D16 -> Gypsum Board (15 mm) [Gyptec] | E13: =Mat_DB!H16 -> Sheathing Panel | F13: =Mat_DB!J16 -> 15 | G13: =Mat_DB!L16 -> λ [W/(m·K)] | H13: =Mat_DB!K16 -> 0.185 | I13: 0.185 | J13: --- | K13: =Mat_DB!M16 -> Gyptec | L13: =IF(Mat_DB!O16="","---",Mat_DB!O16) -> 1 | M13: =IF(Mat_DB!P16="","---",Mat_DB!P16) -> m²/m² | N13: =IF(Mat_DB!Q16="","---",Mat_DB!Q16) -> 3.9 | O13: €/m² | P13: =Mat_DB!T16 -> 6.12e-07 | Q13: kg SB-eq/m² | R13: =Mat_DB!U16 -> 0.42 | S13: MJ/m² | T13: =Mat_DB!V16 -> 0.0144 | U13: kg SO2-eq/m² | V13: =Mat_DB!W16 -> 0.00132 | W13: kg (PO4)3-eq/m² | X13: =Mat_DB!X16 -> 0.001128 | Y13: kg C2H4-eq/m² | Z13: =Mat_DB!Y16 -> 3 | AA13: kg CO2-eq/m² | AB13: =Mat_DB!Z16 -> 7.32e-08 | AC13: kg CFC11-eq/m² | AD13: =Mat_DB!AC16 -> --- | AE13: mm | AF13: =Mat_DB!AD16 -> --- | AG13: mm | AH13: =Mat_DB!AE16 -> --- | AI13: mm | AJ13: 1 | AK13: 2 | AL13: 5 | AM13: 2 | AO13: Unit consumption of steel | AS13: Unit consumption of steel | BC13: Águeda | BD13: 9 | BF13: --- | BG13: 0 | BH13: --- | BI13: --- | BJ13: --- | BK13: --- | BL13: --- | BN13: 5 | BO13: =Loc_DB!G16 -> Oslo_NO | BP13: =Loc_DB!J16 -> 6334 | BQ13: =Loc_DB!N16 -> 0 | BU13: COUNTRY | BW13: =SA_Inp1!C16 -> 1 - Portugal | BY13: =IF(BW13=DE67,1,2) -> 1 | CA13: COP | CC13: =SA_Inp1!P20 -> 3.5 | CG13: Portugal | CI13: =IF(BY13=1,"1 - Portugal [ENABLED]", "1 - Portugal [DISABLED]") -> 1 - Portugal [ENABLED] | CK13: LAYERS | CM13: Material 1 | CP13: Lambda | CS13: R | CV13: Material 2 | CY13: Lambda | DB13: R | DE13: e | DK13: ST | DM13: =VLOOKUP($CE$20,$C$9:$AV$61,32)*0.001 -> 0.0015 | DQ13: F_FL_W- | DS13: =1-DS12 -> 0.5326086957 | DW13: CM | DY13: =EH49 -> 1.887022152 | GB13: C1 | GD13: =VLOOKUP($GD$10,$BG$12:$BS$42,2)*0.001 -> 0.067 | GG13: =VLOOKUP($GG$10,$BG$12:$BS$42,2)*0.001 -> 0.067 | GS13: LAYER 2 | GU13: OSB (12 mm) [Kronospan] | GX13: =IF(VLOOKUP(CO15,$C$9:$AV$61,36)=7,1,VLOOKUP(CO15,$C$9:$AV$61,10)) -> 1 | HA13: m²/m² | HD13: 9.9e-07 | HG13: kg SB-eq | HJ13: 51.36 | HM13: MJ | HP13: 0.011028 | HS13: kg SO2-eq | HV13: 0.002628 | HY13: kg (PO4)3-eq | IB13: 0.006264 | IE13: kg C2H4-eq | IH13: -9.036 | IK13: kg CO2-eq | IN13: 1.1316e-12 | IQ13: kg CFC11-eq | IW13: LAYER 3 | IY13: Mineral wool (90 mm) [Volcalis] | JB13: 2.916 | JE13: €/m² | JH13: =IF(VLOOKUP(CO16,$C$9:$AV$61,36)=7,1,VLOOKUP(CO16,$C$9:$AV$61,10)) -> 1 | JK13: m²/m² | JN13: Steel C90/U93 (90 mm) [Pertecno] | JQ13: 6.23482 | JT13: €/m | JW13: =IF(VLOOKUP(CX16,$C$9:$AV$61,36)=1,$AP$17,IF(VLOOKUP(CX16,$C$9:$AV$61,36)=6,$AP$17,VLOOKUP(CX16,$C$9:$AV$61,10))) -> 3.307407407 | JZ13: m/m² | KC13: 2.916 | KF13: =IF(CX16=1,0,JQ13*JW13) -> 20.62108985 | KJ13: Total | KL13: =KL12*GD36 -> 10517.57346
C14: 6 | D14: =Mat_DB!D17 -> Gypsum Board (18 mm) [Gyptec] | E14: =Mat_DB!H17 -> Sheathing Panel | F14: =Mat_DB!J17 -> 18 | G14: =Mat_DB!L17 -> λ [W/(m·K)] | H14: =Mat_DB!K17 -> 0.2 | I14: 0.2 | J14: --- | K14: =Mat_DB!M17 -> Gyptec | L14: =IF(Mat_DB!O17="","---",Mat_DB!O17) -> 1 | M14: =IF(Mat_DB!P17="","---",Mat_DB!P17) -> m²/m² | N14: =IF(Mat_DB!Q17="","---",Mat_DB!Q17) -> 5.21 | O14: €/m² | P14: =Mat_DB!T17 -> 7.344e-07 | Q14: kg SB-eq/m² | R14: =Mat_DB!U17 -> 0.504 | S14: MJ/m² | T14: =Mat_DB!V17 -> 0.01728 | U14: kg SO2-eq/m² | V14: =Mat_DB!W17 -> 0.001584 | W14: kg (PO4)3-eq/m² | X14: =Mat_DB!X17 -> 0.0013536 | Y14: kg C2H4-eq/m² | Z14: =Mat_DB!Y17 -> 3.6 | AA14: kg CO2-eq/m² | AB14: =Mat_DB!Z17 -> 8.784e-08 | AC14: kg CFC11-eq/m² | AD14: =Mat_DB!AC17 -> --- | AE14: mm | AF14: =Mat_DB!AD17 -> --- | AG14: mm | AH14: =Mat_DB!AE17 -> --- | AI14: mm | AJ14: 1 | AK14: 2 | AL14: 5 | AM14: 2 | BC14: Aguiar da Beira | BD14: 15 | BF14: Minho-Lima | BG14: 1 | BH14: 268 | BI14: 1629 | BJ14: 1500 | BK14: 20.5 | BL14: -4 | BN14: 6 | BO14: =Loc_DB!G17 -> Stockholm_SE | BP14: =Loc_DB!J17 -> 4351 | BQ14: =Loc_DB!N17 -> 3 | BU14: PORTUGAL | BW14: =SA_Inp1!H16 -> Coimbra | CA14: EER | CC14: =SA_Inp1!P21 -> 3.5 | CG14: Other Locations | CI14: =IF(BY13=2,"2 - Other Locations [ENABLED]", "2 - Other Locations [DISABLED]") -> 2 - Other Locations [DISABLED] | CK14: LAYER 1 | CM14: =SA_Inp2!D17 -> Gypsum Board (12,5 mm) [Gyptec] | CO14: =IF(CM14=$D$9,1,IF(CM14=$D$10,2,IF(CM14=$D$11,3,IF(CM14=$D$12,4,IF(CM14=$D$13,5,IF(CM14=$D$14,6,IF(CM14=$D$15,7,IF(CM14=$D$16,8,IF(CM14=$D$17,9,IF(CM14=$D$18,10,IF(CM14=$D$19,11,IF(CM14=$D$20,12,IF(CM14=$D$21,13,IF(CM14=$D$22,14,IF(CM14=$D$23,15,IF(CM14=$D$24,16,IF(CM14=$D$25,17,IF(CM14=$D$26,18,IF(CM14=$D$27,19,IF(CM14=$D$28,20,IF(CM14=$D$29,21,IF(CM14=$D$30,22,IF(CM14=$D$31,23,IF(CM14=$D$32,24,IF(CM14=$D$33,25,IF(CM14=$D$34,26,IF(CM14=$D$35,27,IF(CM14=$D$36,28,IF(CM14=$D$37,29,IF(CM14=$D$38,30,IF(CM14=$D$39,31,IF(CM14=$D$40,32,IF(CM14=$D$41,33,IF(CM14=$D$42,34,IF(CM14=$D$43,35,IF(CM14=$D$44,36,IF(CM14=$D$45,37,IF(CM14=$D$46,38,IF(CM14=$D$47,39,IF(CM14=$D$48,40,IF(CM14=$D$49,41,IF(CM14=$D$50,42,IF(CM14=$D$51,43,IF(CM14=$D$52,44,IF(CM14=$D$53,45,IF(CM14=$D$54,46,IF(CM14=$D$55,47,IF(CM14=$D$56,48,IF(CM14=$D$57,49,IF(CM14=$D$58,50,0)))))))))))))))))))))))))))))))))))))))))))))))))) -> 4 | CP14: =DN32 -> 0.175 | CS14: =DR32 -> 0.07142857143 | CV14: =SA_Inp2!I17 -> --- | CX14: =IF(CV14=$D$9,1,IF(CV14=$D$10,2,IF(CV14=$D$11,3,IF(CV14=$D$12,4,IF(CV14=$D$13,5,IF(CV14=$D$14,6,IF(CV14=$D$15,7,IF(CV14=$D$16,8,IF(CV14=$D$17,9,IF(CV14=$D$18,10,IF(CV14=$D$19,11,IF(CV14=$D$20,12,IF(CV14=$D$21,13,IF(CV14=$D$22,14,IF(CV14=$D$23,15,IF(CV14=$D$24,16,IF(CV14=$D$25,17,IF(CV14=$D$26,18,IF(CV14=$D$27,19,IF(CV14=$D$28,20,IF(CV14=$D$29,21,IF(CV14=$D$30,22,IF(CV14=$D$31,23,IF(CV14=$D$32,24,IF(CV14=$D$33,25,IF(CV14=$D$34,26,IF(CV14=$D$35,27,IF(CV14=$D$36,28,IF(CV14=$D$37,29,IF(CV14=$D$38,30,IF(CV14=$D$39,31,IF(CV14=$D$40,32,IF(CV14=$D$41,33,IF(CV14=$D$42,34,IF(CV14=$D$43,35,IF(CV14=$D$44,36,IF(CV14=$D$45,37,IF(CV14=$D$46,38,IF(CV14=$D$47,39,IF(CV14=$D$48,40,IF(CV14=$D$49,41,IF(CV14=$D$50,42,IF(CV14=$D$51,43,IF(CV14=$D$52,44,IF(CV14=$D$53,45,IF(CV14=$D$54,46,IF(CV14=$D$55,47,IF(CV14=$D$56,48,IF(CV14=$D$57,49,IF(CV14=$D$58,50,0)))))))))))))))))))))))))))))))))))))))))))))))))) -> 1 | CY14: =DP32 -> --- | DB14: =DS32 -> --- | DE14: =DM32 -> 12.5 | DK14: SS | DM14: =CC19*0.001 -> 0.4 | DQ14: F_ST_W | DS14: =DM13/DM17 -> 0.01630434783 | DW14: GM1 | DY14: =EP49 -> 1.525061247 | GB14: C2 | GD14: =VLOOKUP($GD$10,$BG$12:$BS$42,3) -> 1304 | GG14: =VLOOKUP($GG$10,$BG$12:$BS$42,3) -> 1304 | GS14: LAYER 3 | GU14: Mineral wool (90 mm) [Volcalis] | GX14: =IF(VLOOKUP(CO16,$C$9:$AV$61,36)=7,1,VLOOKUP(CO16,$C$9:$AV$61,10)) -> 1 | HA14: m²/m² | HD14: 0.0001008 | HG14: kg SB-eq | HJ14: 31.14 | HM14: MJ | HP14: 0.00909 | HS14: kg SO2-eq | HV14: 0.001872 | HY14: kg (PO4)3-eq | IB14: 0.0006462 | IE14: kg C2H4-eq | IH14: 1.521 | IK14: kg CO2-eq | IN14: 1.593e-11 | IQ14: kg CFC11-eq | IW14: LAYER 4 | IY14: OSB (12 mm) [Kronospan] | JB14: 7.32 | JE14: €/m² | JH14: 1 | JK14: m²/m² | JN14: --- | JQ14: --- | JT14: --- | JW14: =IF(VLOOKUP(CX17,$C$9:$AV$61,36)=1,$AP$17,IF(VLOOKUP(CX17,$C$9:$AV$61,36)=6,$AP$17,VLOOKUP(CX17,$C$9:$AV$61,10))) -> --- | JZ14: --- | KC14: 7.32 | KF14: 0
C15: 7 | D15: =Mat_DB!D18 -> OSB (9 mm) [Kronospan] | E15: =Mat_DB!H18 -> Sheathing Panel | F15: =Mat_DB!J18 -> 9 | G15: =Mat_DB!L18 -> λ [W/(m·K)] | H15: =Mat_DB!K18 -> 0.13 | I15: 0.13 | J15: --- | K15: =Mat_DB!M18 -> Kronospan | L15: =IF(Mat_DB!O18="","---",Mat_DB!O18) -> 1 | M15: =IF(Mat_DB!P18="","---",Mat_DB!P18) -> m²/m² | N15: =IF(Mat_DB!Q18="","---",Mat_DB!Q18) -> 5.49 | O15: €/m² | P15: =Mat_DB!T18 -> 7.425e-07 | Q15: kg SB-eq/m² | R15: =Mat_DB!U18 -> 38.52 | S15: MJ/m² | T15: =Mat_DB!V18 -> 0.008271 | U15: kg SO2-eq/m² | V15: =Mat_DB!W18 -> 0.001971 | W15: kg (PO4)3-eq/m² | X15: =Mat_DB!X18 -> 0.004698 | Y15: kg C2H4-eq/m² | Z15: =Mat_DB!Y18 -> -6.777 | AA15: kg CO2-eq/m² | AB15: =Mat_DB!Z18 -> 8.487e-13 | AC15: kg CFC11-eq/m² | AD15: =Mat_DB!AC18 -> --- | AE15: mm | AF15: =Mat_DB!AD18 -> --- | AG15: mm | AH15: =Mat_DB!AE18 -> --- | AI15: mm | AJ15: 1 | AK15: 2 | AL15: 5 | AM15: 2 | AO15: Tracks | AP15: =(1/(BW26)*2) -> 0.7407407407 | AQ15: m/m² | AS15: Tracks | AT15: =(1/BW46)*2 -> 0.7407407407 | AU15: m/m² | BC15: Alandroal | BD15: 25 | BF15: Alto Trás-os-Montes | BG15: =BG14+1 -> 2 | BH15: 680 | BI15: 2015 | BJ15: 1400 | BK15: 21.5 | BL15: -7 | BN15: 7 | BO15: =Loc_DB!G18 -> Berlin_DE | BP15: =Loc_DB!J18 -> 3211 | BQ15: =Loc_DB!N18 -> 28 | BU15: ALTITUDE | BW15: =SA_Inp1!H17 -> 75 | CA15: ELECT. COST | CC15: =SA_Inp1!P26 -> 0.25 | CK15: LAYER 2 | CM15: =SA_Inp2!D18 -> OSB (12 mm) [Kronospan] | CO15: 8 | CP15: 0.13 | CS15: 0.09230769231 | CV15: =SA_Inp2!I18 -> --- | CX15: =IF(CV15=$D$9,1,IF(CV15=$D$10,2,IF(CV15=$D$11,3,IF(CV15=$D$12,4,IF(CV15=$D$13,5,IF(CV15=$D$14,6,IF(CV15=$D$15,7,IF(CV15=$D$16,8,IF(CV15=$D$17,9,IF(CV15=$D$18,10,IF(CV15=$D$19,11,IF(CV15=$D$20,12,IF(CV15=$D$21,13,IF(CV15=$D$22,14,IF(CV15=$D$23,15,IF(CV15=$D$24,16,IF(CV15=$D$25,17,IF(CV15=$D$26,18,IF(CV15=$D$27,19,IF(CV15=$D$28,20,IF(CV15=$D$29,21,IF(CV15=$D$30,22,IF(CV15=$D$31,23,IF(CV15=$D$32,24,IF(CV15=$D$33,25,IF(CV15=$D$34,26,IF(CV15=$D$35,27,IF(CV15=$D$36,28,IF(CV15=$D$37,29,IF(CV15=$D$38,30,IF(CV15=$D$39,31,IF(CV15=$D$40,32,IF(CV15=$D$41,33,IF(CV15=$D$42,34,IF(CV15=$D$43,35,IF(CV15=$D$44,36,IF(CV15=$D$45,37,IF(CV15=$D$46,38,IF(CV15=$D$47,39,IF(CV15=$D$48,40,IF(CV15=$D$49,41,IF(CV15=$D$50,42,IF(CV15=$D$51,43,IF(CV15=$D$52,44,IF(CV15=$D$53,45,IF(CV15=$D$54,46,IF(CV15=$D$55,47,IF(CV15=$D$56,48,IF(CV15=$D$57,49,IF(CV15=$D$58,50,0)))))))))))))))))))))))))))))))))))))))))))))))))) -> 1 | CY15: --- | DB15: --- | DE15: 12 | DK15: FL | DM15: =VLOOKUP($CE$20,$C$9:$AV$61,28)*0.001 -> 0.043 | DQ15: F_ST_W- | DS15: =1-DS14 -> 0.9836956522 | DW15: GM2 | DY15: =EX49 -> 1.361677396 | GB15: C3 | GD15: =VLOOKUP($GD$10,$BG$12:$BS$42,4) -> 1000 | GG15: =VLOOKUP($GG$10,$BG$12:$BS$42,4) -> 1000 | GS15: LAYER 4 | GU15: OSB (12 mm) [Kronospan] | GX15: 1 | HA15: m²/m² | HD15: 9.9e-07 | HG15: kg SB-eq | HJ15: 51.36 | HM15: MJ | HP15: 0.011028 | HS15: kg SO2-eq | HV15: 0.002628 | HY15: kg (PO4)3-eq | IB15: 0.006264 | IE15: kg C2H4-eq | IH15: -9.036 | IK15: kg CO2-eq | IN15: 1.1316e-12 | IQ15: kg CFC11-eq | IW15: LAYER 5 | IY15: Mortar (10 mm) | JB15: 2.44 | JE15: €/m² | JH15: 1 | JK15: m²/m² | JN15: --- | JQ15: --- | JT15: --- | JW15: --- | JZ15: --- | KC15: 2.44 | KF15: 0 | KR15: WEIGHTS (LCA)
C16: 8 | D16: =Mat_DB!D19 -> OSB (12 mm) [Kronospan] | E16: =Mat_DB!H19 -> Sheathing Panel | F16: =Mat_DB!J19 -> 12 | G16: =Mat_DB!L19 -> λ [W/(m·K)] | H16: =Mat_DB!K19 -> 0.13 | I16: 0.13 | J16: --- | K16: =Mat_DB!M19 -> Kronospan | L16: =IF(Mat_DB!O19="","---",Mat_DB!O19) -> 1 | M16: =IF(Mat_DB!P19="","---",Mat_DB!P19) -> m²/m² | N16: =IF(Mat_DB!Q19="","---",Mat_DB!Q19) -> 7.32 | O16: €/m² | P16: =Mat_DB!T19 -> 9.9e-07 | Q16: kg SB-eq/m² | R16: =Mat_DB!U19 -> 51.36 | S16: MJ/m² | T16: =Mat_DB!V19 -> 0.011028 | U16: kg SO2-eq/m² | V16: =Mat_DB!W19 -> 0.002628 | W16: kg (PO4)3-eq/m² | X16: =Mat_DB!X19 -> 0.006264 | Y16: kg C2H4-eq/m² | Z16: =Mat_DB!Y19 -> -9.036 | AA16: kg CO2-eq/m² | AB16: =Mat_DB!Z19 -> 1.1316e-12 | AC16: kg CFC11-eq/m² | AD16: =Mat_DB!AC19 -> --- | AE16: mm | AF16: =Mat_DB!AD19 -> --- | AG16: mm | AH16: =Mat_DB!AE19 -> --- | AI16: mm | AJ16: 1 | AK16: 2 | AL16: 5 | AM16: 2 | AO16: Studs | AP16: =(((BW17/(CC19*0.001))+1)*BW26)/(BW17*BW26) -> 2.566666667 | AQ16: m/m² | AS16: Studs | AT16: =(((BW37/(CC39*0.001))+1)*BW46)/(BW37*BW46) -> 2.566666667 | AU16: m/m² | BC16: Albergaria-a-Velha | BD16: 9 | BF16: Cávado | BG16: 3 | BH16: 171 | BI16: 1491 | BJ16: 1300 | BK16: 20.7 | BL16: -3 | BN16: 8 | BO16: =Loc_DB!G19 -> Brussels_BE | BP16: =Loc_DB!J19 -> 2974 | BQ16: =Loc_DB!N19 -> 16 | BU16: OTHER | BW16: =SA_Inp1!P16 -> Helsinki_FI | BY16: =IF(BW16=$BO$9,1,IF(BW16=$BO$10,2,IF(BW16=$BO$11,3,IF(BW16=$BO$12,4,IF(BW16=$BO$13,5,IF(BW16=$BO$14,6,IF(BW16=$BO$15,7,IF(BW16=$BO$16,8,IF(BW16=$BO$17,9,IF(BW16=$BO$18,10,IF(BW16=$BO$19,11,IF(BW16=$BO$20,12,IF(BW16=$BO$21,13,IF(BW16=$BO$22,14,IF(BW16=$BO$23,15,IF(BW16=$BO$24,16,IF(BW16=$BO$25,17,IF(BW16=$BO$26,18,IF(BW16=$BO$27,19,IF(BW16=$BO$28,20,IF(BW16=$BO$29,21,IF(BW16=$BO$30,22,IF(BW16=$BO$31,23,IF(BW16=$BO$32,24,IF(BW16=$BO$33,25,IF(BW16=$BO$34,26,IF(BW16=$BO$35,27,IF(BW16=$BO$36,28,IF(BW16=$BO$37,29,IF(BW16=$BO$38,30,0)))))))))))))))))))))))))))))) -> 3 | CK16: LAYER 3 | CM16: =SA_Inp2!D19 -> Mineral wool (90 mm) [Volcalis] | CO16: 15 | CP16: 0.035 | CS16: 2.571428571 | CV16: =SA_Inp2!I19 -> Steel C90/U93 (90 mm) [Pertecno] | CX16: =IF(CV16=$D$9,1,IF(CV16=$D$10,2,IF(CV16=$D$11,3,IF(CV16=$D$12,4,IF(CV16=$D$13,5,IF(CV16=$D$14,6,IF(CV16=$D$15,7,IF(CV16=$D$16,8,IF(CV16=$D$17,9,IF(CV16=$D$18,10,IF(CV16=$D$19,11,IF(CV16=$D$20,12,IF(CV16=$D$21,13,IF(CV16=$D$22,14,IF(CV16=$D$23,15,IF(CV16=$D$24,16,IF(CV16=$D$25,17,IF(CV16=$D$26,18,IF(CV16=$D$27,19,IF(CV16=$D$28,20,IF(CV16=$D$29,21,IF(CV16=$D$30,22,IF(CV16=$D$31,23,IF(CV16=$D$32,24,IF(CV16=$D$33,25,IF(CV16=$D$34,26,IF(CV16=$D$35,27,IF(CV16=$D$36,28,IF(CV16=$D$37,29,IF(CV16=$D$38,30,IF(CV16=$D$39,31,IF(CV16=$D$40,32,IF(CV16=$D$41,33,IF(CV16=$D$42,34,IF(CV16=$D$43,35,IF(CV16=$D$44,36,IF(CV16=$D$45,37,IF(CV16=$D$46,38,IF(CV16=$D$47,39,IF(CV16=$D$48,40,IF(CV16=$D$49,41,IF(CV16=$D$50,42,IF(CV16=$D$51,43,IF(CV16=$D$52,44,IF(CV16=$D$53,45,IF(CV16=$D$54,46,IF(CV16=$D$55,47,IF(CV16=$D$56,48,IF(CV16=$D$57,49,IF(CV16=$D$58,50,0)))))))))))))))))))))))))))))))))))))))))))))))))) -> 25 | CY16: 50 | DB16: 0.0018 | DE16: 90 | DK16: SHT | DM16: =CC21*0.001 -> 0.0245 | DQ16: F_WZ_SS | DS16: =DM17/DM14 -> 0.23 | DW16: GM3 | DY16: =FF49 -> 1.307568518 | GB16: C4 | GD16: =VLOOKUP($GD$10,$BG$12:$BS$42,5) -> 20.9 | GG16: =VLOOKUP($GG$10,$BG$12:$BS$42,5) -> 20.9 | GS16: LAYER 5 | GU16: Mortar (10 mm) | GX16: 1 | HA16: m²/m² | HD16: 3.17e-06 | HG16: kg SB-eq | HJ16: 9.05 | HM16: MJ | HP16: 0.00488 | HS16: kg SO2-eq | HV16: 0.000998 | HY16: kg (PO4)3-eq | IB16: 0.000245 | IE16: kg C2H4-eq | IH16: 1.42 | IK16: kg CO2-eq | IN16: 9.66e-08 | IQ16: kg CFC11-eq | IW16: LAYER 6 | IY16: --- | JB16: --- | JE16: --- | JH16: --- | JK16: --- | JN16: --- | JQ16: --- | JT16: --- | JW16: --- | JZ16: --- | KC16: 0 | KF16: 0
C17: 9 | D17: =Mat_DB!D20 -> OSB (15 mm) [Kronospan] | E17: =Mat_DB!H20 -> Sheathing Panel | F17: =Mat_DB!J20 -> 15 | G17: =Mat_DB!L20 -> λ [W/(m·K)] | H17: =Mat_DB!K20 -> 0.13 | I17: 0.13 | J17: --- | K17: =Mat_DB!M20 -> Kronospan | L17: =IF(Mat_DB!O20="","---",Mat_DB!O20) -> 1 | M17: =IF(Mat_DB!P20="","---",Mat_DB!P20) -> m²/m² | N17: =IF(Mat_DB!Q20="","---",Mat_DB!Q20) -> 9.07 | O17: €/m² | P17: =Mat_DB!T20 -> 1.2375e-06 | Q17: kg SB-eq/m² | R17: =Mat_DB!U20 -> 64.2 | S17: MJ/m² | T17: =Mat_DB!V20 -> 0.013785 | U17: kg SO2-eq/m² | V17: =Mat_DB!W20 -> 0.003285 | W17: kg (PO4)3-eq/m² | X17: =Mat_DB!X20 -> 0.00783 | Y17: kg C2H4-eq/m² | Z17: =Mat_DB!Y20 -> -11.295 | AA17: kg CO2-eq/m² | AB17: =Mat_DB!Z20 -> 1.4145e-12 | AC17: kg CFC11-eq/m² | AD17: =Mat_DB!AC20 -> --- | AE17: mm | AF17: =Mat_DB!AD20 -> --- | AG17: mm | AH17: =Mat_DB!AE20 -> --- | AI17: mm | AJ17: 1 | AK17: 2 | AL17: 5 | AM17: 2 | AO17: Total | AP17: =SUM(AP15:AP16) -> 3.307407407 | AQ17: m/m² | AS17: Total | AT17: =SUM(AT15:AT16) -> 3.307407407 | AU17: m/m² | BC17: Albufeira | BD17: 28 | BF17: Ave | BG17: 4 | BH17: 426 | BI17: 1653 | BJ17: 1500 | BK17: 20.8 | BL17: -3 | BN17: 9 | BO17: =Loc_DB!G20 -> Vienna_AT | BP17: =Loc_DB!J20 -> 3258 | BQ17: =Loc_DB!N20 -> 35 | BU17: MF | BW17: =SA_Inp1!G20 -> 15 | CA17: Wall Configuration 2 | CK17: LAYER 4 | CM17: =SA_Inp2!D20 -> OSB (12 mm) [Kronospan] | CO17: 8 | CP17: 0.13 | CS17: 0.09230769231 | CV17: =SA_Inp2!I20 -> --- | CX17: 1 | CY17: --- | DB17: --- | DE17: 12 | DK17: WZ | DM17: =DM15+2*DM16 -> 0.092 | DQ17: F_WZ_SS- | DS17: =1-DS16 -> 0.77 | DW17: AZM | DY17: =FN49 -> 1.455561577 | GB17: C5 | GD17: =VLOOKUP($GD$10,$BG$12:$BS$42,6) -> 0 | GG17: =VLOOKUP($GG$10,$BG$12:$BS$42,6) -> 0 | GS17: LAYER 6 | GU17: --- | GX17: --- | HA17: --- | HD17: --- | HG17: kg SB-eq | HJ17: --- | HM17: MJ | HP17: --- | HS17: kg SO2-eq | HV17: --- | HY17: kg (PO4)3-eq | IB17: --- | IE17: kg C2H4-eq | IH17: --- | IK17: kg CO2-eq | IN17: --- | IQ17: kg CFC11-eq | IW17: LAYER 7 | IY17: --- | JB17: --- | JE17: --- | JH17: --- | JK17: --- | JN17: --- | JQ17: --- | JT17: --- | JW17: --- | JZ17: --- | KC17: 0 | KF17: 0 | KR17: ADPE | KT17: =BW56 -> 0.14
C18: 10 | D18: =Mat_DB!D21 -> OSB (18 mm) [Kronospan] | E18: =Mat_DB!H21 -> Sheathing Panel | F18: =Mat_DB!J21 -> 18 | G18: =Mat_DB!L21 -> λ [W/(m·K)] | H18: =Mat_DB!K21 -> 0.13 | I18: 0.13 | J18: --- | K18: =Mat_DB!M21 -> Kronospan | L18: =IF(Mat_DB!O21="","---",Mat_DB!O21) -> 1 | M18: =IF(Mat_DB!P21="","---",Mat_DB!P21) -> m²/m² | N18: =IF(Mat_DB!Q21="","---",Mat_DB!Q21) -> 10.93 | O18: €/m² | P18: =Mat_DB!T21 -> 1.485e-06 | Q18: kg SB-eq/m² | R18: =Mat_DB!U21 -> 77.04 | S18: MJ/m² | T18: =Mat_DB!V21 -> 0.016542 | U18: kg SO2-eq/m² | V18: =Mat_DB!W21 -> 0.003942 | W18: kg (PO4)3-eq/m² | X18: =Mat_DB!X21 -> 0.009396 | Y18: kg C2H4-eq/m² | Z18: =Mat_DB!Y21 -> -13.554 | AA18: kg CO2-eq/m² | AB18: =Mat_DB!Z21 -> 1.6974e-12 | AC18: kg CFC11-eq/m² | AD18: =Mat_DB!AC21 -> --- | AE18: mm | AF18: =Mat_DB!AD21 -> --- | AG18: mm | AH18: =Mat_DB!AE21 -> --- | AI18: mm | AJ18: 1 | AK18: 2 | AL18: 5 | AM18: 2 | BC18: Alcácer do Sal | BD18: 26 | BF18: Grande Porto | BG18: 5 | BH18: 94 | BI18: 1250 | BJ18: 1600 | BK18: 20.9 | BL18: 0 | BN18: 10 | BO18: =Loc_DB!G21 -> London_GB | BP18: =Loc_DB!J21 -> 3008 | BQ18: =Loc_DB!N21 -> 6 | BU18: BF | BW18: =SA_Inp1!G21 -> 15 | CK18: LAYER 5 | CM18: =SA_Inp2!D21 -> Mortar (10 mm) | CO18: 41 | CP18: 1.8 | CS18: 0.005555555556 | CV18: =SA_Inp2!I21 -> --- | CX18: 1 | CY18: --- | DB18: --- | DE18: 10 | DK18: TBW | DM18: =CC22*0.001 -> 0 | DQ18: F_TBW_WZ | DS18: =DM18/DM17 -> 0 | DW18: R | DY18: =IF(DY12=1,DY13,IF(DY12=2,DY14,IF(DY12=3,DY15,IF(DY12=4,DY16,IF(DY12=5,DY17))))) -> 1.887022152 | GB18: DD | GD18: =GD14+GD15*(GD12-GD13) -> 1312 | GG18: =GG14+GG15*(GG12-GG13) -> 1312 | GS18: LAYER 7 | GU18: --- | GX18: --- | HA18: --- | HD18: --- | HG18: kg SB-eq | HJ18: --- | HM18: MJ | HP18: --- | HS18: kg SO2-eq | HV18: --- | HY18: kg (PO4)3-eq | IB18: --- | IE18: kg C2H4-eq | IH18: --- | IK18: kg CO2-eq | IN18: --- | IQ18: kg CFC11-eq | IW18: LAYER 8 | IY18: --- | JB18: --- | JE18: --- | JH18: --- | JK18: --- | JN18: --- | JQ18: --- | JT18: --- | JW18: --- | JZ18: --- | KC18: 0 | KF18: 0 | KR18: ADPF | KT18: 0.14
C19: 11 | D19: =Mat_DB!D22 -> OSB (22 mm) [Kronospan] | E19: =Mat_DB!H22 -> Sheathing Panel | F19: =Mat_DB!J22 -> 22 | G19: =Mat_DB!L22 -> λ [W/(m·K)] | H19: =Mat_DB!K22 -> 0.13 | I19: 0.13 | J19: --- | K19: =Mat_DB!M22 -> Kronospan | L19: =IF(Mat_DB!O22="","---",Mat_DB!O22) -> 1 | M19: =IF(Mat_DB!P22="","---",Mat_DB!P22) -> m²/m² | N19: =IF(Mat_DB!Q22="","---",Mat_DB!Q22) -> 13.43 | O19: €/m² | P19: =Mat_DB!T22 -> 1.815e-06 | Q19: kg SB-eq/m² | R19: =Mat_DB!U22 -> 94.16 | S19: MJ/m² | T19: =Mat_DB!V22 -> 0.020218 | U19: kg SO2-eq/m² | V19: =Mat_DB!W22 -> 0.004818 | W19: kg (PO4)3-eq/m² | X19: =Mat_DB!X22 -> 0.011484 | Y19: kg C2H4-eq/m² | Z19: =Mat_DB!Y22 -> -16.566 | AA19: kg CO2-eq/m² | AB19: =Mat_DB!Z22 -> 2.0746e-12 | AC19: kg CFC11-eq/m² | AD19: =Mat_DB!AC22 -> --- | AE19: mm | AF19: =Mat_DB!AD22 -> --- | AG19: mm | AH19: =Mat_DB!AE22 -> --- | AI19: mm | AJ19: 1 | AK19: 2 | AL19: 5 | AM19: 2 | AO19: AIR CAVITIES - A | BC19: Alcanena | BD19: 20 | BF19: Tâmega | BG19: 6 | BH19: 320 | BI19: 1570 | BJ19: 1600 | BK19: 21.4 | BL19: -3 | BN19: 11 | BO19: =Loc_DB!G22 -> Prague_CZ | BP19: =Loc_DB!J22 -> 3809 | BQ19: =Loc_DB!N22 -> 15 | BU19: LF | BW19: =SA_Inp1!G22 -> 10 | CA19: SS | CC19: =SA_Inp2!R15 -> 400 | CK19: LAYER 6 | CM19: =SA_Inp2!D22 -> --- | CO19: 1 | CP19: --- | CS19: --- | CV19: =SA_Inp2!I22 -> --- | CX19: 1 | CY19: --- | DB19: --- | DE19: --- | DQ19: F_TBW_WZ- | DS19: =1-DS18 -> 1 | DW19: U | DY19: =1/DY18 -> 0.5299354853 | GB19: CAET | GD19: =GD16+GD17*(GD12-GD13) -> 20.9 | GG19: =GG16+GG17*(GG12-GG13) -> 20.9 | GS19: LAYER 8 | GU19: --- | GX19: --- | HA19: --- | HD19: --- | HG19: kg SB-eq | HJ19: --- | HM19: MJ | HP19: --- | HS19: kg SO2-eq | HV19: --- | HY19: kg (PO4)3-eq | IB19: --- | IE19: kg C2H4-eq | IH19: --- | IK19: kg CO2-eq | IN19: --- | IQ19: kg CFC11-eq | IW19: LAYER 9 | IY19: --- | JB19: --- | JE19: --- | JH19: --- | JK19: --- | JN19: --- | JQ19: --- | JT19: --- | JW19: --- | JZ19: --- | KC19: 0 | KF19: 0 | KR19: AP | KT19: 0.14
C20: 12 | D20: =Mat_DB!D23 -> OSB (25 mm) [Kronospan] | E20: =Mat_DB!H23 -> Sheathing Panel | F20: =Mat_DB!J23 -> 25 | G20: =Mat_DB!L23 -> λ [W/(m·K)] | H20: =Mat_DB!K23 -> 0.13 | I20: 0.13 | J20: --- | K20: =Mat_DB!M23 -> Kronospan | L20: =IF(Mat_DB!O23="","---",Mat_DB!O23) -> 1 | M20: =IF(Mat_DB!P23="","---",Mat_DB!P23) -> m²/m² | N20: =IF(Mat_DB!Q23="","---",Mat_DB!Q23) -> 15.06 | O20: €/m² | P20: =Mat_DB!T23 -> 2.0625e-06 | Q20: kg SB-eq/m² | R20: =Mat_DB!U23 -> 107 | S20: MJ/m² | T20: =Mat_DB!V23 -> 0.022975 | U20: kg SO2-eq/m² | V20: =Mat_DB!W23 -> 0.005475 | W20: kg (PO4)3-eq/m² | X20: =Mat_DB!X23 -> 0.01305 | Y20: kg C2H4-eq/m² | Z20: =Mat_DB!Y23 -> -18.825 | AA20: kg CO2-eq/m² | AB20: =Mat_DB!Z23 -> 2.3575e-12 | AC20: kg CFC11-eq/m² | AD20: =Mat_DB!AC23 -> --- | AE20: mm | AF20: =Mat_DB!AD23 -> --- | AG20: mm | AH20: =Mat_DB!AE23 -> --- | AI20: mm | AJ20: 1 | AK20: 2 | AL20: 5 | AM20: 2 | BC20: Alcobaça | BD20: 19 | BF20: Douro | BG20: 7 | BH20: 579 | BI20: 1764 | BJ20: 1400 | BK20: 22.7 | BL20: -6 | BN20: 12 | BO20: =Loc_DB!G23 -> Athens_GR | BP20: =Loc_DB!J23 -> 1142 | BQ20: =Loc_DB!N23 -> 269 | BU20: RF | BW20: =SA_Inp1!G23 -> 10 | CA20: STR | CC20: =IF(VLOOKUP(CX14,$C$9:$AV$61,36)=1,CV14,IF(VLOOKUP(CX15,$C$9:$AV$61,36)=1,CV15,IF(VLOOKUP(CX16,$C$9:$AV$61,36)=1,CV16,IF(VLOOKUP(CX17,$C$9:$AV$61,36)=1,CV17,IF(VLOOKUP(CX18,$C$9:$AV$61,36)=1,CV18,IF(VLOOKUP(CX19,$C$9:$AV$61,36)=1,CV19,IF(VLOOKUP(CX20,$C$9:$AV$61,36)=1,CV20,IF(VLOOKUP(CX21,$C$9:$AV$61,36)=1,CV21,IF(VLOOKUP(CX22,$C$9:$AV$61,36)=1,CV22,IF(VLOOKUP(CX23,$C$9:$AV$61,36)=1,CV23,"---")))))))))) -> Steel C90/U93 (90 mm) [Pertecno] | CE20: =IF(CC20=$D$9,1,IF(CC20=$D$10,2,IF(CC20=$D$11,3,IF(CC20=$D$12,4,IF(CC20=$D$13,5,IF(CC20=$D$14,6,IF(CC20=$D$15,7,IF(CC20=$D$16,8,IF(CC20=$D$17,9,IF(CC20=$D$18,10,IF(CC20=$D$19,11,IF(CC20=$D$20,12,IF(CC20=$D$21,13,IF(CC20=$D$22,14,IF(CC20=$D$23,15,IF(CC20=$D$24,16,IF(CC20=$D$25,17,IF(CC20=$D$26,18,IF(CC20=$D$27,19,IF(CC20=$D$28,20,IF(CC20=$D$29,21,IF(CC20=$D$30,22,IF(CC20=$D$31,23,IF(CC20=$D$32,24,IF(CC20=$D$33,25,IF(CC20=$D$34,26,IF(CC20=$D$35,27,IF(CC20=$D$36,28,IF(CC20=$D$37,29,IF(CC20=$D$38,30,IF(CC20=$D$39,31,IF(CC20=$D$40,32,IF(CC20=$D$41,33,IF(CC20=$D$42,34,IF(CC20=$D$43,35,IF(CC20=$D$44,36,IF(CC20=$D$45,37,IF(CC20=$D$46,38,IF(CC20=$D$47,39,IF(CC20=$D$48,40,IF(CC20=$D$49,41,IF(CC20=$D$50,42,IF(CC20=$D$51,43,IF(CC20=$D$52,44,IF(CC20=$D$53,45,IF(CC20=$D$54,46,IF(CC20=$D$55,47,IF(CC20=$D$56,48,IF(CC20=$D$57,49,IF(CC20=$D$58,50,0)))))))))))))))))))))))))))))))))))))))))))))))))) -> 25 | CK20: LAYER 7 | CM20: =SA_Inp2!D23 -> --- | CO20: 1 | CP20: --- | CS20: --- | CV20: =SA_Inp2!I23 -> --- | CX20: 1 | CY20: --- | DB20: --- | DE20: --- | DQ20: F_ST_SS | DS20: =DM13/DM14 -> 0.00375 | GB20: U | GD20: =DY19 -> 0.5299354853 | GG20: =DY64 -> 0.4514459734 | GS20: LAYER 9 | GU20: --- | GX20: --- | HA20: --- | HD20: --- | HG20: kg SB-eq | HJ20: --- | HM20: MJ | HP20: --- | HS20: kg SO2-eq | HV20: --- | HY20: kg (PO4)3-eq | IB20: --- | IE20: kg C2H4-eq | IH20: --- | IK20: kg CO2-eq | IN20: --- | IQ20: kg CFC11-eq | IW20: LAYER 10 | IY20: --- | JB20: --- | JE20: --- | JH20: =VLOOKUP(CO23,$C$9:$AV$61,10) -> --- | JK20: --- | JN20: --- | JQ20: --- | JT20: --- | JW20: --- | JZ20: --- | KC20: 0 | KF20: 0 | KR20: EP | KT20: 0.14
C21: 13 | D21: =Mat_DB!D24 -> Mineral wool (10 mm) [Volcalis] | E21: =Mat_DB!H24 -> Cavity Insulation | F21: =Mat_DB!J24 -> 10 | G21: =Mat_DB!L24 -> λ [W/(m·K)] | H21: =Mat_DB!K24 -> 0.035 | I21: 0.035 | J21: --- | K21: =Mat_DB!M24 -> Volcalis | L21: =IF(Mat_DB!O24="","---",Mat_DB!O24) -> 1 | M21: =IF(Mat_DB!P24="","---",Mat_DB!P24) -> m²/m² | N21: =IF(Mat_DB!Q24="","---",Mat_DB!Q24) -> 0.324 | O21: €/m² | P21: =Mat_DB!T24 -> 1.12e-05 | Q21: kg SB-eq/m² | R21: =Mat_DB!U24 -> 3.46 | S21: MJ/m² | T21: =Mat_DB!V24 -> 0.00101 | U21: kg SO2-eq/m² | V21: =Mat_DB!W24 -> 0.000208 | W21: kg (PO4)3-eq/m² | X21: =Mat_DB!X24 -> 7.18e-05 | Y21: kg C2H4-eq/m² | Z21: =Mat_DB!Y24 -> 0.169 | AA21: kg CO2-eq/m² | AB21: =Mat_DB!Z24 -> 1.77e-12 | AC21: kg CFC11-eq/m² | AD21: =Mat_DB!AC24 -> --- | AE21: mm | AF21: =Mat_DB!AD24 -> --- | AG21: mm | AH21: =Mat_DB!AE24 -> --- | AI21: mm | AJ21: 1 | AK21: 2 | AL21: 2 | AM21: 2 | AO21: Layer | AP21: Material 1 | AQ21: Material 2 | AR21: 1x2 | AS21: AC thickn. | AT21: R ISO6946 | AU21: R AC | AV21: R1 | AW21: R2 | AX21: R Final | BC21: Alcochete | BD21: 23 | BF21: Entre Douro e Vouga | BG21: 8 | BH21: 298 | BI21: 1544 | BJ21: 1400 | BK21: 20.6 | BL21: -3 | BN21: 13 | BO21: =Loc_DB!G24 -> Coimbra_PT | BP21: =Loc_DB!J24 -> 1485 | BQ21: =Loc_DB!N24 -> 87 | BU21: GL MF | BW21: =SA_Inp1!K20 -> 12 | CA21: SHT | CC21: =SA_Inp2!R25 -> 24.5 | CK21: LAYER 8 | CM21: =SA_Inp2!D24 -> --- | CO21: 1 | CP21: --- | CS21: --- | CV21: =SA_Inp2!I24 -> --- | CX21: 1 | CY21: --- | DB21: --- | DE21: --- | DQ21: F_ST_SS- | DS21: =1-DS20 -> 0.99625 | GB21: A | GD21: =(BW17*(100-BW21)*0.01+BW18*(100-BW22)*0.01+BW19*(100-BW23)*0.01+BW20*(100-BW24)*0.01)*BW25*BW26 -> 239.76 | GG21: =(BW37*(100-BW41)*0.01+BW38*(100-BW42)*0.01+BW39*(100-BW43)*0.01+BW40*(100-BW44)*0.01)*BW45*BW46 -> 239.76 | GS21: LAYER 10 | GU21: --- | GX21: --- | HA21: --- | HD21: --- | HG21: kg SB-eq | HJ21: --- | HM21: MJ | HP21: --- | HS21: kg SO2-eq | HV21: --- | HY21: kg (PO4)3-eq | IB21: --- | IE21: kg C2H4-eq | IH21: --- | IK21: kg CO2-eq | IN21: --- | IQ21: kg CFC11-eq | KR21: POCP | KT21: 0.14
C22: 14 | D22: =Mat_DB!D25 -> Mineral wool (50 mm) [Volcalis] | E22: =Mat_DB!H25 -> Cavity Insulation | F22: =Mat_DB!J25 -> 50 | G22: =Mat_DB!L25 -> λ [W/(m·K)] | H22: =Mat_DB!K25 -> 0.035 | I22: 0.035 | J22: --- | K22: =Mat_DB!M25 -> Volcalis | L22: =IF(Mat_DB!O25="","---",Mat_DB!O25) -> 1 | M22: =IF(Mat_DB!P25="","---",Mat_DB!P25) -> m²/m² | N22: =IF(Mat_DB!Q25="","---",Mat_DB!Q25) -> 1.62 | O22: €/m² | P22: =Mat_DB!T25 -> 5.6e-05 | Q22: kg SB-eq/m² | R22: =Mat_DB!U25 -> 17.3 | S22: MJ/m² | T22: =Mat_DB!V25 -> 0.00505 | U22: kg SO2-eq/m² | V22: =Mat_DB!W25 -> 0.00104 | W22: kg (PO4)3-eq/m² | X22: =Mat_DB!X25 -> 0.000359 | Y22: kg C2H4-eq/m² | Z22: =Mat_DB!Y25 -> 0.845 | AA22: kg CO2-eq/m² | AB22: =Mat_DB!Z25 -> 8.85e-12 | AC22: kg CFC11-eq/m² | AD22: =Mat_DB!AC25 -> --- | AE22: mm | AF22: =Mat_DB!AD25 -> --- | AG22: mm | AH22: =Mat_DB!AE25 -> --- | AI22: mm | AJ22: 1 | AK22: 2 | AL22: 2 | AM22: 2 | AO22: 1 | AP22: =IF(VLOOKUP(CO14,$C$9:$AV$61,36)=7,2,1) -> 1 | AQ22: =IF(VLOOKUP(CX14,$C$9:$AV$61,36)=6,2,1) -> 1 | AR22: =AP22*AQ22 -> 1 | AS22: =IF(VLOOKUP(CO14,$C$9:$AV$61,36)=7,VLOOKUP(CO14,$C$9:$AV$61,4),0) -> 0 | AT22: =IF(AS22=5,0.11,IF(AS22=10,0.15,IF(AS22>=25,0.18,IF(AS22<5,0.11*(AS22/5),IF(AS22<10,0.11+((AS22-5)/5)*0.04,IF(AS22<15,0.15+((AS22-10)/5)*0.02,IF(AS22<25,0.17+((AS22-15)/10)*0.01,0))))))) -> 0 | AU22: =IF($AR$32=17,$AT$32*AS22/$AS$32,IF($AR$32=16,AT22,IF($AR$32=14,$AT$32*AS22/$AS$32,IF($AR$32=13,AT22,IF($AR$32=11,$AT$32,0))))) -> 0 | AV22: =IF(VLOOKUP(CO14,$C$9:$AV$61,36)=7,AU22,0) -> 0 | AW22: =IF(VLOOKUP(CO14,$C$9:$AV$61,35)=2,(DM32*0.001)/DN32,VLOOKUP(CO14,$C$9:$AV$61,8)) -> 0.07142857143 | AX22: =IF(VLOOKUP(CO14,$C$9:$AV$61,36)=7,AV22,AW22) -> 0.07142857143 | BC22: Alcoutim | BD22: 28 | BF22: Baixo Vouga | BG22: 9 | BH22: 50 | BI22: 1337 | BJ22: 1100 | BK22: 20.6 | BL22: -2 | BN22: 14 | BO22: =Loc_DB!G25 -> Madrid_SP | BP22: =Loc_DB!J25 -> 2066 | BQ22: =Loc_DB!N25 -> 212 | BU22: GL BF | BW22: =SA_Inp1!K21 -> 12 | CA22: TBW | CC22: =SA_Inp2!R22 -> 0 | CK22: LAYER 9 | CM22: =SA_Inp2!D25 -> --- | CO22: 1 | CP22: --- | CS22: --- | CV22: =SA_Inp2!I25 -> --- | CX22: 1 | CY22: --- | DB22: --- | DE22: --- | DQ22: F_TBW_SS | DS22: =DM18/DM14 -> 0 | GB22: COP | GD22: =CC13 -> 3.5 | GG22: =CC33 -> 3.5 | GU22: Material 2 | GX22: Unit Consumption | HD22: Indicator | HJ22: Indicator | HP22: Indicator | HV22: Indicator | IB22: Indicator | IH22: Indicator | IN22: Indicator | KR22: GWP | KT22: 0.16
C23: 15 | D23: =Mat_DB!D26 -> Mineral wool (90 mm) [Volcalis] | E23: =Mat_DB!H26 -> Cavity Insulation | F23: =Mat_DB!J26 -> 90 | G23: =Mat_DB!L26 -> λ [W/(m·K)] | H23: =Mat_DB!K26 -> 0.035 | I23: 0.035 | J23: --- | K23: =Mat_DB!M26 -> Volcalis | L23: =IF(Mat_DB!O26="","---",Mat_DB!O26) -> 1 | M23: =IF(Mat_DB!P26="","---",Mat_DB!P26) -> m²/m² | N23: =IF(Mat_DB!Q26="","---",Mat_DB!Q26) -> 2.916 | O23: €/m² | P23: =Mat_DB!T26 -> 0.0001008 | Q23: kg SB-eq/m² | R23: =Mat_DB!U26 -> 31.14 | S23: MJ/m² | T23: =Mat_DB!V26 -> 0.00909 | U23: kg SO2-eq/m² | V23: =Mat_DB!W26 -> 0.001872 | W23: kg (PO4)3-eq/m² | X23: =Mat_DB!X26 -> 0.0006462 | Y23: kg C2H4-eq/m² | Z23: =Mat_DB!Y26 -> 1.521 | AA23: kg CO2-eq/m² | AB23: =Mat_DB!Z26 -> 1.593e-11 | AC23: kg CFC11-eq/m² | AD23: =Mat_DB!AC26 -> --- | AE23: mm | AF23: =Mat_DB!AD26 -> --- | AG23: mm | AH23: =Mat_DB!AE26 -> --- | AI23: mm | AJ23: 1 | AK23: 2 | AL23: 2 | AM23: 2 | AO23: 2 | AP23: 1 | AQ23: 1 | AR23: =AP23*AQ23 -> 1 | AS23: 0 | AT23: =IF(AS23=5,0.11,IF(AS23=10,0.15,IF(AS23>=25,0.18,IF(AS23<5,0.11*(AS23/5),IF(AS23<10,0.11+((AS23-5)/5)*0.04,IF(AS23<15,0.15+((AS23-10)/5)*0.02,IF(AS23<25,0.17+((AS23-15)/10)*0.01,0))))))) -> 0 | AU23: =IF($AR$32=17,$AT$32*AS23/$AS$32,IF($AR$32=16,AT23,IF($AR$32=14,$AT$32*AS23/$AS$32,IF($AR$32=13,AT23,IF($AR$32=11,$AT$32,0))))) -> 0 | AV23: 0 | AW23: 0.09230769231 | AX23: 0.09230769231 | BC23: Alenquer | BD23: 19 | BF23: Baixo Mondego | BG23: 10 | BH23: 67 | BI23: 1304 | BJ23: 1000 | BK23: 20.9 | BL23: 0 | BN23: 15 | BO23: =Loc_DB!G26 -> Marseille_FR | BP23: =Loc_DB!J26 -> 1776 | BQ23: =Loc_DB!N26 -> 106 | BU23: GL LF | BW23: =SA_Inp1!K22 -> 10 | CK23: LAYER 10 | CM23: =SA_Inp2!D26 -> --- | CO23: 1 | CP23: --- | CS23: --- | CV23: =SA_Inp2!I26 -> --- | CX23: 1 | CY23: --- | DB23: --- | DE23: --- | DQ23: F_TBW_SS- | DS23: =1-DS22 -> 1 | GB23: EER | GD23: =CC14 -> 3.5 | GG23: =CC34 -> 3.5 | GJ23: DIFFERENCE | GS23: LAYER 1 | GU23: =CV14 -> --- | GX23: =IF(VLOOKUP(CX14,$C$9:$AV$61,36)=1,$AP$17,IF(VLOOKUP(CX14,$C$9:$AV$61,36)=6,$AP$17,VLOOKUP(CX14,$C$9:$AV$61,10))) -> --- | HA23: =VLOOKUP(CX14,$C$9:$AV$61,11) -> --- | HD23: =VLOOKUP(CX14,$C$9:$AV$61,14) -> --- | HG23: kg SB-eq | HJ23: =VLOOKUP(CX14,$C$9:$AV$61,16) -> --- | HM23: MJ | HP23: =VLOOKUP(CX14,$C$9:$AV$61,18) -> --- | HS23: kg SO2-eq | HV23: =VLOOKUP(CX14,$C$9:$AV$61,20) -> --- | HY23: kg (PO4)3-eq | IB23: =VLOOKUP(CX14,$C$9:$AV$61,22) -> --- | IE23: kg C2H4-eq | IH23: =VLOOKUP(CX14,$C$9:$AV$61,24) -> --- | IK23: kg CO2-eq | IN23: =VLOOKUP(CX14,$C$9:$AV$61,26) -> --- | IQ23: kg CFC11-eq | KR23: ODP | KT23: 0.14
C24: 16 | D24: =Mat_DB!D27 -> Mineral wool (100 mm) [Volcalis] | E24: =Mat_DB!H27 -> Cavity Insulation | F24: =Mat_DB!J27 -> 100 | G24: =Mat_DB!L27 -> λ [W/(m·K)] | H24: =Mat_DB!K27 -> 0.035 | I24: 0.035 | J24: --- | K24: =Mat_DB!M27 -> Volcalis | L24: =IF(Mat_DB!O27="","---",Mat_DB!O27) -> 1 | M24: =IF(Mat_DB!P27="","---",Mat_DB!P27) -> m²/m² | N24: =IF(Mat_DB!Q27="","---",Mat_DB!Q27) -> 3.24 | O24: €/m² | P24: =Mat_DB!T27 -> 0.000112 | Q24: kg SB-eq/m² | R24: =Mat_DB!U27 -> 34.6 | S24: MJ/m² | T24: =Mat_DB!V27 -> 0.0101 | U24: kg SO2-eq/m² | V24: =Mat_DB!W27 -> 0.00208 | W24: kg (PO4)3-eq/m² | X24: =Mat_DB!X27 -> 0.000718 | Y24: kg C2H4-eq/m² | Z24: =Mat_DB!Y27 -> 1.69 | AA24: kg CO2-eq/m² | AB24: =Mat_DB!Z27 -> 1.77e-11 | AC24: kg CFC11-eq/m² | AD24: =Mat_DB!AC27 -> --- | AE24: mm | AF24: =Mat_DB!AD27 -> --- | AG24: mm | AH24: =Mat_DB!AE27 -> --- | AI24: mm | AJ24: 1 | AK24: 2 | AL24: 2 | AM24: 2 | AO24: 3 | AP24: 1 | AQ24: 1 | AR24: 1 | AS24: 0 | AT24: 0 | AU24: 0 | AV24: 0 | AW24: 2.571428571 | AX24: 2.571428571 | BC24: Alfândega da Fé | BD24: 2 | BF24: Beira Interior Norte | BG24: 11 | BH24: 717 | BI24: 1924 | BJ24: 1000 | BK24: 21.7 | BL24: -5 | BN24: 16 | BO24: =Loc_DB!G27 -> Rome_IT | BP24: =Loc_DB!J27 -> 1508 | BQ24: =Loc_DB!N27 -> 73 | BU24: GL RF | BW24: =SA_Inp1!K23 -> 10 | DB24: TOTAL | DE24: =SUM(DE14:DG23) -> 136.5 | GB24: HUFE | GD24: =GD20*GD18*0.024/GD22 -> 4.767602446 | GG24: =GG20*GG18*0.024/GG22 -> 4.061465946 | GJ24: =GD24-GG24 -> 0.7061365005 | GS24: LAYER 2 | GU24: --- | GX24: --- | HA24: --- | HD24: --- | HG24: kg SB-eq | HJ24: --- | HM24: MJ | HP24: --- | HS24: kg SO2-eq | HV24: --- | HY24: kg (PO4)3-eq | IB24: --- | IE24: kg C2H4-eq | IH24: --- | IK24: kg CO2-eq | IN24: --- | IQ24: kg CFC11-eq | IW24: SOLUTION B
C25: 17 | D25: =Mat_DB!D28 -> Mineral wool (120 mm) [Volcalis] | E25: =Mat_DB!H28 -> Cavity Insulation | F25: =Mat_DB!J28 -> 120 | G25: =Mat_DB!L28 -> λ [W/(m·K)] | H25: =Mat_DB!K28 -> 0.035 | I25: 0.035 | J25: --- | K25: =Mat_DB!M28 -> Volcalis | L25: =IF(Mat_DB!O28="","---",Mat_DB!O28) -> 1 | M25: =IF(Mat_DB!P28="","---",Mat_DB!P28) -> m²/m² | N25: =IF(Mat_DB!Q28="","---",Mat_DB!Q28) -> 3.888 | O25: €/m² | P25: =Mat_DB!T28 -> 0.0001344 | Q25: kg SB-eq/m² | R25: =Mat_DB!U28 -> 41.52 | S25: MJ/m² | T25: =Mat_DB!V28 -> 0.01212 | U25: kg SO2-eq/m² | V25: =Mat_DB!W28 -> 0.002496 | W25: kg (PO4)3-eq/m² | X25: =Mat_DB!X28 -> 0.0008616 | Y25: kg C2H4-eq/m² | Z25: =Mat_DB!Y28 -> 2.028 | AA25: kg CO2-eq/m² | AB25: =Mat_DB!Z28 -> 2.124e-11 | AC25: kg CFC11-eq/m² | AD25: =Mat_DB!AC28 -> --- | AE25: mm | AF25: =Mat_DB!AD28 -> --- | AG25: mm | AH25: =Mat_DB!AE28 -> --- | AI25: mm | AJ25: 1 | AK25: 2 | AL25: 2 | AM25: 2 | AO25: 4 | AP25: 1 | AQ25: 1 | AR25: 1 | AS25: 0 | AT25: 0 | AU25: 0 | AV25: 0 | AW25: 0.09230769231 | AX25: 0.09230769231 | BC25: Alijó | BD25: 7 | BF25: Beira Interior Sul | BG25: 12 | BH25: 328 | BI25: 1274 | BJ25: 1800 | BK25: 25.3 | BL25: -7 | BN25: 17 | BO25: =Loc_DB!G28 -> 0 | BP25: =Loc_DB!J28 -> 0 | BQ25: =Loc_DB!N28 -> 0 | BU25: # FLOORS | BW25: =SA_Inp1!E26 -> 2 | GB25: HTFE | GD25: =GD24*GD21 -> 1143.080363 | GG25: =GG24*GG21 -> 973.7770752 | GJ25: 169.3032874 | GS25: LAYER 3 | GU25: Steel C90/U93 (90 mm) [Pertecno] | GX25: =IF(VLOOKUP(CX16,$C$9:$AV$61,36)=1,$AP$17,IF(VLOOKUP(CX16,$C$9:$AV$61,36)=6,$AP$17,VLOOKUP(CX16,$C$9:$AV$61,10))) -> 3.307407407 | HA25: m/m² | HD25: =VLOOKUP(CX16,$C$9:$AV$61,14) -> 1.31188376e-07 | HG25: kg SB-eq | HJ25: =VLOOKUP(CX16,$C$9:$AV$61,16) -> 72.9013 | HM25: MJ | HP25: =VLOOKUP(CX16,$C$9:$AV$61,18) -> 2.576412e-05 | HS25: kg SO2-eq | HV25: =VLOOKUP(CX16,$C$9:$AV$61,20) -> 1.501694e-06 | HY25: kg (PO4)3-eq | IB25: =VLOOKUP(CX16,$C$9:$AV$61,22) -> 0.0004660346 | IE25: kg C2H4-eq | IH25: =VLOOKUP(CX16,$C$9:$AV$61,24) -> 0.00553128 | IK25: kg CO2-eq | IN25: =VLOOKUP(CX16,$C$9:$AV$61,26) -> 0 | IQ25: kg CFC11-eq
C26: 18 | D26: =Mat_DB!D29 -> Mineral wool (200 mm) [Volcalis] | E26: =Mat_DB!H29 -> Cavity Insulation | F26: =Mat_DB!J29 -> 200 | G26: =Mat_DB!L29 -> λ [W/(m·K)] | H26: =Mat_DB!K29 -> 0.035 | I26: 0.035 | J26: --- | K26: =Mat_DB!M29 -> Volcalis | L26: =IF(Mat_DB!O29="","---",Mat_DB!O29) -> 1 | M26: =IF(Mat_DB!P29="","---",Mat_DB!P29) -> m²/m² | N26: =IF(Mat_DB!Q29="","---",Mat_DB!Q29) -> 6.48 | O26: €/m² | P26: =Mat_DB!T29 -> 0.000224 | Q26: kg SB-eq/m² | R26: =Mat_DB!U29 -> 69.2 | S26: MJ/m² | T26: =Mat_DB!V29 -> 0.0202 | U26: kg SO2-eq/m² | V26: =Mat_DB!W29 -> 0.00416 | W26: kg (PO4)3-eq/m² | X26: =Mat_DB!X29 -> 0.001436 | Y26: kg C2H4-eq/m² | Z26: =Mat_DB!Y29 -> 3.38 | AA26: kg CO2-eq/m² | AB26: =Mat_DB!Z29 -> 3.54e-11 | AC26: kg CFC11-eq/m² | AD26: =Mat_DB!AC29 -> --- | AE26: mm | AF26: =Mat_DB!AD29 -> --- | AG26: mm | AH26: =Mat_DB!AE29 -> --- | AI26: mm | AJ26: 1 | AK26: 2 | AL26: 2 | AM26: 2 | AO26: 5 | AP26: 1 | AQ26: 1 | AR26: 1 | AS26: 0 | AT26: 0 | AU26: 0 | AV26: 0 | AW26: 0.005555555556 | AX26: 0.005555555556 | BC26: Aljezur | BD26: 28 | BF26: Cova da Beira | BG26: 13 | BH26: 507 | BI26: 1687 | BJ26: 1400 | BK26: 22.5 | BL26: -6 | BN26: 18 | BO26: =Loc_DB!G29 -> 0 | BP26: =Loc_DB!J29 -> 0 | BQ26: =Loc_DB!N29 -> 0 | BU26: FLOOR HEIGHT | BW26: =SA_Inp1!E27 -> 2.7 | ED26: ISO 6946 COMBINED METHOD | EL26: GORGOLEWSKI METHOD 1 | ET26: GORGOLEWSKI METHOD 2 | FB26: GORGOLEWSKI METHOD 3 | FJ26: ASHRAE ZONE METHOD | GB26: CUFE | GD26: =GD20*0.001*(25-GD19)*2928/GD23 -> 1.817648433 | GG26: =GG20*0.001*(25-GG19)*2928/GG23 -> 1.548433892 | GJ26: 0.2692145408 | GS26: LAYER 4 | GU26: --- | GX26: =IF(VLOOKUP(CX17,$C$9:$AV$61,36)=1,$AP$17,IF(VLOOKUP(CX17,$C$9:$AV$61,36)=6,$AP$17,VLOOKUP(CX17,$C$9:$AV$61,10))) -> --- | HA26: --- | HD26: =VLOOKUP(CX17,$C$9:$AV$61,14) -> --- | HG26: kg SB-eq | HJ26: =VLOOKUP(CX17,$C$9:$AV$61,16) -> --- | HM26: MJ | HP26: =VLOOKUP(CX17,$C$9:$AV$61,18) -> --- | HS26: kg SO2-eq | HV26: =VLOOKUP(CX17,$C$9:$AV$61,20) -> --- | HY26: kg (PO4)3-eq | IB26: =VLOOKUP(CX17,$C$9:$AV$61,22) -> --- | IE26: kg C2H4-eq | IH26: =VLOOKUP(CX17,$C$9:$AV$61,24) -> --- | IK26: kg CO2-eq | IN26: =VLOOKUP(CX17,$C$9:$AV$61,26) -> --- | IQ26: kg CFC11-eq | KR26: LCA EVALUATION | LB26: Matrix | LH26: Info
C27: 19 | D27: =Mat_DB!D30 -> ETICS EPS (40 mm) [Weber] | E27: =Mat_DB!H30 -> External Insulation | F27: =Mat_DB!J30 -> 40 | G27: =Mat_DB!L30 -> R [(m²·K)/W] | H27: =Mat_DB!K30 -> 1.15 | I27: --- | J27: 1.15 | K27: =Mat_DB!M30 -> Cype | L27: =IF(Mat_DB!O30="","---",Mat_DB!O30) -> 1 | M27: =IF(Mat_DB!P30="","---",Mat_DB!P30) -> m²/m² | N27: =IF(Mat_DB!Q30="","---",Mat_DB!Q30) -> 34.2 | O27: €/m² | P27: =Mat_DB!T30 -> 0.052 | Q27: kg SB-eq/m² | R27: =Mat_DB!U30 -> 79.52 | S27: MJ/m² | T27: =Mat_DB!V30 -> 0.01512 | U27: kg SO2-eq/m² | V27: =Mat_DB!W30 -> 0.00172 | W27: kg (PO4)3-eq/m² | X27: =Mat_DB!X30 -> 0.00184 | Y27: kg C2H4-eq/m² | Z27: =Mat_DB!Y30 -> 4.76 | AA27: kg CO2-eq/m² | AB27: =Mat_DB!Z30 -> 5.22536e-07 | AC27: kg CFC11-eq/m² | AD27: =Mat_DB!AC30 -> --- | AE27: mm | AF27: =Mat_DB!AD30 -> --- | AG27: mm | AH27: =Mat_DB!AE30 -> --- | AI27: mm | AJ27: 1 | AK27: 1 | AL27: 3 | AM27: 2 | AO27: 6 | AP27: 1 | AQ27: 1 | AR27: 1 | AS27: 0 | AT27: 0 | AU27: 0 | AV27: 0 | AW27: --- | AX27: --- | BC27: Aljustrel | BD27: 27 | BF27: Serra da Estrela | BG27: 14 | BH27: 553 | BI27: 1851 | BJ27: 1600 | BK27: 21 | BL27: -4 | BN27: 19 | BO27: =Loc_DB!G30 -> 0 | BP27: =Loc_DB!J30 -> 0 | BQ27: =Loc_DB!N30 -> 0 | GB27: CTFE | GD27: =GD26*GD21 -> 435.7993882 | GG27: =GG26*GG21 -> 371.2525099 | GJ27: 64.54687831 | GS27: LAYER 5 | GU27: --- | GX27: --- | HA27: --- | HD27: --- | HG27: kg SB-eq | HJ27: --- | HM27: MJ | HP27: --- | HS27: kg SO2-eq | HV27: --- | HY27: kg (PO4)3-eq | IB27: --- | IE27: kg C2H4-eq | IH27: --- | IK27: kg CO2-eq | IN27: --- | IQ27: kg CFC11-eq | IY27: Material 1 | JB27: Unit Cost | JH27: Unit Consumption | JN27: Material 2 | JQ27: Unit Cost | JW27: Unit Consumption | KC27: Custo 1 | KF27: Custo 2 | KJ27: COST B
C28: 20 | D28: =Mat_DB!D31 -> ETICS EPS (50 mm) [Weber] | E28: =Mat_DB!H31 -> External Insulation | F28: =Mat_DB!J31 -> 50 | G28: =Mat_DB!L31 -> R [(m²·K)/W] | H28: =Mat_DB!K31 -> 1.4375 | I28: --- | J28: 1.4375 | K28: =Mat_DB!M31 -> Cype | L28: =IF(Mat_DB!O31="","---",Mat_DB!O31) -> 1 | M28: =IF(Mat_DB!P31="","---",Mat_DB!P31) -> m²/m² | N28: =IF(Mat_DB!Q31="","---",Mat_DB!Q31) -> 35.725 | O28: €/m² | P28: =Mat_DB!T31 -> 0.065 | Q28: kg SB-eq/m² | R28: =Mat_DB!U31 -> 99.4 | S28: MJ/m² | T28: =Mat_DB!V31 -> 0.0189 | U28: kg SO2-eq/m² | V28: =Mat_DB!W31 -> 0.00215 | W28: kg (PO4)3-eq/m² | X28: =Mat_DB!X31 -> 0.0023 | Y28: kg C2H4-eq/m² | Z28: =Mat_DB!Y31 -> 5.95 | AA28: kg CO2-eq/m² | AB28: =Mat_DB!Z31 -> 6.5317e-07 | AC28: kg CFC11-eq/m² | AD28: =Mat_DB!AC31 -> --- | AE28: mm | AF28: =Mat_DB!AD31 -> --- | AG28: mm | AH28: =Mat_DB!AE31 -> --- | AI28: mm | AJ28: 1 | AK28: 1 | AL28: 3 | AM28: 2 | AO28: 7 | AP28: 1 | AQ28: 1 | AR28: 1 | AS28: 0 | AT28: 0 | AU28: 0 | AV28: 0 | AW28: --- | AX28: --- | BC28: Almada | BD28: 23 | BF28: Dão-Lafões | BG28: 15 | BH28: 497 | BI28: 1702 | BJ28: 1900 | BK28: 21.2 | BL28: -3 | BN28: 20 | BO28: =Loc_DB!G31 -> 0 | BP28: =Loc_DB!J31 -> 0 | BQ28: =Loc_DB!N31 -> 0 | BU28: SOLUTION B | GB28: UFE | GD28: =GD24+GD26 -> 6.585250879 | GG28: =GG24+GG26 -> 5.609899838 | GJ28: 0.9753510413 | GM28: % SAVED ENERGY | GS28: LAYER 6 | GU28: --- | GX28: --- | HA28: --- | HD28: --- | HG28: kg SB-eq | HJ28: --- | HM28: MJ | HP28: --- | HS28: kg SO2-eq | HV28: --- | HY28: kg (PO4)3-eq | IB28: --- | IE28: kg C2H4-eq | IH28: --- | IK28: kg CO2-eq | IN28: --- | IQ28: kg CFC11-eq | IW28: LAYER 1 | IY28: =CM34 -> Gypsum Board (12,5 mm) [Gyptec] | JB28: =VLOOKUP(CO34,$C$9:$AV$61,12) -> 3.25 | JE28: =VLOOKUP(CO34,$C$9:$AV$61,13) -> €/m² | JH28: =IF(VLOOKUP(CO34,$C$9:$AV$61,36)=7,1,VLOOKUP(CO34,$C$9:$AV$61,10)) -> 1 | JK28: =VLOOKUP(CO34,$C$9:$AV$61,11) -> m²/m² | JN28: =CV34 -> --- | JQ28: =VLOOKUP(CX34,$C$9:$AV$61,12) -> --- | JT28: =VLOOKUP(CX34,$C$9:$AV$61,13) -> --- | JW28: =IF(VLOOKUP(CX34,$C$9:$AV$61,36)=1,$AT$17,IF(VLOOKUP(CX34,$C$9:$AV$61,36)=6,$AT$17,VLOOKUP(CX34,$C$9:$AV$61,10))) -> --- | JZ28: =VLOOKUP(CX34,$C$9:$AV$61,11) -> --- | KC28: =IF(CO34=1,0,JB28*JH28) -> 3.25 | KF28: =IF(CX34=1,0,JQ28*JW28) -> 0 | KT28: A | KU28: B | KV28: A | KW28: B | KX28: Weights | KY28: A | KZ28: B | LB28: =IF(KT29<KU29,1,IF(KT29>KU29,4,5)) -> 1 | LC28: =IF(KT29<0,1,IF(KT29>0,2,5)) -> 2 | LD28: =IF(KU29<0,3,IF(KU29>0,4,3)) -> 4 | LE28: =LC28*LD28 -> 8 | LF28: =LE28*LB28 -> 8 | LH28: ++ | LI28: + | LJ28: 32
C29: 21 | D29: =Mat_DB!D32 -> ETICS EPS (70 mm) [Weber] | E29: =Mat_DB!H32 -> External Insulation | F29: =Mat_DB!J32 -> 70 | G29: =Mat_DB!L32 -> R [(m²·K)/W] | H29: =Mat_DB!K32 -> 2.0125 | I29: --- | J29: 2.0125 | K29: =Mat_DB!M32 -> Cype | L29: =IF(Mat_DB!O32="","---",Mat_DB!O32) -> 1 | M29: =IF(Mat_DB!P32="","---",Mat_DB!P32) -> m²/m² | N29: =IF(Mat_DB!Q32="","---",Mat_DB!Q32) -> 38.775 | O29: €/m² | P29: =Mat_DB!T32 -> 0.091 | Q29: kg SB-eq/m² | R29: =Mat_DB!U32 -> 139.16 | S29: MJ/m² | T29: =Mat_DB!V32 -> 0.02646 | U29: kg SO2-eq/m² | V29: =Mat_DB!W32 -> 0.00301 | W29: kg (PO4)3-eq/m² | X29: =Mat_DB!X32 -> 0.00322 | Y29: kg C2H4-eq/m² | Z29: =Mat_DB!Y32 -> 8.33 | AA29: kg CO2-eq/m² | AB29: =Mat_DB!Z32 -> 9.14438e-07 | AC29: kg CFC11-eq/m² | AD29: =Mat_DB!AC32 -> --- | AE29: mm | AF29: =Mat_DB!AD32 -> --- | AG29: mm | AH29: =Mat_DB!AE32 -> --- | AI29: mm | AJ29: 1 | AK29: 1 | AL29: 3 | AM29: 2 | AO29: 8 | AP29: 1 | AQ29: 1 | AR29: 1 | AS29: 0 | AT29: 0 | AU29: 0 | AV29: 0 | AW29: --- | AX29: --- | BC29: Almeida | BD29: 11 | BF29: Pinhal Interior Norte | BG29: 16 | BH29: 361 | BI29: 1555 | BJ29: 1600 | BK29: 21.2 | BL29: -2 | BN29: 21 | BO29: =Loc_DB!G32 -> 0 | BP29: =Loc_DB!J32 -> 0 | BQ29: =Loc_DB!N32 -> 0 | ED29: PARALLEL PATH METHOD | EH29: ISOTHERMAL PLANE METHOD | EL29: PARALLEL PATH METHOD | EP29: ISOTHERMAL PLANE METHOD | ET29: PARALLEL PATH METHOD | EX29: ISOTHERMAL PLANE METHOD | FB29: PARALLEL PATH METHOD | FF29: ISOTHERMAL PLANE METHOD | FJ29: Zone CAV | FN29: Zone W | GB29: TFE | GD29: =GD25+GD27 -> 1578.879751 | GG29: =GG25+GG27 -> 1345.029585 | GJ29: 233.8501657 | GM29: =1-GG29/GD29 -> 0.1481114477 | GS29: LAYER 7 | GU29: --- | GX29: --- | HA29: --- | HD29: --- | HG29: kg SB-eq | HJ29: --- | HM29: MJ | HP29: --- | HS29: kg SO2-eq | HV29: --- | HY29: kg (PO4)3-eq | IB29: --- | IE29: kg C2H4-eq | IH29: --- | IK29: kg CO2-eq | IN29: --- | IQ29: kg CFC11-eq | IW29: LAYER 2 | IY29: OSB (12 mm) [Kronospan] | JB29: 7.32 | JE29: €/m² | JH29: 1 | JK29: m²/m² | JN29: --- | JQ29: --- | JT29: --- | JW29: --- | JZ29: --- | KC29: 7.32 | KF29: =IF(CX35=1,0,JQ29*JW29) -> 0 | KJ29: Unit | KL29: =SUM(KC28:KE37)+SUM(KF28:KH37) -> 44.46242319 | KR29: ADPE | KT29: =HD33+0.00000001 -> 0.0001066011884 | KU29: =HD60+0.00000001 -> 0.0001073541296 | KV29: =IF(LF28=32,KT29,IF(LF28=8,KT29,IF(LF28=3,KT29-2*KT29,IF(LF28=12,KU29-2*KU29+KT29-KU29,IF(LF28=24,-KU29+KT29-KU29,IF(LF28=4,-KT29,10)))))) -> 0.0001066011884 | KW29: =IF(LF28=32,KU29,IF(LF28=8,KU29,IF(LF28=3,KT29-2*KT29+KU29-KT29,IF(LF28=12,KU29-2*KU29,IF(LF28=24,-KU29,IF(LF28=4,-KT29+KU29-KT29,10)))))) -> 0.0001073541296 | KX29: =KT17 -> 0.14 | KY29: =IF(KV29=10,1,SMALL(KV29:KW29,1)/KV29) -> 1 | KZ29: =IF(KV29=10,1,SMALL(KV29:KW29,1)/KW29) -> 0.992986379 | LB29: 1 | LC29: 2 | LD29: 4 | LE29: 8 | LF29: 8 | LH29: + | LI29: ++ | LJ29: 8
C30: 22 | D30: =Mat_DB!D33 -> ETICS EPS (100 mm) [Weber] | E30: =Mat_DB!H33 -> External Insulation | F30: =Mat_DB!J33 -> 100 | G30: =Mat_DB!L33 -> R [(m²·K)/W] | H30: =Mat_DB!K33 -> 2.875 | I30: --- | J30: 2.875 | K30: =Mat_DB!M33 -> Cype | L30: =IF(Mat_DB!O33="","---",Mat_DB!O33) -> 1 | M30: =IF(Mat_DB!P33="","---",Mat_DB!P33) -> m²/m² | N30: =IF(Mat_DB!Q33="","---",Mat_DB!Q33) -> 43.35 | O30: €/m² | P30: =Mat_DB!T33 -> 0.13 | Q30: kg SB-eq/m² | R30: =Mat_DB!U33 -> 198.8 | S30: MJ/m² | T30: =Mat_DB!V33 -> 0.0378 | U30: kg SO2-eq/m² | V30: =Mat_DB!W33 -> 0.0043 | W30: kg (PO4)3-eq/m² | X30: =Mat_DB!X33 -> 0.0046 | Y30: kg C2H4-eq/m² | Z30: =Mat_DB!Y33 -> 11.9 | AA30: kg CO2-eq/m² | AB30: =Mat_DB!Z33 -> 1.30634e-06 | AC30: kg CFC11-eq/m² | AD30: =Mat_DB!AC33 -> --- | AE30: mm | AF30: =Mat_DB!AD33 -> --- | AG30: mm | AH30: =Mat_DB!AE33 -> --- | AI30: mm | AJ30: 1 | AK30: 1 | AL30: 3 | AM30: 2 | AO30: 9 | AP30: 1 | AQ30: 1 | AR30: 1 | AS30: 0 | AT30: 0 | AU30: 0 | AV30: 0 | AW30: --- | AX30: --- | BC30: Almeirim | BD30: 21 | BF30: Pinhal Interior Sul | BG30: 17 | BH30: 361 | BI30: 1511 | BJ30: 1500 | BK30: 22.4 | BL30: -3 | BN30: 22 | BO30: =Loc_DB!G33 -> 0 | BP30: =Loc_DB!J33 -> 0 | BQ30: =Loc_DB!N33 -> 0 | ED30: Path A | EF30: Path B | EL30: Path A | EN30: Path B | ET30: Path A | EV30: Path B | FB30: Path A | FD30: Path B | GS30: LAYER 8 | GU30: --- | GX30: --- | HA30: --- | HD30: --- | HG30: kg SB-eq | HJ30: --- | HM30: MJ | HP30: --- | HS30: kg SO2-eq | HV30: --- | HY30: kg (PO4)3-eq | IB30: --- | IE30: kg C2H4-eq | IH30: --- | IK30: kg CO2-eq | IN30: --- | IQ30: kg CFC11-eq | IW30: LAYER 3 | IY30: Air Cavity (10 mm) [ISO 6946] | JB30: 0 | JE30: €/m² | JH30: =IF(VLOOKUP(CO36,$C$9:$AV$61,36)=7,1,VLOOKUP(CO36,$C$9:$AV$61,10)) -> 1 | JK30: m²/m² | JN30: TB Strip XPS (10 mm) [IFoam] | JQ30: =VLOOKUP(CX36,$C$9:$AV$61,12) -> 0.09 | JT30: €/m² | JW30: 3.307407407 | JZ30: m²/m² | KC30: 0 | KF30: =IF(CX36=1,0,JQ30*JW30) -> 0.2976666667 | KJ30: Total | KL30: =KL29*GG36 -> 10660.31058 | KR30: ADPF | KT30: =HJ33+0.00000001 -> 216.1613 | KU30: =HJ60+0.00000001 -> 249.043653 | KV30: 216.1613 | KW30: 249.043653 | KX30: 0.14 | KY30: 1 | KZ30: 0.867965505 | LB30: 1 | LC30: 2 | LD30: 4 | LE30: 8 | LF30: 8 | LH30: -- | LI30: - | LJ30: 3
C31: 23 | D31: =Mat_DB!D34 -> ETICS EPS (120 mm) [Weber] | E31: =Mat_DB!H34 -> External Insulation | F31: =Mat_DB!J34 -> 120 | G31: =Mat_DB!L34 -> R [(m²·K)/W] | H31: =Mat_DB!K34 -> 3.45 | I31: --- | J31: 3.45 | K31: =Mat_DB!M34 -> Cype | L31: =IF(Mat_DB!O34="","---",Mat_DB!O34) -> 1 | M31: =IF(Mat_DB!P34="","---",Mat_DB!P34) -> m²/m² | N31: =IF(Mat_DB!Q34="","---",Mat_DB!Q34) -> 46.4 | O31: €/m² | P31: =Mat_DB!T34 -> 0.156 | Q31: kg SB-eq/m² | R31: =Mat_DB!U34 -> 238.56 | S31: MJ/m² | T31: =Mat_DB!V34 -> 0.04536 | U31: kg SO2-eq/m² | V31: =Mat_DB!W34 -> 0.00516 | W31: kg (PO4)3-eq/m² | X31: =Mat_DB!X34 -> 0.00552 | Y31: kg C2H4-eq/m² | Z31: =Mat_DB!Y34 -> 14.28 | AA31: kg CO2-eq/m² | AB31: =Mat_DB!Z34 -> 1.567608e-06 | AC31: kg CFC11-eq/m² | AD31: =Mat_DB!AC34 -> --- | AE31: mm | AF31: =Mat_DB!AD34 -> --- | AG31: mm | AH31: =Mat_DB!AE34 -> --- | AI31: mm | AJ31: 1 | AK31: 1 | AL31: 3 | AM31: 2 | AO31: 10 | AP31: 1 | AQ31: 1 | AR31: 1 | AS31: 0 | AT31: 0 | AU31: 0 | AV31: 0 | AW31: --- | AX31: --- | BC31: Almodôvar | BD31: 27 | BF31: Pinhal Litoral | BG31: 18 | BH31: 126 | BI31: 1323 | BJ31: 1900 | BK31: 20.1 | BL31: -2 | BN31: 23 | BO31: =Loc_DB!G34 -> 0 | BP31: =Loc_DB!J34 -> 0 | BQ31: =Loc_DB!N34 -> 0 | BU31: Building Features 1 | CA31: Building Features 2 | CG31: Location | CK31: Wall Composition | DM31: e | DN31: lambda 1 | DO31: lambda 1' | DP31: lambda 2 | DQ31: lambda 2' | DR31: r 1 | DS31: r 2 | DT31: R1 | DU31: R2 | DV31: Ref. 1 | DW31: Ref. 2 | DX31: W-Met-1 | DY31: W-Met-2 | DZ31: W-Met-1 | EA31: Sum | EB31: W-TB | EC31: Rsi | ED31: 0.13 | EF31: 0.13 | EI31: 0.13 | EL31: =ED31 -> 0.13 | EN31: =EF31 -> 0.13 | EQ31: =EI31 -> 0.13 | ET31: =ED31 -> 0.13 | EV31: =EF31 -> 0.13 | EY31: =EI31 -> 0.13 | FB31: =ED31 -> 0.13 | FD31: =EF31 -> 0.13 | FG31: =EI31 -> 0.13 | FK31: 0.13 | FO31: 0.13 | GB31: OTHERS | GS31: LAYER 9 | GU31: --- | GX31: --- | HA31: --- | HD31: --- | HG31: kg SB-eq | HJ31: --- | HM31: MJ | HP31: --- | HS31: kg SO2-eq | HV31: --- | HY31: kg (PO4)3-eq | IB31: --- | IE31: kg C2H4-eq | IH31: --- | IK31: kg CO2-eq | IN31: --- | IQ31: kg CFC11-eq | IW31: LAYER 4 | IY31: Mineral wool (90 mm) [Volcalis] | JB31: 2.916 | JE31: €/m² | JH31: =IF(VLOOKUP(CO37,$C$9:$AV$61,36)=7,1,VLOOKUP(CO37,$C$9:$AV$61,10)) -> 1 | JK31: m²/m² | JN31: Steel C90/U93 (90 mm) [Pertecno] | JQ31: =VLOOKUP(CX37,$C$9:$AV$61,12) -> 6.23482 | JT31: €/m | JW31: =IF(VLOOKUP(CX37,$C$9:$AV$61,36)=1,$AT$17,IF(VLOOKUP(CX37,$C$9:$AV$61,36)=6,$AT$17,VLOOKUP(CX37,$C$9:$AV$61,10))) -> 3.307407407 | JZ31: m/m² | KC31: 2.916 | KF31: 20.62108985 | KR31: AP | KT31: =HP33+0.00000001 -> 0.04805177412 | KU31: =HP60+0.00000001 -> 0.05416942118 | KV31: 0.04805177412 | KW31: 0.05416942118 | KX31: 0.14 | KY31: 1 | KZ31: 0.8870645666 | LB31: 1 | LC31: 2 | LD31: 4 | LE31: 8 | LF31: 8 | LH31: - | LI31: -- | LJ31: 12
C32: 24 | D32: =Mat_DB!D35 -> ETICS EPS (150 mm) [Weber] | E32: =Mat_DB!H35 -> External Insulation | F32: =Mat_DB!J35 -> 150 | G32: =Mat_DB!L35 -> R [(m²·K)/W] | H32: =Mat_DB!K35 -> 4.3125 | I32: --- | J32: 4.3125 | K32: =Mat_DB!M35 -> Cype | L32: =IF(Mat_DB!O35="","---",Mat_DB!O35) -> 1 | M32: =IF(Mat_DB!P35="","---",Mat_DB!P35) -> m²/m² | N32: =IF(Mat_DB!Q35="","---",Mat_DB!Q35) -> 50.975 | O32: €/m² | P32: =Mat_DB!T35 -> 0.195 | Q32: kg SB-eq/m² | R32: =Mat_DB!U35 -> 298.2 | S32: MJ/m² | T32: =Mat_DB!V35 -> 0.0567 | U32: kg SO2-eq/m² | V32: =Mat_DB!W35 -> 0.00645 | W32: kg (PO4)3-eq/m² | X32: =Mat_DB!X35 -> 0.0069 | Y32: kg C2H4-eq/m² | Z32: =Mat_DB!Y35 -> 17.85 | AA32: kg CO2-eq/m² | AB32: =Mat_DB!Z35 -> 1.95951e-06 | AC32: kg CFC11-eq/m² | AD32: =Mat_DB!AC35 -> --- | AE32: mm | AF32: =Mat_DB!AD35 -> --- | AG32: mm | AH32: =Mat_DB!AE35 -> --- | AI32: mm | AJ32: 1 | AK32: 1 | AL32: 3 | AM32: 2 | AP32: =SUM(AP22:AP31) -> 10 | AQ32: =SUM(AQ22:AQ31) -> 10 | AR32: =SUM(AR22:AR31) -> 10 | AS32: =SUM(AS22:AS31) -> 0 | AT32: =IF(AS32=5,0.11,IF(AS32=10,0.15,IF(AS32>=25,0.18,IF(AS32<5,0.11*(AS32/5),IF(AS32<10,0.11+((AS32-5)/5)*0.04,IF(AS32<15,0.15+((AS32-10)/5)*0.02,IF(AS32<25,0.17+((AS32-15)/10)*0.01,0))))))) -> 0 | BC32: Alpiarça | BD32: 21 | BF32: Oeste | BG32: 19 | BH32: 99 | BI32: 1165 | BJ32: 2200 | BK32: 21 | BL32: 0 | BN32: 24 | BO32: =Loc_DB!G35 -> 0 | BP32: =Loc_DB!J35 -> 0 | BQ32: =Loc_DB!N35 -> 0 | DK32: LAYER 1 | DM32: =VLOOKUP(CO14,$C$9:$AV$61,4) -> 12.5 | DN32: =VLOOKUP(CO14,$C$9:$AV$61,7) -> 0.175 | DO32: =DM32*0.001/DR32 -> 0.175 | DP32: =VLOOKUP(CX14,$C$9:$AV$61,7) -> --- | DQ32: =DM32*0.001/DS32 ->  | DR32: =DT32 -> 0.07142857143 | DS32: =IF(VLOOKUP(CX14,$C$9:$AV$61,35)=2,(DM32*0.001)/DP32,VLOOKUP(CX14,$C$9:$AV$61,8)) -> --- | DT32: =AX22 -> 0.07142857143 | DU32: =IF(VLOOKUP(CX14,$C$9:$AV$61,34)=0,DT32,DS32) -> 0.07142857143 | DV32: =VLOOKUP(CO14,$C$9:$AV$61,9) -> Gyptec | DW32: =VLOOKUP(CX14,$C$9:$AV$61,9) -> --- | DX32: =1/($DS$12/($DM$13/DQ32)+$DS$13/($DM$13/DO32)) ->  | DY32: =1/($DS$14/(($DM$12-2*$DM$13)/DQ32)+$DS$15/(($DM$12-2*$DM$13)/DO32)) ->  | DZ32: =1/($DS$12/($DM$13/DQ32)+$DS$13/($DM$13/DO32)) ->  | EA32: =DX32+DY32+DZ32 ->  | EB32: =1/($DS$18/DU32+$DS$19/DT32) -> 0.07142857143 | ED32: =DT32 -> 0.07142857143 | EF32: =DU32 -> 0.07142857143 | EI32: =IF(VLOOKUP(CX14,$C$9:$AV$61,36)=1,1/(($DS$21/ED32)+($DS$20/EF32)),IF(VLOOKUP(CX14,$C$9:$AV$61,36)=6,1/(($DS$23/ED32)+($DS$22/EF32)),ED32)) -> 0.07142857143 | EL32: 0.07142857143 | EN32: 0.07142857143 | EQ32: 0.07142857143 | ET32: 0.07142857143 | EV32: 0.07142857143 | EY32: 0.07142857143 | FB32: 0.07142857143 | FD32: 0.07142857143 | FG32: 0.07142857143 | FK32: =ED32 -> 0.07142857143 | FO32: =IF(VLOOKUP(CX14,$C$9:$AV$61,36)=1,EA32,IF(VLOOKUP(CX14,$C$9:$AV$61,36)=6,EB32,FK32)) -> 0.07142857143 | GS32: LAYER 10 | GU32: --- | GX32: --- | HA32: --- | HD32: --- | HG32: kg SB-eq | HJ32: --- | HM32: MJ | HP32: --- | HS32: kg SO2-eq | HV32: --- | HY32: kg (PO4)3-eq | IB32: --- | IE32: kg C2H4-eq | IH32: --- | IK32: kg CO2-eq | IN32: --- | IQ32: kg CFC11-eq | IW32: LAYER 5 | IY32: Air Cavity (10 mm) [ISO 6946] | JB32: 0 | JE32: €/m² | JH32: 1 | JK32: m²/m² | JN32: TB Strip XPS (10 mm) [IFoam] | JQ32: 0.09 | JT32: €/m² | JW32: =IF(VLOOKUP(CX38,$C$9:$AV$61,36)=1,$AT$17,IF(VLOOKUP(CX38,$C$9:$AV$61,36)=6,$AT$17,VLOOKUP(CX38,$C$9:$AV$61,10))) -> 3.307407407 | JZ32: m²/m² | KC32: 0 | KF32: 0.2976666667 | KR32: EP | KT32: =HV33+0.00000001 -> 0.009227511694 | KU32: =HV60+0.00000001 -> 0.01002162934 | KV32: 0.009227511694 | KW32: 0.01002162934 | KX32: 0.14 | KY32: 1 | KZ32: 0.920759627 | LB32: 5 | LC32: 2 | LD32: 4 | LE32: 8 | LF32: 40 | LH32: + | LI32: - | LJ32: 24
C33: 25 | D33: =Mat_DB!D36 -> Steel C90/U93 (90 mm) [Pertecno] | E33: =Mat_DB!H36 -> LSF Structure (Studs/Tracks) | F33: =Mat_DB!J36 -> 90 | G33: =Mat_DB!L36 -> λ [W/(m·K)] | H33: =Mat_DB!K36 -> 50 | I33: 50 | J33: --- | K33: =Mat_DB!M36 -> Pertecno | L33: =IF(Mat_DB!O36="","---",Mat_DB!O36) -> --- | M33: =IF(Mat_DB!P36="","---",Mat_DB!P36) -> m/m² | N33: =IF(Mat_DB!Q36="","---",Mat_DB!Q36) -> 6.23482 | O33: €/m | P33: =Mat_DB!T36 -> 1.31188376e-07 | Q33: kg SB-eq/m | R33: =Mat_DB!U36 -> 72.9013 | S33: MJ/m | T33: =Mat_DB!V36 -> 2.576412e-05 | U33: kg SO2-eq/m | V33: =Mat_DB!W36 -> 1.501694e-06 | W33: kg (PO4)3-eq/m | X33: =Mat_DB!X36 -> 0.0004660346 | Y33: kg C2H4-eq/m | Z33: =Mat_DB!Y36 -> 0.00553128 | AA33: kg CO2-eq/m | AB33: =Mat_DB!Z36 -> 0 | AC33: kg CFC11-eq/m | AD33: =Mat_DB!AC36 -> 43 | AE33: mm | AF33: =Mat_DB!AD36 -> 90 | AG33: mm | AH33: =Mat_DB!AE36 -> 1.5 | AI33: mm | AJ33: 1 | AK33: 2 | AL33: 1 | AM33: 1 | BC33: Alter do Chão | BD33: 24 | BF33: Médio Tejo | BG33: 20 | BH33: 168 | BI33: 1330 | BJ33: 1300 | BK33: 22.1 | BL33: -7 | BN33: 25 | BO33: =Loc_DB!G36 -> 0 | BP33: =Loc_DB!J36 -> 0 | BQ33: =Loc_DB!N36 -> 0 | BU33: COUNTRY | BW33: =SB_Inp1!C16 -> 1 - Portugal | BY33: =IF(BW33=DE67,1,2) -> 1 | CA33: COP | CC33: =SB_Inp1!P20 -> 3.5 | CG33: Portugal | CI33: =IF(BY33=1,"1 - Portugal [ENABLED]", "1 - Portugal [DISABLED]") -> 1 - Portugal [ENABLED] | CK33: LAYERS | CM33: Material 1 | CP33: Lambda | CS33: R | CV33: Material 2 | CY33: Lambda | DB33: R | DE33: e | DK33: LAYER 2 | DM33: 12 | DN33: 0.13 | DO33: 0.13 | DP33: --- | DR33: 0.09230769231 | DS33: --- | DT33: 0.09230769231 | DU33: 0.09230769231 | DV33: Kronospan | DW33: --- | DX33: =1/($DS$12/($DM$13/DQ33)+$DS$13/($DM$13/DO33)) ->  | EB33: 0.09230769231 | ED33: 0.09230769231 | EF33: 0.09230769231 | EI33: =IF(VLOOKUP(CX15,$C$9:$AV$61,36)=1,1/(($DS$21/ED33)+($DS$20/EF33)),IF(VLOOKUP(CX15,$C$9:$AV$61,36)=6,1/(($DS$23/ED33)+($DS$22/EF33)),ED33)) -> 0.09230769231 | EL33: 0.09230769231 | EN33: 0.09230769231 | EQ33: 0.09230769231 | ET33: 0.09230769231 | EV33: 0.09230769231 | EY33: 0.09230769231 | FB33: 0.09230769231 | FD33: 0.09230769231 | FG33: 0.09230769231 | FK33: 0.09230769231 | FO33: 0.09230769231 | GD33: SOLUTION A | GG33: SOLUTION B | HD33: =SUM(HD12:HF21)+SUM(HD23:HF32) -> 0.0001065911884 | HJ33: =SUM(HJ12:HL21)+SUM(HJ23:HL32) -> 216.1613 | HP33: =SUM(HP12:HR21)+SUM(HP23:HR32) -> 0.04805176412 | HV33: =SUM(HV12:HX21)+SUM(HV23:HX32) -> 0.009227501694 | IB33: =SUM(IB12:ID21)+SUM(IB23:ID32) -> 0.0148252346 | IH33: =SUM(IH12:IJ21)+SUM(IH23:IJ32) -> -12.62546872 | IN33: =SUM(IN12:IP21)+SUM(IN23:IP32) -> 1.576181932e-07 | IW33: LAYER 6 | IY33: OSB (12 mm) [Kronospan] | JB33: 7.32 | JE33: €/m² | JH33: 1 | JK33: m²/m² | JN33: --- | JQ33: --- | JT33: --- | JW33: --- | JZ33: --- | KC33: 7.32 | KF33: 0 | KR33: POCP | KT33: 1e-05 | KU33: 1e-05 | KV33: 10 | KW33: 10 | KX33: 0.14 | KY33: 1 | KZ33: 1 | LB33: 1 | LC33: 1 | LD33: 3 | LE33: 3 | LF33: 3 | LH33: - | LI33: + | LJ33: 4
C34: 26 | D34: =Mat_DB!D37 -> Steel C150/U153 (150 mm) [Pertecno] | E34: =Mat_DB!H37 -> LSF Structure (Studs/Tracks) | F34: =Mat_DB!J37 -> 150 | G34: =Mat_DB!L37 -> λ [W/(m·K)] | H34: =Mat_DB!K37 -> 50 | I34: 50 | J34: --- | K34: =Mat_DB!M37 -> Pertecno | L34: =IF(Mat_DB!O37="","---",Mat_DB!O37) -> --- | M34: =IF(Mat_DB!P37="","---",Mat_DB!P37) -> m/m² | N34: =IF(Mat_DB!Q37="","---",Mat_DB!Q37) -> 8.04924 | O34: €/m | P34: =Mat_DB!T37 -> 1.69366032e-07 | Q34: kg SB-eq/m | R34: =Mat_DB!U37 -> 94.1166 | S34: MJ/m | T34: =Mat_DB!V37 -> 3.326184e-05 | U34: kg SO2-eq/m | V34: =Mat_DB!W37 -> 1.938708e-06 | W34: kg (PO4)3-eq/m | X34: =Mat_DB!X37 -> 0.0006016572 | Y34: kg C2H4-eq/m | Z34: =Mat_DB!Y37 -> 0.00714096 | AA34: kg CO2-eq/m | AB34: =Mat_DB!Z37 -> 0 | AC34: kg CFC11-eq/m | AD34: =Mat_DB!AC37 -> 43 | AE34: mm | AF34: =Mat_DB!AD37 -> 150 | AG34: mm | AH34: =Mat_DB!AE37 -> 1.5 | AI34: mm | AJ34: 1 | AK34: 2 | AL34: 1 | AM34: 1 | BC34: Alvaiázere | BD34: 16 | BF34: Lezíria do Tejo | BG34: 21 | BH34: 73 | BI34: 1135 | BJ34: 2700 | BK34: 23.1 | BL34: -6 | BN34: 26 | BO34: =Loc_DB!G37 -> 0 | BP34: =Loc_DB!J37 -> 0 | BQ34: =Loc_DB!N37 -> 0 | BU34: PORTUGAL | BW34: =SB_Inp1!H16 -> Coimbra | CA34: EER | CC34: =SB_Inp1!P21 -> 3.5 | CG34: Other Locations | CI34: =IF(BY33=2,"2 - Other Locations [ENABLED]", "2 - Other Locations [DISABLED]") -> 2 - Other Locations [DISABLED] | CK34: LAYER 1 | CM34: =SB_Inp2!D17 -> Gypsum Board (12,5 mm) [Gyptec] | CO34: =IF(CM34=$D$9,1,IF(CM34=$D$10,2,IF(CM34=$D$11,3,IF(CM34=$D$12,4,IF(CM34=$D$13,5,IF(CM34=$D$14,6,IF(CM34=$D$15,7,IF(CM34=$D$16,8,IF(CM34=$D$17,9,IF(CM34=$D$18,10,IF(CM34=$D$19,11,IF(CM34=$D$20,12,IF(CM34=$D$21,13,IF(CM34=$D$22,14,IF(CM34=$D$23,15,IF(CM34=$D$24,16,IF(CM34=$D$25,17,IF(CM34=$D$26,18,IF(CM34=$D$27,19,IF(CM34=$D$28,20,IF(CM34=$D$29,21,IF(CM34=$D$30,22,IF(CM34=$D$31,23,IF(CM34=$D$32,24,IF(CM34=$D$33,25,IF(CM34=$D$34,26,IF(CM34=$D$35,27,IF(CM34=$D$36,28,IF(CM34=$D$37,29,IF(CM34=$D$38,30,IF(CM34=$D$39,31,IF(CM34=$D$40,32,IF(CM34=$D$41,33,IF(CM34=$D$42,34,IF(CM34=$D$43,35,IF(CM34=$D$44,36,IF(CM34=$D$45,37,IF(CM34=$D$46,38,IF(CM34=$D$47,39,IF(CM34=$D$48,40,IF(CM34=$D$49,41,IF(CM34=$D$50,42,IF(CM34=$D$51,43,IF(CM34=$D$52,44,IF(CM34=$D$53,45,IF(CM34=$D$54,46,IF(CM34=$D$55,47,IF(CM34=$D$56,48,IF(CM34=$D$57,49,IF(CM34=$D$58,50,0)))))))))))))))))))))))))))))))))))))))))))))))))) -> 4 | CP34: =DN77 -> 0.175 | CS34: =DR77 -> 0.07142857143 | CV34: =SB_Inp2!I17 -> --- | CX34: =IF(CV34=$D$9,1,IF(CV34=$D$10,2,IF(CV34=$D$11,3,IF(CV34=$D$12,4,IF(CV34=$D$13,5,IF(CV34=$D$14,6,IF(CV34=$D$15,7,IF(CV34=$D$16,8,IF(CV34=$D$17,9,IF(CV34=$D$18,10,IF(CV34=$D$19,11,IF(CV34=$D$20,12,IF(CV34=$D$21,13,IF(CV34=$D$22,14,IF(CV34=$D$23,15,IF(CV34=$D$24,16,IF(CV34=$D$25,17,IF(CV34=$D$26,18,IF(CV34=$D$27,19,IF(CV34=$D$28,20,IF(CV34=$D$29,21,IF(CV34=$D$30,22,IF(CV34=$D$31,23,IF(CV34=$D$32,24,IF(CV34=$D$33,25,IF(CV34=$D$34,26,IF(CV34=$D$35,27,IF(CV34=$D$36,28,IF(CV34=$D$37,29,IF(CV34=$D$38,30,IF(CV34=$D$39,31,IF(CV34=$D$40,32,IF(CV34=$D$41,33,IF(CV34=$D$42,34,IF(CV34=$D$43,35,IF(CV34=$D$44,36,IF(CV34=$D$45,37,IF(CV34=$D$46,38,IF(CV34=$D$47,39,IF(CV34=$D$48,40,IF(CV34=$D$49,41,IF(CV34=$D$50,42,IF(CV34=$D$51,43,IF(CV34=$D$52,44,IF(CV34=$D$53,45,IF(CV34=$D$54,46,IF(CV34=$D$55,47,IF(CV34=$D$56,48,IF(CV34=$D$56,49,IF(CV34=$D$57,50,0)))))))))))))))))))))))))))))))))))))))))))))))))) -> 1 | CY34: =DP77 -> --- | DB34: =DS77 -> --- | DE34: =DM77 -> 12.5 | DK34: LAYER 3 | DM34: 90 | DN34: 0.035 | DO34: 0.035 | DP34: 50 | DQ34: 50 | DR34: 2.571428571 | DS34: 0.0018 | DT34: 2.571428571 | DU34: 0.0018 | DV34: Volcalis | DW34: Pertecno | DX34: =1/($DS$12/($DM$13/DQ34)+$DS$13/($DM$13/DO34)) -> 6.413488775e-05 | DY34: 0.1023954968 | DZ34: =1/($DS$12/($DM$13/DQ34)+$DS$13/($DM$13/DO34)) -> 6.413488775e-05 | EA34: 0.1025237666 | EB34: 2.571428571 | ED34: 2.571428571 | EF34: 0.0018 | EI34: =IF(VLOOKUP(CX16,$C$9:$AV$61,36)=1,1/(($DS$21/ED34)+($DS$20/EF34)),IF(VLOOKUP(CX16,$C$9:$AV$61,36)=6,1/(($DS$23/ED34)+($DS$22/EF34)),ED34)) -> 0.4047331291 | EL34: 2.571428571 | EN34: 0.0018 | EQ34: 0.4047331291 | ET34: 2.571428571 | EV34: 0.0018 | EY34: 0.4047331291 | FB34: 2.571428571 | FD34: 0.0018 | FG34: 0.4047331291 | FK34: 2.571428571 | FO34: =IF(VLOOKUP(CX16,$C$9:$AV$61,36)=1,EA34,IF(VLOOKUP(CX16,$C$9:$AV$61,36)=6,EB34,FK34)) -> 0.1025237666 | GB34: L | GD34: =BW16 -> Helsinki_FI | GG34: =BW36 -> Stockholm_SE | IW34: LAYER 7 | IY34: Mortar (10 mm) | JB34: 2.44 | JE34: €/m² | JH34: 1 | JK34: m²/m² | JN34: --- | JQ34: --- | JT34: --- | JW34: --- | JZ34: --- | KC34: 2.44 | KF34: 0 | KR34: GWP | KT34: =IH33+0.00000001 -> -12.62546871 | KU34: =IH60+0.00000001 -> -11.113704 | KV34: 12.62546871 | KW34: 14.13723342 | KX34: 0.16 | KY34: 1 | KZ34: 0.8930650247 | LB34: 1 | LC34: 2 | LD34: 4 | LE34: 8 | LF34: 8
C35: 27 | D35: =Mat_DB!D38 -> Steel C200/U204 (200 mm) [Pertecno] | E35: =Mat_DB!H38 -> LSF Structure (Studs/Tracks) | F35: =Mat_DB!J38 -> 200 | G35: =Mat_DB!L38 -> λ [W/(m·K)] | H35: =Mat_DB!K38 -> 50 | I35: 50 | J35: --- | K35: =Mat_DB!M38 -> Pertecno | L35: =IF(Mat_DB!O38="","---",Mat_DB!O38) -> --- | M35: =IF(Mat_DB!P38="","---",Mat_DB!P38) -> m/m² | N35: =IF(Mat_DB!Q38="","---",Mat_DB!Q38) -> 12.74977 | O35: €/m | P35: =Mat_DB!T38 -> 2.68271036e-07 | Q35: kg SB-eq/m | R35: =Mat_DB!U38 -> 149.07805 | S35: MJ/m | T35: =Mat_DB!V38 -> 5.268582e-05 | U35: kg SO2-eq/m | V35: =Mat_DB!W38 -> 3.070859e-06 | W35: kg (PO4)3-eq/m | X35: =Mat_DB!X38 -> 0.0009530081 | Y35: kg C2H4-eq/m | Z35: =Mat_DB!Y38 -> 0.01131108 | AA35: kg CO2-eq/m | AB35: =Mat_DB!Z38 -> 0 | AC35: kg CFC11-eq/m | AD35: =Mat_DB!AC38 -> 43 | AE35: mm | AF35: =Mat_DB!AD38 -> 200 | AG35: mm | AH35: =Mat_DB!AE38 -> 1.5 | AI35: mm | AJ35: 1 | AK35: 2 | AL35: 1 | AM35: 1 | AO35: AIR CAVITIES - B | BC35: Alvito | BD35: 27 | BF35: Grande Lisboa | BG35: 22 | BH35: 109 | BI35: 1071 | BJ35: 1700 | BK35: 21.7 | BL35: -10 | BN35: 27 | BO35: =Loc_DB!G38 -> 0 | BP35: =Loc_DB!J38 -> 0 | BQ35: =Loc_DB!N38 -> 0 | BU35: ALTITUDE | BW35: =SB_Inp1!H17 -> 75 | CA35: ELECT. COST | CC35: =SB_Inp1!P26 -> 0.25 | CK35: LAYER 2 | CM35: =SB_Inp2!D18 -> OSB (12 mm) [Kronospan] | CO35: =IF(CM35=$D$9,1,IF(CM35=$D$10,2,IF(CM35=$D$11,3,IF(CM35=$D$12,4,IF(CM35=$D$13,5,IF(CM35=$D$14,6,IF(CM35=$D$15,7,IF(CM35=$D$16,8,IF(CM35=$D$17,9,IF(CM35=$D$18,10,IF(CM35=$D$19,11,IF(CM35=$D$20,12,IF(CM35=$D$21,13,IF(CM35=$D$22,14,IF(CM35=$D$23,15,IF(CM35=$D$24,16,IF(CM35=$D$25,17,IF(CM35=$D$26,18,IF(CM35=$D$27,19,IF(CM35=$D$28,20,IF(CM35=$D$29,21,IF(CM35=$D$30,22,IF(CM35=$D$31,23,IF(CM35=$D$32,24,IF(CM35=$D$33,25,IF(CM35=$D$34,26,IF(CM35=$D$35,27,IF(CM35=$D$36,28,IF(CM35=$D$37,29,IF(CM35=$D$38,30,IF(CM35=$D$39,31,IF(CM35=$D$40,32,IF(CM35=$D$41,33,IF(CM35=$D$42,34,IF(CM35=$D$43,35,IF(CM35=$D$44,36,IF(CM35=$D$45,37,IF(CM35=$D$46,38,IF(CM35=$D$47,39,IF(CM35=$D$48,40,IF(CM35=$D$49,41,IF(CM35=$D$50,42,IF(CM35=$D$51,43,IF(CM35=$D$52,44,IF(CM35=$D$53,45,IF(CM35=$D$54,46,IF(CM35=$D$55,47,IF(CM35=$D$56,48,IF(CM35=$D$57,49,IF(CM35=$D$58,50,0)))))))))))))))))))))))))))))))))))))))))))))))))) -> 8 | CP35: 0.13 | CS35: 0.09230769231 | CV35: =SB_Inp2!I18 -> --- | CX35: =IF(CV35=$D$9,1,IF(CV35=$D$10,2,IF(CV35=$D$11,3,IF(CV35=$D$12,4,IF(CV35=$D$13,5,IF(CV35=$D$14,6,IF(CV35=$D$15,7,IF(CV35=$D$16,8,IF(CV35=$D$17,9,IF(CV35=$D$18,10,IF(CV35=$D$19,11,IF(CV35=$D$20,12,IF(CV35=$D$21,13,IF(CV35=$D$22,14,IF(CV35=$D$23,15,IF(CV35=$D$24,16,IF(CV35=$D$25,17,IF(CV35=$D$26,18,IF(CV35=$D$27,19,IF(CV35=$D$28,20,IF(CV35=$D$29,21,IF(CV35=$D$30,22,IF(CV35=$D$31,23,IF(CV35=$D$32,24,IF(CV35=$D$33,25,IF(CV35=$D$34,26,IF(CV35=$D$35,27,IF(CV35=$D$36,28,IF(CV35=$D$37,29,IF(CV35=$D$38,30,IF(CV35=$D$39,31,IF(CV35=$D$40,32,IF(CV35=$D$41,33,IF(CV35=$D$42,34,IF(CV35=$D$43,35,IF(CV35=$D$44,36,IF(CV35=$D$45,37,IF(CV35=$D$46,38,IF(CV35=$D$47,39,IF(CV35=$D$48,40,IF(CV35=$D$49,41,IF(CV35=$D$50,42,IF(CV35=$D$51,43,IF(CV35=$D$52,44,IF(CV35=$D$53,45,IF(CV35=$D$54,46,IF(CV35=$D$55,47,IF(CV35=$D$56,48,IF(CV35=$D$56,49,IF(CV35=$D$57,50,0)))))))))))))))))))))))))))))))))))))))))))))))))) -> 1 | CY35: --- | DB35: --- | DE35: 12 | DK35: LAYER 4 | DM35: 12 | DN35: 0.13 | DO35: 0.13 | DP35: --- | DR35: 0.09230769231 | DS35: --- | DT35: 0.09230769231 | DU35: 0.09230769231 | DV35: Kronospan | DW35: --- | DY35: =1/($DS$14/(($DM$12-2*$DM$13)/DQ35)+$DS$15/(($DM$12-2*$DM$13)/DO35)) ->  | DZ35: =1/($DS$12/($DM$13/DQ35)+$DS$13/($DM$13/DO35)) ->  | EB35: 0.09230769231 | ED35: 0.09230769231 | EF35: 0.09230769231 | EI35: 0.09230769231 | EL35: 0.09230769231 | EN35: 0.09230769231 | EQ35: 0.09230769231 | ET35: 0.09230769231 | EV35: 0.09230769231 | EY35: 0.09230769231 | FB35: 0.09230769231 | FD35: 0.09230769231 | FG35: 0.09230769231 | FK35: 0.09230769231 | FO35: =IF(VLOOKUP(CX17,$C$9:$AV$61,36)=1,EA35,IF(VLOOKUP(CX17,$C$9:$AV$61,36)=6,EB35,FK35)) -> 0.09230769231 | GB35: U | GD35: =DY19 -> 0.5299354853 | GG35: =DY64 -> 0.4514459734 | GS35: INDICATORS VALUE B | IW35: LAYER 8 | IY35: --- | JB35: --- | JE35: --- | JH35: --- | JK35: --- | JN35: --- | JQ35: --- | JT35: --- | JW35: --- | JZ35: --- | KC35: 0 | KF35: 0 | KR35: ODP | KT35: =IN33+0.00000001 -> 1.676181932e-07 | KU35: =IN60+0.00000001 -> 2.177358403e-07 | KV35: 1.676181932e-07 | KW35: 2.177358403e-07 | KX35: 0.14 | KY35: 1 | KZ35: 0.7698236221
C36: 28 | D36: =Mat_DB!D39 -> Steel C250/U255 (250 mm) [Pertecno] | E36: =Mat_DB!H39 -> LSF Structure (Studs/Tracks) | F36: =Mat_DB!J39 -> 250 | G36: =Mat_DB!L39 -> λ [W/(m·K)] | H36: =Mat_DB!K39 -> 50 | I36: 50 | J36: --- | K36: =Mat_DB!M39 -> Pertecno | L36: =IF(Mat_DB!O39="","---",Mat_DB!O39) -> --- | M36: =IF(Mat_DB!P39="","---",Mat_DB!P39) -> m/m² | N36: =IF(Mat_DB!Q39="","---",Mat_DB!Q39) -> 18.46031 | O36: €/m | P36: =Mat_DB!T39 -> 3.88427908e-07 | Q36: kg SB-eq/m | R36: =Mat_DB!U39 -> 215.84915 | S36: MJ/m | T36: =Mat_DB!V39 -> 7.628346e-05 | U36: kg SO2-eq/m | V36: =Mat_DB!W39 -> 4.446277e-06 | W36: kg (PO4)3-eq/m | X36: =Mat_DB!X39 -> 0.0013798543 | Y36: kg C2H4-eq/m | Z36: =Mat_DB!Y39 -> 0.01637724 | AA36: kg CO2-eq/m | AB36: =Mat_DB!Z39 -> 0 | AC36: kg CFC11-eq/m | AD36: =Mat_DB!AC39 -> 43 | AE36: mm | AF36: =Mat_DB!AD39 -> 250 | AG36: mm | AH36: =Mat_DB!AE39 -> 1.5 | AI36: mm | AJ36: 1 | AK36: 2 | AL36: 1 | AM36: 1 | BC36: Amadora | BD36: 22 | BF36: Península de Setúbal | BG36: 23 | BH36: 47 | BI36: 1045 | BJ36: 1500 | BK36: 22.8 | BL36: -5 | BN36: 28 | BO36: =Loc_DB!G39 -> 0 | BP36: =Loc_DB!J39 -> 0 | BQ36: =Loc_DB!N39 -> 0 | BU36: OTHER | BW36: =SB_Inp1!P16 -> Stockholm_SE | BY36: =IF(BW36=$BO$9,1,IF(BW36=$BO$10,2,IF(BW36=$BO$11,3,IF(BW36=$BO$12,4,IF(BW36=$BO$13,5,IF(BW36=$BO$14,6,IF(BW36=$BO$15,7,IF(BW36=$BO$16,8,IF(BW36=$BO$17,9,IF(BW36=$BO$18,10,IF(BW36=$BO$19,11,IF(BW36=$BO$20,12,IF(BW36=$BO$21,13,IF(BW36=$BO$22,14,IF(BW36=$BO$23,15,IF(BW36=$BO$24,16,IF(BW36=$BO$25,17,IF(BW36=$BO$26,18,IF(BW36=$BO$27,19,IF(BW36=$BO$28,20,IF(BW36=$BO$29,21,IF(BW36=$BO$30,22,IF(BW36=$BO$31,23,IF(BW36=$BO$32,24,IF(BW36=$BO$33,25,IF(BW36=$BO$34,26,IF(BW36=$BO$35,27,IF(BW36=$BO$36,28,IF(BW36=$BO$37,29,IF(BW36=$BO$38,30,0)))))))))))))))))))))))))))))) -> 6 | CK36: LAYER 3 | CM36: =SB_Inp2!D19 -> Air Cavity (10 mm) [ISO 6946] | CO36: 34 | CP36: --- | CS36: 0.15 | CV36: =SB_Inp2!I19 -> TB Strip XPS (10 mm) [IFoam] | CX36: =IF(CV36=$D$9,1,IF(CV36=$D$10,2,IF(CV36=$D$11,3,IF(CV36=$D$12,4,IF(CV36=$D$13,5,IF(CV36=$D$14,6,IF(CV36=$D$15,7,IF(CV36=$D$16,8,IF(CV36=$D$17,9,IF(CV36=$D$18,10,IF(CV36=$D$19,11,IF(CV36=$D$20,12,IF(CV36=$D$21,13,IF(CV36=$D$22,14,IF(CV36=$D$23,15,IF(CV36=$D$24,16,IF(CV36=$D$25,17,IF(CV36=$D$26,18,IF(CV36=$D$27,19,IF(CV36=$D$28,20,IF(CV36=$D$29,21,IF(CV36=$D$30,22,IF(CV36=$D$31,23,IF(CV36=$D$32,24,IF(CV36=$D$33,25,IF(CV36=$D$34,26,IF(CV36=$D$35,27,IF(CV36=$D$36,28,IF(CV36=$D$37,29,IF(CV36=$D$38,30,IF(CV36=$D$39,31,IF(CV36=$D$40,32,IF(CV36=$D$41,33,IF(CV36=$D$42,34,IF(CV36=$D$43,35,IF(CV36=$D$44,36,IF(CV36=$D$45,37,IF(CV36=$D$46,38,IF(CV36=$D$47,39,IF(CV36=$D$48,40,IF(CV36=$D$49,41,IF(CV36=$D$50,42,IF(CV36=$D$51,43,IF(CV36=$D$52,44,IF(CV36=$D$53,45,IF(CV36=$D$54,46,IF(CV36=$D$55,47,IF(CV36=$D$56,48,IF(CV36=$D$56,49,IF(CV36=$D$57,50,0)))))))))))))))))))))))))))))))))))))))))))))))))) -> 33 | CY36: 0.035 | DB36: 0.2857142857 | DE36: 10 | DK36: LAYER 5 | DM36: 10 | DN36: 1.8 | DO36: 1.8 | DP36: --- | DR36: 0.005555555556 | DS36: --- | DT36: 0.005555555556 | DU36: 0.005555555556 | DV36: ITE50 | DW36: --- | DY36: =1/($DS$14/(($DM$12-2*$DM$13)/DQ36)+$DS$15/(($DM$12-2*$DM$13)/DO36)) ->  | EB36: 0.005555555556 | ED36: 0.005555555556 | EF36: 0.005555555556 | EI36: 0.005555555556 | EL36: 0.005555555556 | EN36: 0.005555555556 | EQ36: 0.005555555556 | ET36: 0.005555555556 | EV36: 0.005555555556 | EY36: 0.005555555556 | FB36: 0.005555555556 | FD36: 0.005555555556 | FG36: 0.005555555556 | FK36: 0.005555555556 | FO36: 0.005555555556 | GB36: A | GD36: =(BW17*(100-BW21)*0.01+BW18*(100-BW22)*0.01+BW19*(100-BW23)*0.01+BW20*(100-BW24)*0.01)*BW25*BW26 -> 239.76 | GG36: =(BW37*(100-BW41)*0.01+BW38*(100-BW42)*0.01+BW39*(100-BW43)*0.01+BW40*(100-BW44)*0.01)*BW45*BW46 -> 239.76 | IW36: LAYER 9 | IY36: --- | JB36: --- | JE36: --- | JH36: --- | JK36: --- | JN36: --- | JQ36: --- | JT36: --- | JW36: --- | JZ36: --- | KC36: 0 | KF36: 0 | KY36: =KX29*KY29+KX30*KY30+KX31*KY31+KX32*KY32+KX33*KY33+KX34*KY34+KX35*KY35 -> 1 | KZ36: =KX29*KZ29+KX30*KZ30+KX31*KZ31+KX32*KZ32+KX33*KZ33+KX34*KZ34+KX35*KZ35 -> 0.9042943619
C37: 29 | D37: =Mat_DB!D40 -> TB Strip Aerogel (10 mm) [Spacetherm] | E37: =Mat_DB!H40 -> Thermal Break Strip | F37: =Mat_DB!J40 -> 10 | G37: =Mat_DB!L40 -> λ [W/(m·K)] | H37: =Mat_DB!K40 -> 0.015 | I37: 0.015 | J37: --- | K37: =Mat_DB!M40 -> Spacetherm | L37: =IF(Mat_DB!O40="","---",Mat_DB!O40) -> --- | M37: =IF(Mat_DB!P40="","---",Mat_DB!P40) -> m/m² | N37: =IF(Mat_DB!Q40="","---",Mat_DB!Q40) -> 3.86 | O37: €/m | P37: =Mat_DB!T40 -> 2.44495e-06 | Q37: kg SB-eq/m | R37: =Mat_DB!U40 -> 4.57895 | S37: MJ/m | T37: =Mat_DB!V40 -> 0.0030195 | U37: kg SO2-eq/m | V37: =Mat_DB!W40 -> 0.0003103 | W37: kg (PO4)3-eq/m | X37: =Mat_DB!X40 -> 0.00020785 | Y37: kg C2H4-eq/m | Z37: =Mat_DB!Y40 -> 0.624 | AA37: kg CO2-eq/m | AB37: =Mat_DB!Z40 -> 1.7075e-07 | AC37: kg CFC11-eq/m | AD37: =Mat_DB!AC40 -> --- | AE37: mm | AF37: =Mat_DB!AD40 -> --- | AG37: mm | AH37: =Mat_DB!AE40 -> --- | AI37: mm | AJ37: 1 | AK37: 2 | AL37: 6 | AM37: 1 | AO37: Layer | AP37: Material 1 | AQ37: Material 2 | AR37: 1x2 | AS37: AC thickn. | AT37: R ISO6946 | AU37: R AC | AV37: R1 | AW37: R2 | AX37: R Final | BC37: Amarante | BD37: 6 | BF37: Alto Alentejo | BG37: 24 | BH37: 246 | BI37: 1221 | BJ37: 1200 | BK37: 24.5 | BL37: 0 | BN37: 29 | BO37: =Loc_DB!G40 -> 0 | BP37: =Loc_DB!J40 -> 0 | BQ37: =Loc_DB!N40 -> 0 | BU37: MF | BW37: =SB_Inp1!G20 -> 15 | CA37: Wall Configuration 2 | CK37: LAYER 4 | CM37: =SB_Inp2!D20 -> Mineral wool (90 mm) [Volcalis] | CO37: 15 | CP37: 0.035 | CS37: 2.571428571 | CV37: =SB_Inp2!I20 -> Steel C90/U93 (90 mm) [Pertecno] | CX37: 25 | CY37: 50 | DB37: 0.0018 | DE37: 90 | DK37: LAYER 6 | DM37: --- | DN37: --- | DP37: --- | DR37: --- | DS37: --- | DT37: --- | DU37: --- | DV37: --- | DW37: --- | ED37: --- | EF37: --- | EI37: --- | EL37: --- | EN37: --- | EQ37: --- | ET37: --- | EV37: --- | EY37: --- | FB37: --- | FD37: --- | FG37: --- | FK37: --- | FO37: --- | GB37: HDD | GD37: =VLOOKUP(BY16,$BN$9:$BQ$38,3) -> 4854 | GG37: =VLOOKUP(BY36,$BN$9:$BQ$38,3) -> 4351 | IW37: LAYER 10 | IY37: --- | JB37: --- | JE37: --- | JH37: --- | JK37: --- | JN37: --- | JQ37: --- | JT37: --- | JW37: --- | JZ37: --- | KC37: 0 | KF37: 0
C38: 30 | D38: =Mat_DB!D41 -> TB Strip Rubber (10 mm) [Acousticork] | E38: =Mat_DB!H41 -> Thermal Break Strip | F38: =Mat_DB!J41 -> 10 | G38: =Mat_DB!L41 -> λ [W/(m·K)] | H38: =Mat_DB!K41 -> 0.122 | I38: 0.122 | J38: --- | K38: =Mat_DB!M41 -> Acousticork | L38: =IF(Mat_DB!O41="","---",Mat_DB!O41) -> --- | M38: =IF(Mat_DB!P41="","---",Mat_DB!P41) -> m/m² | N38: =IF(Mat_DB!Q41="","---",Mat_DB!Q41) -> 0.77 | O38: €/m | P38: =Mat_DB!T41 -> 0 | Q38: kg SB-eq/m | R38: =Mat_DB!U41 -> 0 | S38: MJ/m | T38: =Mat_DB!V41 -> 0 | U38: kg SO2-eq/m | V38: =Mat_DB!W41 -> 0 | W38: kg (PO4)3-eq/m | X38: =Mat_DB!X41 -> 0 | Y38: kg C2H4-eq/m | Z38: =Mat_DB!Y41 -> 0 | AA38: kg CO2-eq/m | AB38: =Mat_DB!Z41 -> 0 | AC38: kg CFC11-eq/m | AD38: =Mat_DB!AC41 -> --- | AE38: mm | AF38: =Mat_DB!AD41 -> --- | AG38: mm | AH38: =Mat_DB!AE41 -> --- | AI38: mm | AJ38: 1 | AK38: 2 | AL38: 6 | AM38: 1 | AO38: 1 | AP38: =IF(VLOOKUP(CO34,$C$9:$AV$61,36)=7,2,1) -> 1 | AQ38: =IF(VLOOKUP(CX34,$C$9:$AV$61,36)=6,2,1) -> 1 | AR38: =AP38*AQ38 -> 1 | AS38: =IF(VLOOKUP(CO34,$C$9:$AV$61,36)=7,VLOOKUP(CO34,$C$9:$AV$61,4),0) -> 0 | AT38: =IF(AS38=5,0.11,IF(AS38=10,0.15,IF(AS38>=25,0.18,IF(AS38<5,0.11*(AS38/5),IF(AS38<10,0.11+((AS38-5)/5)*0.04,IF(AS38<15,0.15+((AS38-10)/5)*0.02,IF(AS38<25,0.17+((AS38-15)/10)*0.01,0))))))) -> 0 | AU38: =IF($AR$48=17,$AT$48*AS38/$AS$48,IF($AR$48=16,AT38,IF($AR$48=14,$AT$48*AS38/$AS$48,IF($AR$48=13,AT38,IF($AR$48=11,AT38,0))))) -> 0 | AV38: =IF(VLOOKUP(CO34,$C$9:$AV$61,36)=7,AU38,0) -> 0 | AW38: =IF(VLOOKUP(CO34,$C$9:$AV$61,35)=2,(DM77*0.001)/DN77,VLOOKUP(CO34,$C$9:$AV$61,8)) -> 0.07142857143 | AX38: =IF(VLOOKUP(CO34,$C$9:$AV$61,36)=7,AV38,AW38) -> 0.07142857143 | BC38: Amares | BD38: 3 | BF38: Alentejo Central | BG38: 25 | BH38: 221 | BI38: 1150 | BJ38: 1100 | BK38: 24.3 | BL38: 0 | BN38: 30 | BO38: =Loc_DB!G41 -> 0 | BP38: =Loc_DB!J41 -> 0 | BQ38: =Loc_DB!N41 -> 0 | BU38: BF | BW38: =SB_Inp1!G21 -> 15 | CK38: LAYER 5 | CM38: =SB_Inp2!D21 -> Air Cavity (10 mm) [ISO 6946] | CO38: 34 | CP38: --- | CS38: 0.15 | CV38: =SB_Inp2!I21 -> TB Strip XPS (10 mm) [IFoam] | CX38: 33 | CY38: 0.035 | DB38: 0.2857142857 | DE38: 10 | DK38: LAYER 7 | DM38: --- | DN38: --- | DP38: --- | DR38: --- | DS38: --- | DT38: --- | DU38: --- | DV38: --- | DW38: --- | ED38: --- | EF38: --- | EI38: --- | EL38: --- | EN38: --- | EQ38: --- | ET38: --- | EV38: --- | EY38: --- | FB38: --- | FD38: --- | FG38: --- | FK38: --- | FO38: --- | GB38: CDD | GD38: =VLOOKUP(BY16,$BN$9:$BQ$38,4) -> 4 | GG38: =VLOOKUP(BY36,$BN$9:$BQ$38,4) -> 3 | GS38: Layers | GU38: Material 1 | GX38: Unit Consumption | HD38: Indicator | HJ38: Indicator | HP38: Indicator | HV38: Indicator | IB38: Indicator | IH38: Indicator | IN38: Indicator | KS38: 1 | KT38: 2 | KU38: 3 | KV38: 4 | KX38: 1 | KY38: 2 | KZ38: 3 | LA38: 4 | LB38: EVAL. | LC38: BEST
C39: 31 | D39: =Mat_DB!D42 -> TB Strip Aerogel/Rubber (10 mm) [T4BI] | E39: =Mat_DB!H42 -> Thermal Break Strip | F39: =Mat_DB!J42 -> 10 | G39: =Mat_DB!L42 -> λ [W/(m·K)] | H39: =Mat_DB!K42 -> 0.023 | I39: 0.023 | J39: --- | K39: =Mat_DB!M42 -> Tyre4BuildIns | L39: =IF(Mat_DB!O42="","---",Mat_DB!O42) -> --- | M39: =IF(Mat_DB!P42="","---",Mat_DB!P42) -> m/m² | N39: =IF(Mat_DB!Q42="","---",Mat_DB!Q42) -> 110.82 | O39: €/m | P39: =Mat_DB!T42 -> 0 | Q39: kg SB-eq/m | R39: =Mat_DB!U42 -> 0 | S39: MJ/m | T39: =Mat_DB!V42 -> 0 | U39: kg SO2-eq/m | V39: =Mat_DB!W42 -> 0 | W39: kg (PO4)3-eq/m | X39: =Mat_DB!X42 -> 0 | Y39: kg C2H4-eq/m | Z39: =Mat_DB!Y42 -> 0 | AA39: kg CO2-eq/m | AB39: =Mat_DB!Z42 -> 0 | AC39: kg CFC11-eq/m | AD39: =Mat_DB!AC42 -> --- | AE39: mm | AF39: =Mat_DB!AD42 -> --- | AG39: mm | AH39: =Mat_DB!AE42 -> --- | AI39: mm | AJ39: 1 | AK39: 2 | AL39: 6 | AM39: 1 | AO39: 2 | AP39: =IF(VLOOKUP(CO35,$C$9:$AV$61,36)=7,2,1) -> 1 | AQ39: =IF(VLOOKUP(CX35,$C$9:$AV$61,36)=6,2,1) -> 1 | AR39: =AP39*AQ39 -> 1 | AS39: =IF(VLOOKUP(CO35,$C$9:$AV$61,36)=7,VLOOKUP(CO35,$C$9:$AV$61,4),0) -> 0 | AT39: =IF(AS39=5,0.11,IF(AS39=10,0.15,IF(AS39>=25,0.18,IF(AS39<5,0.11*(AS39/5),IF(AS39<10,0.11+((AS39-5)/5)*0.04,IF(AS39<15,0.15+((AS39-10)/5)*0.02,IF(AS39<25,0.17+((AS39-15)/10)*0.01,0))))))) -> 0 | AU39: =IF($AR$48=17,$AT$48*AS39/$AS$48,IF($AR$48=16,AT39,IF($AR$48=14,$AT$48*AS39/$AS$48,IF($AR$48=13,AT39,IF($AR$48=11,AT39,0))))) -> 0 | AV39: 0 | AW39: 0.09230769231 | AX39: 0.09230769231 | BC39: Anadia | BD39: 9 | BF39: Alentejo Litoral | BG39: 26 | BH39: 88 | BI39: 1089 | BJ39: 1100 | BK39: 22.2 | BL39: 0 | BU39: LF | BW39: =SB_Inp1!G22 -> 10 | CA39: SS | CC39: =SB_Inp2!R15 -> 400 | CK39: LAYER 6 | CM39: =SB_Inp2!D22 -> OSB (12 mm) [Kronospan] | CO39: 8 | CP39: 0.13 | CS39: 0.09230769231 | CV39: =SB_Inp2!I22 -> --- | CX39: 1 | CY39: --- | DB39: --- | DE39: 12 | DK39: LAYER 8 | DM39: --- | DN39: --- | DP39: --- | DR39: --- | DS39: --- | DT39: --- | DU39: --- | DV39: --- | DW39: --- | ED39: --- | EF39: --- | EI39: --- | EL39: --- | EN39: --- | EQ39: --- | ET39: --- | EV39: --- | EY39: --- | FB39: --- | FD39: --- | FG39: --- | FK39: --- | FO39: --- | GB39: CoP | GD39: =CC13 -> 3.5 | GG39: =CC33 -> 3.5 | GS39: LAYER 1 | GU39: =CM34 -> Gypsum Board (12,5 mm) [Gyptec] | GX39: =IF(VLOOKUP(CO34,$C$9:$AV$61,36)=7,1,VLOOKUP(CO34,$C$9:$AV$61,10)) -> 1 | HA39: =VLOOKUP(CO34,$C$9:$AV$61,11) -> m²/m² | HD39: =VLOOKUP(CO34,$C$9:$AV$61,14) -> 5.1e-07 | HG39: kg SB-eq | HJ39: =VLOOKUP(CO34,$C$9:$AV$61,16) -> 0.35 | HM39: MJ | HP39: =VLOOKUP(CO34,$C$9:$AV$61,18) -> 0.012 | HS39: kg SO2-eq | HV39: =VLOOKUP(CO34,$C$9:$AV$61,20) -> 0.0011 | HY39: kg (PO4)3-eq | IB39: =VLOOKUP(CO34,$C$9:$AV$61,22) -> 0.00094 | IE39: kg C2H4-eq | IH39: =VLOOKUP(CO34,$C$9:$AV$61,24) -> 2.5 | IK39: kg CO2-eq | IN39: =VLOOKUP(CO34,$C$9:$AV$61,26) -> 6.1e-08 | IQ39: kg CFC11-eq | KR39: A | KS39: =DY19 -> 0.5299354853 | KT39: =GD63 -> 6.585250879 | KU39: =KY36 -> 1 | KV39: =KL12 -> 43.86708985 | KW39: A | KX39: =SMALL(KS$39:KS$40,1)/KS39 -> 0.8518885523 | KY39: 0.8518885523 | KZ39: =KU39 -> 1 | LA39: =SMALL(KV$39:KV$40,1)/KV39 -> 1 | LB39: =KX39*KT9+KY39*KT10+KZ39*KT11+LA39*KT12 -> 0.9481609933 | LC39: =IF(LB39>LB40,"A","B") -> B
C40: 32 | D40: =Mat_DB!D43 -> TB Strip Rubber and Cork (10 mm) [Acousticork] | E40: =Mat_DB!H43 -> Thermal Break Strip | F40: =Mat_DB!J43 -> 10 | G40: =Mat_DB!L43 -> λ [W/(m·K)] | H40: =Mat_DB!K43 -> 0.089 | I40: 0.089 | J40: --- | K40: =Mat_DB!M43 -> Acousticork | L40: =IF(Mat_DB!O43="","---",Mat_DB!O43) -> --- | M40: =IF(Mat_DB!P43="","---",Mat_DB!P43) -> m/m² | N40: =IF(Mat_DB!Q43="","---",Mat_DB!Q43) -> 1.92 | O40: €/m | P40: =Mat_DB!T43 -> 0 | Q40: kg SB-eq/m | R40: =Mat_DB!U43 -> 0 | S40: MJ/m | T40: =Mat_DB!V43 -> 0 | U40: kg SO2-eq/m | V40: =Mat_DB!W43 -> 0 | W40: kg (PO4)3-eq/m | X40: =Mat_DB!X43 -> 0 | Y40: kg C2H4-eq/m | Z40: =Mat_DB!Y43 -> 0 | AA40: kg CO2-eq/m | AB40: =Mat_DB!Z43 -> 0 | AC40: kg CFC11-eq/m | AD40: =Mat_DB!AC43 -> --- | AE40: mm | AF40: =Mat_DB!AD43 -> --- | AG40: mm | AH40: =Mat_DB!AE43 -> --- | AI40: mm | AJ40: 1 | AK40: 2 | AL40: 6 | AM40: 1 | AO40: 3 | AP40: 2 | AQ40: 2 | AR40: 4 | AS40: 10 | AT40: 0.15 | AU40: 0.15 | AV40: 0.15 | AW40: --- | AX40: 0.15 | BC40: Angra do Heroísmo | BD40: 29 | BF40: Baixo Alentejo | BG40: 27 | BH40: 178 | BI40: 1068 | BJ40: 1000 | BK40: 24.7 | BL40: 0 | BU40: RF | BW40: =SB_Inp1!G23 -> 10 | CA40: STR | CC40: =IF(VLOOKUP(CX34,$C$9:$AV$61,36)=1,CV34,IF(VLOOKUP(CX35,$C$9:$AV$61,36)=1,CV35,IF(VLOOKUP(CX36,$C$9:$AV$61,36)=1,CV36,IF(VLOOKUP(CX37,$C$9:$AV$61,36)=1,CV37,IF(VLOOKUP(CX38,$C$9:$AV$61,36)=1,CV38,IF(VLOOKUP(CX39,$C$9:$AV$61,36)=1,CV39,IF(VLOOKUP(CX40,$C$9:$AV$61,36)=1,CV40,IF(VLOOKUP(CX41,$C$9:$AV$61,36)=1,CV41,IF(VLOOKUP(CX42,$C$9:$AV$61,36)=1,CV42,IF(VLOOKUP(CX43,$C$9:$AV$61,36)=1,CV43,"---")))))))))) -> Steel C90/U93 (90 mm) [Pertecno] | CE40: =IF(CC40=$D$9,1,IF(CC40=$D$10,2,IF(CC40=$D$11,3,IF(CC40=$D$12,4,IF(CC40=$D$13,5,IF(CC40=$D$14,6,IF(CC40=$D$15,7,IF(CC40=$D$16,8,IF(CC40=$D$17,9,IF(CC40=$D$18,10,IF(CC40=$D$19,11,IF(CC40=$D$20,12,IF(CC40=$D$21,13,IF(CC40=$D$22,14,IF(CC40=$D$23,15,IF(CC40=$D$24,16,IF(CC40=$D$25,17,IF(CC40=$D$26,18,IF(CC40=$D$27,19,IF(CC40=$D$28,20,IF(CC40=$D$29,21,IF(CC40=$D$30,22,IF(CC40=$D$31,23,IF(CC40=$D$32,24,IF(CC40=$D$33,25,IF(CC40=$D$34,26,IF(CC40=$D$35,27,IF(CC40=$D$36,28,IF(CC40=$D$37,29,IF(CC40=$D$38,30,IF(CC40=$D$39,31,IF(CC40=$D$40,32,IF(CC40=$D$41,33,IF(CC40=$D$42,34,IF(CC40=$D$43,35,IF(CC40=$D$44,36,IF(CC40=$D$45,37,IF(CC40=$D$46,38,IF(CC40=$D$47,39,IF(CC40=$D$48,40,IF(CC40=$D$49,41,IF(CC40=$D$50,42,IF(CC40=$D$51,43,IF(CC40=$D$52,44,IF(CC40=$D$53,45,IF(CC40=$D$54,46,IF(CC40=$D$55,47,IF(CC40=$D$56,48,IF(CC40=$D$57,49,IF(CC40=$D$58,50,0)))))))))))))))))))))))))))))))))))))))))))))))))) -> 25 | CK40: LAYER 7 | CM40: =SB_Inp2!D23 -> Mortar (10 mm) | CO40: 41 | CP40: 1.8 | CS40: 0.005555555556 | CV40: =SB_Inp2!I23 -> --- | CX40: 1 | CY40: --- | DB40: --- | DE40: 10 | DK40: LAYER 9 | DM40: --- | DN40: --- | DP40: --- | DR40: --- | DS40: --- | DT40: --- | DU40: --- | DV40: --- | DW40: --- | ED40: --- | EF40: --- | EI40: --- | EL40: --- | EN40: --- | EQ40: --- | ET40: --- | EV40: --- | EY40: --- | FB40: --- | FD40: --- | FG40: --- | FK40: --- | FO40: --- | GB40: EER | GD40: =CC14 -> 3.5 | GG40: =CC34 -> 3.5 | GJ40: DIFFERENCE | GS40: LAYER 2 | GU40: OSB (12 mm) [Kronospan] | GX40: =IF(VLOOKUP(CO35,$C$9:$AV$61,36)=7,1,VLOOKUP(CO35,$C$9:$AV$61,10)) -> 1 | HA40: m²/m² | HD40: 9.9e-07 | HG40: kg SB-eq | HJ40: 51.36 | HM40: MJ | HP40: 0.011028 | HS40: kg SO2-eq | HV40: 0.002628 | HY40: kg (PO4)3-eq | IB40: 0.006264 | IE40: kg C2H4-eq | IH40: -9.036 | IK40: kg CO2-eq | IN40: 1.1316e-12 | IQ40: kg CFC11-eq | KR40: B | KS40: =DY64 -> 0.4514459734 | KT40: =GG63 -> 5.609899838 | KU40: =KZ36 -> 0.9042943619 | KV40: =KL29 -> 44.46242319 | KW40: B | KX40: 1 | KY40: 1 | KZ40: =KU40 -> 0.9042943619 | LA40: =SMALL(KV$39:KV$40,1)/KV40 -> 0.9866104164 | LB40: =KX40*KT9+KY40*KT10+KZ40*KT11+LA40*KT12 -> 0.9789493625
C41: 33 | D41: =Mat_DB!D44 -> TB Strip XPS (10 mm) [IFoam] | E41: =Mat_DB!H44 -> Thermal Break Strip | F41: =Mat_DB!J44 -> 10 | G41: =Mat_DB!L44 -> λ [W/(m·K)] | H41: =Mat_DB!K44 -> 0.035 | I41: 0.035 | J41: --- | K41: =Mat_DB!M44 -> IFoam | L41: =IF(Mat_DB!O44="","---",Mat_DB!O44) -> --- | M41: =IF(Mat_DB!P44="","---",Mat_DB!P44) -> m²/m² | N41: =IF(Mat_DB!Q44="","---",Mat_DB!Q44) -> 0.09 | O41: €/m² | P41: =Mat_DB!T44 -> 3.764705882e-07 | Q41: kg SB-eq/m² | R41: =Mat_DB!U44 -> 16.44117647 | S41: MJ/m² | T41: =Mat_DB!V44 -> 0.003058823529 | U41: kg SO2-eq/m² | V41: =Mat_DB!W44 -> 0.0003970588235 | W41: kg (PO4)3-eq/m² | X41: =Mat_DB!X44 -> 0.0001852941176 | Y41: kg C2H4-eq/m² | Z41: =Mat_DB!Y44 -> 0.7558823529 | AA41: kg CO2-eq/m² | AB41: =Mat_DB!Z44 -> 2.505882353e-08 | AC41: kg CFC11-eq/m² | AD41: =Mat_DB!AC44 -> --- | AE41: mm | AF41: =Mat_DB!AD44 -> --- | AG41: mm | AH41: =Mat_DB!AE44 -> --- | AI41: mm | AJ41: 1 | AK41: 2 | AL41: 6 | AM41: 2 | AO41: 4 | AP41: 1 | AQ41: 1 | AR41: 1 | AS41: 0 | AT41: 0 | AU41: 0 | AV41: 0 | AW41: 2.571428571 | AX41: 2.571428571 | BC41: Ansião | BD41: 16 | BF41: Algarve | BG41: 28 | BH41: 145 | BI41: 987 | BJ41: 1800 | BK41: 23.1 | BL41: 0 | BU41: GL MF | BW41: =SB_Inp1!K20 -> 12 | CA41: SHT | CC41: =SB_Inp2!R25 -> 34.5 | CK41: LAYER 8 | CM41: =SB_Inp2!D24 -> --- | CO41: 1 | CP41: --- | CS41: --- | CV41: =SB_Inp2!I24 -> --- | CX41: 1 | CY41: --- | DB41: --- | DE41: --- | DK41: LAYER 10 | DM41: --- | DN41: --- | DP41: --- | DR41: --- | DS41: --- | DT41: --- | DU41: --- | DV41: --- | DW41: --- | ED41: --- | EF41: --- | EI41: --- | EL41: --- | EN41: --- | EQ41: --- | ET41: --- | EV41: --- | EY41: --- | FB41: --- | FD41: --- | FG41: --- | FK41: --- | FO41: --- | GB41: HUFE | GD41: =GD35*GD37*0.024/GD39 -> 17.63867551 | GG41: =GG35*GG37*0.024/GG39 -> 13.46908409 | GJ41: =GD41-GG41 -> 4.169591421 | GS41: LAYER 3 | GU41: Air Cavity (10 mm) [ISO 6946] | GX41: =IF(VLOOKUP(CO36,$C$9:$AV$61,36)=7,1,VLOOKUP(CO36,$C$9:$AV$61,10)) -> 1 | HA41: m²/m² | HD41: 0 | HG41: kg SB-eq | HJ41: 0 | HM41: MJ | HP41: 0 | HS41: kg SO2-eq | HV41: 0 | HY41: kg (PO4)3-eq | IB41: 0 | IE41: kg C2H4-eq | IH41: 0 | IK41: kg CO2-eq | IN41: 0 | IQ41: kg CFC11-eq | IW41: FINAL RESULTS
C42: 34 | D42: =Mat_DB!D45 -> Air Cavity (10 mm) [ISO 6946] | E42: =Mat_DB!H45 -> Air Cavity | F42: =Mat_DB!J45 -> 10 | G42: =Mat_DB!L45 -> R [(m²·K)/W] | H42: =Mat_DB!K45 -> --- | I42: --- | J42: --- | K42: =Mat_DB!M45 -> ISO 6946 | L42: =IF(Mat_DB!O45="","---",Mat_DB!O45) -> --- | M42: =IF(Mat_DB!P45="","---",Mat_DB!P45) -> m²/m² | N42: =IF(Mat_DB!Q45="","---",Mat_DB!Q45) -> 0 | O42: €/m² | P42: =Mat_DB!T45 -> 0 | Q42: kg SB-eq/m² | R42: =Mat_DB!U45 -> 0 | S42: MJ/m² | T42: =Mat_DB!V45 -> 0 | U42: kg SO2-eq/m² | V42: =Mat_DB!W45 -> 0 | W42: kg (PO4)3-eq/m² | X42: =Mat_DB!X45 -> 0 | Y42: kg C2H4-eq/m² | Z42: =Mat_DB!Y45 -> 0 | AA42: kg CO2-eq/m² | AB42: =Mat_DB!Z45 -> 0 | AC42: kg CFC11-eq/m² | AD42: =Mat_DB!AC45 -> --- | AE42: mm | AF42: =Mat_DB!AD45 -> --- | AG42: mm | AH42: =Mat_DB!AE45 -> --- | AI42: mm | AJ42: 1 | AK42: 1 | AL42: 7 | AM42: 2 | AO42: 5 | AP42: 2 | AQ42: 2 | AR42: 4 | AS42: 10 | AT42: 0.15 | AU42: 0.15 | AV42: 0.15 | AW42: --- | AX42: 0.15 | BC42: Arcos de Valdevez | BD42: 1 | BF42: Região Autónoma dos Açores | BG42: 29 | BH42: 10 | BI42: 604 | BJ42: 1500 | BK42: 21.3 | BL42: -6 | BU42: GL BF | BW42: =SB_Inp1!K21 -> 12 | CA42: TBW | CC42: =SB_Inp2!R22 -> 50 | CK42: LAYER 9 | CM42: =SB_Inp2!D25 -> --- | CO42: 1 | CP42: --- | CS42: --- | CV42: =SB_Inp2!I25 -> --- | CX42: 1 | CY42: --- | DB42: --- | DE42: --- | EC42: Rse | ED42: 0.04 | EF42: 0.04 | EI42: 0.04 | EL42: 0.04 | EN42: 0.04 | EQ42: 0.04 | ET42: 0.04 | EV42: 0.04 | EY42: 0.04 | FB42: 0.04 | FD42: 0.04 | FG42: 0.04 | FK42: 0.04 | FO42: =ED42 -> 0.04 | GB42: HTFE | GD42: =GD41*GD36 -> 4229.048841 | GG42: =GG41*GG36 -> 3229.347602 | GJ42: 999.7012391 | GS42: LAYER 4 | GU42: Mineral wool (90 mm) [Volcalis] | GX42: 1 | HA42: m²/m² | HD42: 0.0001008 | HG42: kg SB-eq | HJ42: 31.14 | HM42: MJ | HP42: 0.00909 | HS42: kg SO2-eq | HV42: 0.001872 | HY42: kg (PO4)3-eq | IB42: 0.0006462 | IE42: kg C2H4-eq | IH42: 1.521 | IK42: kg CO2-eq | IN42: 1.593e-11 | IQ42: kg CFC11-eq
C43: 35 | D43: =Mat_DB!D46 -> Air Cavity (15 mm) [ISO 6946] | E43: =Mat_DB!H46 -> Air Cavity | F43: =Mat_DB!J46 -> 15 | G43: =Mat_DB!L46 -> R [(m²·K)/W] | H43: =Mat_DB!K46 -> --- | I43: --- | J43: --- | K43: =Mat_DB!M46 -> ISO 6946 | L43: =IF(Mat_DB!O46="","---",Mat_DB!O46) -> --- | M43: =IF(Mat_DB!P46="","---",Mat_DB!P46) -> m²/m² | N43: =IF(Mat_DB!Q46="","---",Mat_DB!Q46) -> 0 | O43: €/m² | P43: =Mat_DB!T46 -> 0 | Q43: kg SB-eq/m² | R43: =Mat_DB!U46 -> 0 | S43: MJ/m² | T43: =Mat_DB!V46 -> 0 | U43: kg SO2-eq/m² | V43: =Mat_DB!W46 -> 0 | W43: kg (PO4)3-eq/m² | X43: =Mat_DB!X46 -> 0 | Y43: kg C2H4-eq/m² | Z43: =Mat_DB!Y46 -> 0 | AA43: kg CO2-eq/m² | AB43: =Mat_DB!Z46 -> 0 | AC43: kg CFC11-eq/m² | AD43: =Mat_DB!AC46 -> --- | AE43: mm | AF43: =Mat_DB!AD46 -> --- | AG43: mm | AH43: =Mat_DB!AE46 -> --- | AI43: mm | AJ43: 1 | AK43: 1 | AL43: 7 | AM43: 2 | AO43: 6 | AP43: 1 | AQ43: 1 | AR43: 1 | AS43: 0 | AT43: 0 | AU43: 0 | AV43: 0 | AW43: 0.09230769231 | AX43: 0.09230769231 | BC43: Arganil | BD43: 16 | BF43: Região Autónoma da Madeira | BG43: 30 | BH43: 380 | BI43: 618 | BJ43: 1500 | BK43: 20.2 | BL43: -6 | BU43: GL LF | BW43: =SB_Inp1!K22 -> 10 | CK43: LAYER 10 | CM43: =SB_Inp2!D26 -> --- | CO43: 1 | CP43: --- | CS43: --- | CV43: =SB_Inp2!I26 -> --- | CX43: 1 | CY43: --- | DB43: --- | DE43: --- | ED43: =SUM(ED31:ED42) -> 3.003028083 | EF43: =SUM(EF31:EF42) -> 0.4333995116 | EI43: =SUM(EI31:EI42) -> 0.8363326407 | EL43: =SUM(EL31:EL42) -> 3.003028083 | EN43: =SUM(EN31:EN42) -> 0.4333995116 | EQ43: =SUM(EQ31:EQ42) -> 0.8363326407 | ET43: =SUM(ET31:ET42) -> 3.003028083 | EV43: =SUM(EV31:EV42) -> 0.4333995116 | EY43: =SUM(EY31:EY42) -> 0.8363326407 | FB43: =SUM(FB31:FB42) -> 3.003028083 | FD43: =SUM(FD31:FD42) -> 0.4333995116 | FG43: =SUM(FG31:FG42) -> 0.8363326407 | FK43: =SUM(FK31:FK42) -> 3.003028083 | FO43: =SUM(FO31:FO42) -> 0.5341232782 | GB43: CUFE | GD43: =GD35*GD38*0.024/GD40 -> 0.01453537331 | GG43: =GG35*GG38*0.024/GG40 -> 0.009286888596 | GJ43: 0.005248484716 | GS43: LAYER 5 | GU43: Air Cavity (10 mm) [ISO 6946] | GX43: 1 | HA43: m²/m² | HD43: 0 | HG43: kg SB-eq | HJ43: 0 | HM43: MJ | HP43: 0 | HS43: kg SO2-eq | HV43: 0 | HY43: kg (PO4)3-eq | IB43: 0 | IE43: kg C2H4-eq | IH43: 0 | IK43: kg CO2-eq | IN43: 0 | IQ43: kg CFC11-eq | IW43: U COST A | IY43: =KL12 -> 43.86708985
C44: 36 | D44: =Mat_DB!D47 -> Air Cavity (20 mm) [ISO 6946] | E44: =Mat_DB!H47 -> Air Cavity | F44: =Mat_DB!J47 -> 20 | G44: =Mat_DB!L47 -> R [(m²·K)/W] | H44: =Mat_DB!K47 -> --- | I44: --- | J44: --- | K44: =Mat_DB!M47 -> ISO 6946 | L44: =IF(Mat_DB!O47="","---",Mat_DB!O47) -> --- | M44: =IF(Mat_DB!P47="","---",Mat_DB!P47) -> m²/m² | N44: =IF(Mat_DB!Q47="","---",Mat_DB!Q47) -> 0 | O44: €/m² | P44: =Mat_DB!T47 -> 0 | Q44: kg SB-eq/m² | R44: =Mat_DB!U47 -> 0 | S44: MJ/m² | T44: =Mat_DB!V47 -> 0 | U44: kg SO2-eq/m² | V44: =Mat_DB!W47 -> 0 | W44: kg (PO4)3-eq/m² | X44: =Mat_DB!X47 -> 0 | Y44: kg C2H4-eq/m² | Z44: =Mat_DB!Y47 -> 0 | AA44: kg CO2-eq/m² | AB44: =Mat_DB!Z47 -> 0 | AC44: kg CFC11-eq/m² | AD44: =Mat_DB!AC47 -> --- | AE44: mm | AF44: =Mat_DB!AD47 -> --- | AG44: mm | AH44: =Mat_DB!AE47 -> --- | AI44: mm | AJ44: 1 | AK44: 1 | AL44: 7 | AM44: 2 | AO44: 7 | AP44: 1 | AQ44: 1 | AR44: 1 | AS44: 0 | AT44: 0 | AU44: 0 | AV44: 0 | AW44: 0.005555555556 | AX44: 0.005555555556 | BC44: Armamar | BD44: 7 | BU44: GL RF | BW44: =SB_Inp1!K23 -> 10 | DB44: TOTAL | DE44: =SUM(DE34:DG43) -> 156.5 | GB44: CTFE | GD44: =GD43*GD36 -> 3.485001105 | GG44: =GG43*GG36 -> 2.22662441 | GJ44: 1.258376696 | GS44: LAYER 6 | GU44: OSB (12 mm) [Kronospan] | GX44: 1 | HA44: m²/m² | HD44: 9.9e-07 | HG44: kg SB-eq | HJ44: 51.36 | HM44: MJ | HP44: 0.011028 | HS44: kg SO2-eq | HV44: 0.002628 | HY44: kg (PO4)3-eq | IB44: 0.006264 | IE44: kg C2H4-eq | IH44: -9.036 | IK44: kg CO2-eq | IN44: 1.1316e-12 | IQ44: kg CFC11-eq | IW44: T COST A | IY44: =KL13 -> 10517.57346
C45: 37 | D45: =Mat_DB!D48 -> Air Cavity (25 mm) [ISO 6946] | E45: =Mat_DB!H48 -> Air Cavity | F45: =Mat_DB!J48 -> 25 | G45: =Mat_DB!L48 -> R [(m²·K)/W] | H45: =Mat_DB!K48 -> --- | I45: --- | J45: --- | K45: =Mat_DB!M48 -> ISO 6946 | L45: =IF(Mat_DB!O48="","---",Mat_DB!O48) -> --- | M45: =IF(Mat_DB!P48="","---",Mat_DB!P48) -> m²/m² | N45: =IF(Mat_DB!Q48="","---",Mat_DB!Q48) -> 0 | O45: €/m² | P45: =Mat_DB!T48 -> 0 | Q45: kg SB-eq/m² | R45: =Mat_DB!U48 -> 0 | S45: MJ/m² | T45: =Mat_DB!V48 -> 0 | U45: kg SO2-eq/m² | V45: =Mat_DB!W48 -> 0 | W45: kg (PO4)3-eq/m² | X45: =Mat_DB!X48 -> 0 | Y45: kg C2H4-eq/m² | Z45: =Mat_DB!Y48 -> 0 | AA45: kg CO2-eq/m² | AB45: =Mat_DB!Z48 -> 0 | AC45: kg CFC11-eq/m² | AD45: =Mat_DB!AC48 -> --- | AE45: mm | AF45: =Mat_DB!AD48 -> --- | AG45: mm | AH45: =Mat_DB!AE48 -> --- | AI45: mm | AJ45: 1 | AK45: 1 | AL45: 7 | AM45: 2 | AO45: 8 | AP45: 1 | AQ45: 1 | AR45: 1 | AS45: 0 | AT45: 0 | AU45: 0 | AV45: 0 | AW45: --- | AX45: --- | BC45: Arouca | BD45: 8 | BU45: # FLOORS | BW45: =SB_Inp1!E26 -> 2 | ED45: Rupper | EH45: Rlower | EL45: Rupper | EP45: Rlower | ET45: Rupper | EX45: Rlower | FB45: Rupper | FF45: Rlower | GB45: UFE | GD45: =GD41+GD43 -> 17.65321089 | GG45: =GG41+GG43 -> 13.47837098 | GJ45: 4.174839906 | GM45: % SAVED ENERGY | GS45: LAYER 7 | GU45: Mortar (10 mm) | GX45: 1 | HA45: m²/m² | HD45: 3.17e-06 | HG45: kg SB-eq | HJ45: 9.05 | HM45: MJ | HP45: 0.00488 | HS45: kg SO2-eq | HV45: 0.000998 | HY45: kg (PO4)3-eq | IB45: 0.000245 | IE45: kg C2H4-eq | IH45: 1.42 | IK45: kg CO2-eq | IN45: 9.66e-08 | IQ45: kg CFC11-eq | IW45: U COST B | IY45: =KL29 -> 44.46242319
C46: 38 | D46: =Mat_DB!D49 -> Air Cavity (90 mm) [ISO 6946] | E46: =Mat_DB!H49 -> Air Cavity | F46: =Mat_DB!J49 -> 90 | G46: =Mat_DB!L49 -> R [(m²·K)/W] | H46: =Mat_DB!K49 -> --- | I46: --- | J46: --- | K46: =Mat_DB!M49 -> ISO 6946 | L46: =IF(Mat_DB!O49="","---",Mat_DB!O49) -> --- | M46: =IF(Mat_DB!P49="","---",Mat_DB!P49) -> m²/m² | N46: =IF(Mat_DB!Q49="","---",Mat_DB!Q49) -> 0 | O46: €/m² | P46: =Mat_DB!T49 -> 0 | Q46: kg SB-eq/m² | R46: =Mat_DB!U49 -> 0 | S46: MJ/m² | T46: =Mat_DB!V49 -> 0 | U46: kg SO2-eq/m² | V46: =Mat_DB!W49 -> 0 | W46: kg (PO4)3-eq/m² | X46: =Mat_DB!X49 -> 0 | Y46: kg C2H4-eq/m² | Z46: =Mat_DB!Y49 -> 0 | AA46: kg CO2-eq/m² | AB46: =Mat_DB!Z49 -> 0 | AC46: kg CFC11-eq/m² | AD46: =Mat_DB!AC49 -> --- | AE46: mm | AF46: =Mat_DB!AD49 -> --- | AG46: mm | AH46: =Mat_DB!AE49 -> --- | AI46: mm | AJ46: 1 | AK46: 1 | AL46: 7 | AM46: 2 | AO46: 9 | AP46: 1 | AQ46: 1 | AR46: 1 | AS46: 0 | AT46: 0 | AU46: 0 | AV46: 0 | AW46: --- | AX46: --- | BC46: Arraiolos | BD46: 25 | BU46: FLOOR HEIGHT | BW46: =SB_Inp1!E27 -> 2.7 | ED46: =1/($DS$21/ED43+$DS$20/EF43) -> 2.937711663 | EE46: [(m2 .K)/W] | EH46: =EI43 -> 0.8363326407 | EI46: [(m2 .K)/W] | EL46: =ED46 -> 2.937711663 | EM46: [(m2 .K)/W] | EP46: =EH46 -> 0.8363326407 | EQ46: [(m2 .K)/W] | ET46: =ED46 -> 2.937711663 | EU46: [(m2 .K)/W] | EX46: =EH46 -> 0.8363326407 | EY46: [(m2 .K)/W] | FB46: =ED46 -> 2.937711663 | FC46: [(m2 .K)/W] | FF46: =EH46 -> 0.8363326407 | FG46: [(m2 .K)/W] | GB46: TFE | GD46: =GD42+GD44 -> 4232.533842 | GG46: =GG42+GG44 -> 3231.574227 | GJ46: 1000.959616 | GM46: =1-GG46/GD46 -> 0.2364918163 | GS46: LAYER 8 | GU46: --- | GX46: --- | HA46: --- | HD46: --- | HG46: kg SB-eq | HJ46: --- | HM46: MJ | HP46: --- | HS46: kg SO2-eq | HV46: --- | HY46: kg (PO4)3-eq | IB46: --- | IE46: kg C2H4-eq | IH46: --- | IK46: kg CO2-eq | IN46: --- | IQ46: kg CFC11-eq | IW46: T COST B | IY46: =KL30 -> 10660.31058
C47: 39 | D47: =Mat_DB!D50 -> Air Cavity (150 mm) [ISO 6946] | E47: =Mat_DB!H50 -> Air Cavity | F47: =Mat_DB!J50 -> 150 | G47: =Mat_DB!L50 -> R [(m²·K)/W] | H47: =Mat_DB!K50 -> --- | I47: --- | J47: --- | K47: =Mat_DB!M50 -> ISO 6946 | L47: =IF(Mat_DB!O50="","---",Mat_DB!O50) -> --- | M47: =IF(Mat_DB!P50="","---",Mat_DB!P50) -> m²/m² | N47: =IF(Mat_DB!Q50="","---",Mat_DB!Q50) -> 0 | O47: €/m² | P47: =Mat_DB!T50 -> 0 | Q47: kg SB-eq/m² | R47: =Mat_DB!U50 -> 0 | S47: MJ/m² | T47: =Mat_DB!V50 -> 0 | U47: kg SO2-eq/m² | V47: =Mat_DB!W50 -> 0 | W47: kg (PO4)3-eq/m² | X47: =Mat_DB!X50 -> 0 | Y47: kg C2H4-eq/m² | Z47: =Mat_DB!Y50 -> 0 | AA47: kg CO2-eq/m² | AB47: =Mat_DB!Z50 -> 0 | AC47: kg CFC11-eq/m² | AD47: =Mat_DB!AC50 -> --- | AE47: mm | AF47: =Mat_DB!AD50 -> --- | AG47: mm | AH47: =Mat_DB!AE50 -> --- | AI47: mm | AJ47: 1 | AK47: 1 | AL47: 7 | AM47: 2 | AO47: 10 | AP47: 1 | AQ47: 1 | AR47: 1 | AS47: 0 | AT47: 0 | AU47: 0 | AV47: 0 | AW47: --- | AX47: --- | BC47: Arronches | BD47: 24 | GS47: LAYER 9 | GU47: --- | GX47: --- | HA47: --- | HD47: --- | HG47: kg SB-eq | HJ47: --- | HM47: MJ | HP47: --- | HS47: kg SO2-eq | HV47: --- | HY47: kg (PO4)3-eq | IB47: --- | IE47: kg C2H4-eq | IH47: --- | IK47: kg CO2-eq | IN47: --- | IQ47: kg CFC11-eq | IW47: EL. COST A | IY47: =CC15 -> 0.25
C48: 40 | D48: =Mat_DB!D51 -> Air Cavity (200 mm) [ISO 6946] | E48: =Mat_DB!H51 -> Air Cavity | F48: =Mat_DB!J51 -> 200 | G48: =Mat_DB!L51 -> R [(m²·K)/W] | H48: =Mat_DB!K51 -> --- | I48: --- | J48: --- | K48: =Mat_DB!M51 -> ISO 6946 | L48: =IF(Mat_DB!O51="","---",Mat_DB!O51) -> --- | M48: =IF(Mat_DB!P51="","---",Mat_DB!P51) -> m²/m² | N48: =IF(Mat_DB!Q51="","---",Mat_DB!Q51) -> 0 | O48: €/m² | P48: =Mat_DB!T51 -> 0 | Q48: kg SB-eq/m² | R48: =Mat_DB!U51 -> 0 | S48: MJ/m² | T48: =Mat_DB!V51 -> 0 | U48: kg SO2-eq/m² | V48: =Mat_DB!W51 -> 0 | W48: kg (PO4)3-eq/m² | X48: =Mat_DB!X51 -> 0 | Y48: kg C2H4-eq/m² | Z48: =Mat_DB!Y51 -> 0 | AA48: kg CO2-eq/m² | AB48: =Mat_DB!Z51 -> 0 | AC48: kg CFC11-eq/m² | AD48: =Mat_DB!AC51 -> --- | AE48: mm | AF48: =Mat_DB!AD51 -> --- | AG48: mm | AH48: =Mat_DB!AE51 -> --- | AI48: mm | AJ48: 1 | AK48: 1 | AL48: 7 | AM48: 2 | AP48: =SUM(AP38:AP47) -> 12 | AQ48: =SUM(AQ38:AQ47) -> 12 | AR48: =SUM(AR38:AR47) -> 16 | AS48: =SUM(AS38:AS47) -> 20 | AT48: =IF(AS48=5,0.11,IF(AS48=10,0.15,IF(AS48>=25,0.18,IF(AS48<5,0.11*(AS48/5),IF(AS48<10,0.11+((AS48-5)/5)*0.04,IF(AS48<15,0.15+((AS48-10)/5)*0.02,IF(AS48<25,0.17+((AS48-15)/10)*0.01,0))))))) -> 0.175 | BC48: Arruda dos Vinhos | BD48: 19 | EH48: Rtotal | EL48: p | EP48: Rtotal | ET48: p | EX48: Rtotal | FB48: p | FF48: Rtotal | FN48: Rtotal | GB48: RESULTS | GS48: LAYER 10 | GU48: --- | GX48: --- | HA48: --- | HD48: --- | HG48: kg SB-eq | HJ48: --- | HM48: MJ | HP48: --- | HS48: kg SO2-eq | HV48: --- | HY48: kg (PO4)3-eq | IB48: --- | IE48: kg C2H4-eq | IH48: --- | IK48: kg CO2-eq | IN48: --- | IQ48: kg CFC11-eq | IW48: EL. COST B | IY48: =CC35 -> 0.25
C49: 41 | D49: =Mat_DB!D52 -> Mortar (10 mm) | E49: =Mat_DB!H52 -> Other | F49: =Mat_DB!J52 -> 10 | G49: =Mat_DB!L52 -> λ [W/(m·K)] | H49: =Mat_DB!K52 -> 1.8 | I49: 1.8 | J49: --- | K49: =Mat_DB!M52 -> ITE50 | L49: =IF(Mat_DB!O52="","---",Mat_DB!O52) -> 1 | M49: =IF(Mat_DB!P52="","---",Mat_DB!P52) -> m²/m² | N49: =IF(Mat_DB!Q52="","---",Mat_DB!Q52) -> 2.44 | O49: €/m² | P49: =Mat_DB!T52 -> 3.17e-06 | Q49: kg SB-eq/m² | R49: =Mat_DB!U52 -> 9.05 | S49: MJ/m² | T49: =Mat_DB!V52 -> 0.00488 | U49: kg SO2-eq/m² | V49: =Mat_DB!W52 -> 0.000998 | W49: kg (PO4)3-eq/m² | X49: =Mat_DB!X52 -> 0.000245 | Y49: kg C2H4-eq/m² | Z49: =Mat_DB!Y52 -> 1.42 | AA49: kg CO2-eq/m² | AB49: =Mat_DB!Z52 -> 9.66e-08 | AC49: kg CFC11-eq/m² | AD49: =Mat_DB!AC52 -> --- | AE49: mm | AF49: =Mat_DB!AD52 -> --- | AG49: mm | AH49: =Mat_DB!AE52 -> --- | AI49: mm | AJ49: 1 | AK49: 2 | AL49: 4 | AM49: 2 | BC49: Aveiro | BD49: 9 | BU49: MCA | EH49: =(ED46+EH46)/2 -> 1.887022152 | EI49: [(m2 .K)/W] | EL49: =0.8*(EP46/EL46)+0.1 -> 0.3277507765 | EP49: =EL46*EL49+EP46*(1-EL49) -> 1.525061247 | EQ49: [(m2 .K)/W] | ET49: =EV53 -> 0.25 | EX49: =ET46*ET49+EX46*(1-ET49) -> 1.361677396 | EY49: [(m2 .K)/W] | FB49: =0.8*(FF46/FB46)+0.44-0.1*(DM15/0.04)-0.2*(0.6/DM14)-0.04*(DM12/0.1) -> 0.2242507765 | FF49: =FB46*FB49+FF46*(1-FB49) -> 1.307568518 | FG49: [(m2 .K)/W] | FN49: =1/(DS16/FO43+DS17/FK43) -> 1.455561577 | FO49: [(m2 .K)/W] | GU49: Material 2 | GX49: Unit Consumption | HD49: Indicator | HJ49: Indicator | HP49: Indicator | HV49: Indicator | IB49: Indicator | IH49: Indicator | IN49: Indicator | IW49: UEB | IY49: =GJ63 -> 0.9753510413
C50: 42 | D50: =Mat_DB!D53 -> 0 | E50: =Mat_DB!H53 -> 0 | F50: =Mat_DB!J53 -> 0 | G50: =Mat_DB!L53 -> 0 | H50: =Mat_DB!K53 -> 0 | I50: --- | J50: --- | K50: =Mat_DB!M53 -> 0 | L50: =IF(Mat_DB!O53="","---",Mat_DB!O53) -> --- | M50: =IF(Mat_DB!P53="","---",Mat_DB!P53) -> --- | N50: =IF(Mat_DB!Q53="","---",Mat_DB!Q53) -> --- | O50: --- | P50: =Mat_DB!T53 -> 0 | Q50: --- | R50: =Mat_DB!U53 -> 0 | S50: --- | T50: =Mat_DB!V53 -> 0 | U50: --- | V50: =Mat_DB!W53 -> 0 | W50: --- | X50: =Mat_DB!X53 -> 0 | Y50: --- | Z50: =Mat_DB!Y53 -> 0 | AA50: --- | AB50: =Mat_DB!Z53 -> 0 | AC50: --- | AD50: =Mat_DB!AC53 -> 0 | AE50: --- | AF50: =Mat_DB!AD53 -> 0 | AG50: --- | AH50: =Mat_DB!AE53 -> 0 | AI50: --- | AJ50: 1 | AK50: --- | AL50: --- | AM50: --- | BC50: Avis | BD50: 24 | GD50: SOLUTION A | GG50: SOLUTION B | GS50: LAYER 1 | GU50: =CV34 -> --- | GX50: =IF(VLOOKUP(CX34,$C$9:$AV$61,36)=1,$AT$17,IF(VLOOKUP(CX34,$C$9:$AV$61,36)=6,$AT$17,VLOOKUP(CX34,$C$9:$AV$61,10))) -> --- | HA50: =VLOOKUP(CX34,$C$9:$AV$61,11) -> --- | HD50: =VLOOKUP(CX34,$C$9:$AV$61,14) -> --- | HG50: kg SB-eq | HJ50: =VLOOKUP(CX34,$C$9:$AV$61,16) -> --- | HM50: MJ | HP50: =IF(VLOOKUP(CX34,$C$9:$AV$61,36)=7,$HD$185,VLOOKUP(CX34,$C$9:$AV$61,18)) -> --- | HS50: kg SO2-eq | HV50: =VLOOKUP(CX34,$C$9:$AV$61,20) -> --- | HY50: kg (PO4)3-eq | IB50: =VLOOKUP(CX34,$C$9:$AV$61,22) -> --- | IE50: kg C2H4-eq | IH50: =VLOOKUP(CX34,$C$9:$AV$61,24) -> --- | IK50: kg CO2-eq | IN50: =VLOOKUP(CX34,$C$9:$AV$61,26) -> --- | IQ50: kg CFC11-eq | IW50: TEB | IY50: =GJ64 -> 233.8501657
C51: 43 | D51: =Mat_DB!D54 -> 0 | E51: =Mat_DB!H54 -> 0 | F51: =Mat_DB!J54 -> 0 | G51: =Mat_DB!L54 -> 0 | H51: =Mat_DB!K54 -> 0 | I51: --- | J51: --- | K51: =Mat_DB!M54 -> 0 | L51: =IF(Mat_DB!O54="","---",Mat_DB!O54) -> --- | M51: =IF(Mat_DB!P54="","---",Mat_DB!P54) -> --- | N51: =IF(Mat_DB!Q54="","---",Mat_DB!Q54) -> --- | O51: --- | P51: =Mat_DB!T54 -> 0 | Q51: --- | R51: =Mat_DB!U54 -> 0 | S51: --- | T51: =Mat_DB!V54 -> 0 | U51: --- | V51: =Mat_DB!W54 -> 0 | W51: --- | X51: =Mat_DB!X54 -> 0 | Y51: --- | Z51: =Mat_DB!Y54 -> 0 | AA51: --- | AB51: =Mat_DB!Z54 -> 0 | AC51: --- | AD51: =Mat_DB!AC54 -> 0 | AE51: --- | AF51: =Mat_DB!AD54 -> 0 | AG51: --- | AH51: =Mat_DB!AE54 -> 0 | AI51: --- | AJ51: 1 | AK51: --- | AL51: --- | AM51: --- | BC51: Azambuja | BD51: 21 | BU51: UVC | BW51: =MCA_Inp!#REF! ->  | ET51: =VLOOKUP(CO14,$C$9:$AV$61,36) -> 5 | EU51: =IF(ET51=3,2,1) -> 1 | EV51: =IF($DM$14<0.5,1,2) -> 1 | GB51: U | GD51: =IF($BY$13=1,GD20,GD35) -> 0.5299354853 | GG51: =IF($BY$33=1,GG20,GG35) -> 0.4514459734 | GS51: LAYER 2 | GU51: --- | GX51: --- | HA51: --- | HD51: --- | HG51: kg SB-eq | HJ51: --- | HM51: MJ | HP51: --- | HS51: kg SO2-eq | HV51: --- | HY51: kg (PO4)3-eq | IB51: --- | IE51: kg C2H4-eq | IH51: --- | IK51: kg CO2-eq | IN51: --- | IQ51: kg CFC11-eq | IW51: IC | IY51: =IY46-IY44 -> 142.73712
C52: 44 | D52: =Mat_DB!D55 -> 0 | E52: =Mat_DB!H55 -> 0 | F52: =Mat_DB!J55 -> 0 | G52: =Mat_DB!L55 -> 0 | H52: =Mat_DB!K55 -> 0 | I52: --- | J52: --- | K52: =Mat_DB!M55 -> 0 | L52: =IF(Mat_DB!O55="","---",Mat_DB!O55) -> --- | M52: =IF(Mat_DB!P55="","---",Mat_DB!P55) -> --- | N52: =IF(Mat_DB!Q55="","---",Mat_DB!Q55) -> --- | O52: --- | P52: =Mat_DB!T55 -> 0 | Q52: --- | R52: =Mat_DB!U55 -> 0 | S52: --- | T52: =Mat_DB!V55 -> 0 | U52: --- | V52: =Mat_DB!W55 -> 0 | W52: --- | X52: =Mat_DB!X55 -> 0 | Y52: --- | Z52: =Mat_DB!Y55 -> 0 | AA52: --- | AB52: =Mat_DB!Z55 -> 0 | AC52: --- | AD52: =Mat_DB!AC55 -> 0 | AE52: --- | AF52: =Mat_DB!AD55 -> 0 | AG52: --- | AH52: =Mat_DB!AE55 -> 0 | AI52: --- | AJ52: 1 | AK52: --- | AL52: --- | AM52: --- | BC52: Baião | BD52: 6 | BU52: EB | BW52: =MCA_Inp!F15 -> 0.35 | DK52: SOLUTION B | ET52: =VLOOKUP(CO15,$C$9:$AV$61,36) -> 5 | EU52: =IF(ET52=3,2,1) -> 1 | EV52: =EU61*EV51 -> 10 | GB52: A | GD52: =IF($BY$13=1,GD21,GD36) -> 239.76 | GG52: =IF($BY$33=1,GG21,GG36) -> 239.76 | GS52: LAYER 3 | GU52: TB Strip XPS (10 mm) [IFoam] | GX52: 3.307407407 | HA52: m²/m² | HD52: =VLOOKUP(CX36,$C$9:$AV$61,14) -> 3.764705882e-07 | HG52: kg SB-eq | HJ52: =VLOOKUP(CX36,$C$9:$AV$61,16) -> 16.44117647 | HM52: MJ | HP52: 0.003058823529 | HS52: kg SO2-eq | HV52: =VLOOKUP(CX36,$C$9:$AV$61,20) -> 0.0003970588235 | HY52: kg (PO4)3-eq | IB52: =VLOOKUP(CX36,$C$9:$AV$61,22) -> 0.0001852941176 | IE52: kg C2H4-eq | IH52: =VLOOKUP(CX36,$C$9:$AV$61,24) -> 0.7558823529 | IK52: kg CO2-eq | IN52: =VLOOKUP(CX36,$C$9:$AV$61,26) -> 2.505882353e-08 | IQ52: kg CFC11-eq | IW52: B | IY52: =(0.5*IY47+0.5*IY48)*IY50 -> 58.46254142
C53: 45 | D53: =Mat_DB!D56 -> 0 | E53: =Mat_DB!H56 -> 0 | F53: =Mat_DB!J56 -> 0 | G53: =Mat_DB!L56 -> 0 | H53: =Mat_DB!K56 -> 0 | I53: --- | J53: --- | K53: =Mat_DB!M56 -> 0 | L53: =IF(Mat_DB!O56="","---",Mat_DB!O56) -> --- | M53: =IF(Mat_DB!P56="","---",Mat_DB!P56) -> --- | N53: =IF(Mat_DB!Q56="","---",Mat_DB!Q56) -> --- | O53: --- | P53: =Mat_DB!T56 -> 0 | Q53: --- | R53: =Mat_DB!U56 -> 0 | S53: --- | T53: =Mat_DB!V56 -> 0 | U53: --- | V53: =Mat_DB!W56 -> 0 | W53: --- | X53: =Mat_DB!X56 -> 0 | Y53: --- | Z53: =Mat_DB!Y56 -> 0 | AA53: --- | AB53: =Mat_DB!Z56 -> 0 | AC53: --- | AD53: =Mat_DB!AC56 -> 0 | AE53: --- | AF53: =Mat_DB!AD56 -> 0 | AG53: --- | AH53: =Mat_DB!AE56 -> 0 | AI53: --- | AJ53: 1 | AK53: --- | AL53: --- | AM53: --- | BC53: Barcelos | BD53: 3 | BU53: CBA | BW53: =MCA_Inp!F16 -> 0.15 | ET53: 2 | EU53: 1 | EV53: =IF(EV52=20,0.3,IF(EV52=22,0.5,IF(EV52=10,0.25,IF(EV52=11,0.4,0.4)))) -> 0.25 | GB53: L | GD53: =IF($BY$13=1,GD11,GD34) -> Coimbra | GG53: =IF($BY$33=1,GG11,GG34) -> Coimbra | GS53: LAYER 4 | GU53: Steel C90/U93 (90 mm) [Pertecno] | GX53: =IF(VLOOKUP(CX37,$C$9:$AV$61,36)=1,$AT$17,IF(VLOOKUP(CX37,$C$9:$AV$61,36)=6,$AT$17,VLOOKUP(CX37,$C$9:$AV$61,10))) -> 3.307407407 | HA53: m/m² | HD53: =VLOOKUP(CX37,$C$9:$AV$61,14) -> 1.31188376e-07 | HG53: kg SB-eq | HJ53: =VLOOKUP(CX37,$C$9:$AV$61,16) -> 72.9013 | HM53: MJ | HP53: =IF(VLOOKUP(CX37,$C$9:$AV$61,36)=7,$HD$185,VLOOKUP(CX37,$C$9:$AV$61,18)) -> 2.576412e-05 | HS53: kg SO2-eq | HV53: =VLOOKUP(CX37,$C$9:$AV$61,20) -> 1.501694e-06 | HY53: kg (PO4)3-eq | IB53: =VLOOKUP(CX37,$C$9:$AV$61,22) -> 0.0004660346 | IE53: kg C2H4-eq | IH53: =VLOOKUP(CX37,$C$9:$AV$61,24) -> 0.00553128 | IK53: kg CO2-eq | IN53: =VLOOKUP(CX37,$C$9:$AV$61,26) -> 0 | IQ53: kg CFC11-eq | IW53: PB | IY53: =IY51/IY52 -> 2.441514114
C54: 46 | D54: =Mat_DB!D57 -> 0 | E54: =Mat_DB!H57 -> 0 | F54: =Mat_DB!J57 -> 0 | G54: =Mat_DB!L57 -> 0 | H54: =Mat_DB!K57 -> 0 | I54: --- | J54: --- | K54: =Mat_DB!M57 -> 0 | L54: =IF(Mat_DB!O57="","---",Mat_DB!O57) -> --- | M54: =IF(Mat_DB!P57="","---",Mat_DB!P57) -> --- | N54: =IF(Mat_DB!Q57="","---",Mat_DB!Q57) -> --- | O54: --- | P54: =Mat_DB!T57 -> 0 | Q54: --- | R54: =Mat_DB!U57 -> 0 | S54: --- | T54: =Mat_DB!V57 -> 0 | U54: --- | V54: =Mat_DB!W57 -> 0 | W54: --- | X54: =Mat_DB!X57 -> 0 | Y54: --- | Z54: =Mat_DB!Y57 -> 0 | AA54: --- | AB54: =Mat_DB!Z57 -> 0 | AC54: --- | AD54: =Mat_DB!AC57 -> 0 | AE54: --- | AF54: =Mat_DB!AD57 -> 0 | AG54: --- | AH54: =Mat_DB!AE57 -> 0 | AI54: --- | AJ54: 1 | AK54: --- | AL54: --- | AM54: --- | BC54: Barrancos | BD54: 27 | BU54: LCA | BW54: =MCA_Inp!F17 -> 0.5 | ET54: 5 | EU54: 1 | GB54: E | GD54: =IF($BY$13=1,GD12*1000,"---") -> 75 | GG54: =IF($BY$33=1,GG12*1000,"---") -> 75 | GS54: LAYER 5 | GU54: TB Strip XPS (10 mm) [IFoam] | GX54: =IF(VLOOKUP(CX38,$C$9:$AV$61,36)=1,$AT$17,IF(VLOOKUP(CX38,$C$9:$AV$61,36)=6,$AT$17,VLOOKUP(CX38,$C$9:$AV$61,10))) -> 3.307407407 | HA54: m²/m² | HD54: 3.764705882e-07 | HG54: kg SB-eq | HJ54: 16.44117647 | HM54: MJ | HP54: =IF(VLOOKUP(CX38,$C$9:$AV$61,36)=7,$HD$185,VLOOKUP(CX38,$C$9:$AV$61,18)) -> 0.003058823529 | HS54: kg SO2-eq | HV54: 0.0003970588235 | HY54: kg (PO4)3-eq | IB54: 0.0001852941176 | IE54: kg C2H4-eq | IH54: 0.7558823529 | IK54: kg CO2-eq | IN54: 2.505882353e-08 | IQ54: kg CFC11-eq
C55: 47 | D55: =Mat_DB!D58 -> 0 | E55: =Mat_DB!H58 -> 0 | F55: =Mat_DB!J58 -> 0 | G55: =Mat_DB!L58 -> 0 | H55: =Mat_DB!K58 -> 0 | I55: --- | J55: --- | K55: =Mat_DB!M58 -> 0 | L55: =IF(Mat_DB!O58="","---",Mat_DB!O58) -> --- | M55: =IF(Mat_DB!P58="","---",Mat_DB!P58) -> --- | N55: =IF(Mat_DB!Q58="","---",Mat_DB!Q58) -> --- | O55: --- | P55: =Mat_DB!T58 -> 0 | Q55: --- | R55: =Mat_DB!U58 -> 0 | S55: --- | T55: =Mat_DB!V58 -> 0 | U55: --- | V55: =Mat_DB!W58 -> 0 | W55: --- | X55: =Mat_DB!X58 -> 0 | Y55: --- | Z55: =Mat_DB!Y58 -> 0 | AA55: --- | AB55: =Mat_DB!Z58 -> 0 | AC55: --- | AD55: =Mat_DB!AC58 -> 0 | AE55: --- | AF55: =Mat_DB!AD58 -> 0 | AG55: --- | AH55: =Mat_DB!AE58 -> 0 | AI55: --- | AJ55: 1 | AK55: --- | AL55: --- | AM55: --- | BC55: Barreiro | BD55: 23 | DK55: WALL | DQ55: AREA FACTORS | DW55: R-VALUE | U-VALUE | ET55: 4 | EU55: 1 | GB55: HDD | GD55: =IF($BY$13=1,GL10,GD37) -> 1312 | GG55: =IF($BY$33=1,GN10,GG37) -> 1312 | GS55: LAYER 6 | GU55: --- | GX55: --- | HA55: --- | HD55: --- | HG55: kg SB-eq | HJ55: --- | HM55: MJ | HP55: --- | HS55: kg SO2-eq | HV55: --- | HY55: kg (PO4)3-eq | IB55: --- | IE55: kg C2H4-eq | IH55: --- | IK55: kg CO2-eq | IN55: --- | IQ55: kg CFC11-eq
C56: 48 | D56: =Mat_DB!D59 -> 0 | E56: =Mat_DB!H59 -> 0 | F56: =Mat_DB!J59 -> 0 | G56: =Mat_DB!L59 -> 0 | H56: =Mat_DB!K59 -> 0 | I56: --- | J56: --- | K56: =Mat_DB!M59 -> 0 | L56: =IF(Mat_DB!O59="","---",Mat_DB!O59) -> --- | M56: =IF(Mat_DB!P59="","---",Mat_DB!P59) -> --- | N56: =IF(Mat_DB!Q59="","---",Mat_DB!Q59) -> --- | O56: --- | P56: =Mat_DB!T59 -> 0 | Q56: --- | R56: =Mat_DB!U59 -> 0 | S56: --- | T56: =Mat_DB!V59 -> 0 | U56: --- | V56: =Mat_DB!W59 -> 0 | W56: --- | X56: =Mat_DB!X59 -> 0 | Y56: --- | Z56: =Mat_DB!Y59 -> 0 | AA56: --- | AB56: =Mat_DB!Z59 -> 0 | AC56: --- | AD56: =Mat_DB!AC59 -> 0 | AE56: --- | AF56: =Mat_DB!AD59 -> 0 | AG56: --- | AH56: =Mat_DB!AE59 -> 0 | AI56: --- | AJ56: 1 | AK56: --- | AL56: --- | AM56: --- | BC56: Batalha | BD56: 18 | BU56: ADPE | BW56: =MCA_Inp!J20 -> 0.14 | ET56: 0 | EU56: 1 | GB56: CDD | GD56: =IF($BY$13=1,GL11,GD38) -> 500.2 | GG56: =IF($BY$33=1,GN11,GG38) -> 500.2 | GS56: LAYER 7 | GU56: --- | GX56: --- | HA56: --- | HD56: --- | HG56: kg SB-eq | HJ56: --- | HM56: MJ | HP56: --- | HS56: kg SO2-eq | HV56: --- | HY56: kg (PO4)3-eq | IB56: --- | IE56: kg C2H4-eq | IH56: --- | IK56: kg CO2-eq | IN56: --- | IQ56: kg CFC11-eq
C57: 49 | D57: =Mat_DB!D60 -> 0 | E57: =Mat_DB!H60 -> 0 | F57: =Mat_DB!J60 -> 0 | G57: =Mat_DB!L60 -> 0 | H57: =Mat_DB!K60 -> 0 | I57: --- | J57: --- | K57: =Mat_DB!M60 -> 0 | L57: =IF(Mat_DB!O60="","---",Mat_DB!O60) -> --- | M57: =IF(Mat_DB!P60="","---",Mat_DB!P60) -> --- | N57: =IF(Mat_DB!Q60="","---",Mat_DB!Q60) -> --- | O57: --- | P57: =Mat_DB!T60 -> 0 | Q57: --- | R57: =Mat_DB!U60 -> 0 | S57: --- | T57: =Mat_DB!V60 -> 0 | U57: --- | V57: =Mat_DB!W60 -> 0 | W57: --- | X57: =Mat_DB!X60 -> 0 | Y57: --- | Z57: =Mat_DB!Y60 -> 0 | AA57: --- | AB57: =Mat_DB!Z60 -> 0 | AC57: --- | AD57: =Mat_DB!AC60 -> 0 | AE57: --- | AF57: =Mat_DB!AD60 -> 0 | AG57: --- | AH57: =Mat_DB!AE60 -> 0 | AI57: --- | AJ57: 1 | AK57: --- | AL57: --- | AM57: --- | BC57: Beja | BD57: 27 | BU57: ADPF | BW57: =MCA_Inp!J21 -> 0.14 | DK57: SD | DM57: =VLOOKUP($CE$40,$C$9:$AV$61,30)*0.001 -> 0.09 | DN57: =VLOOKUP(#REF!,$C$9:$AV$61,7) ->  | DO57: =VLOOKUP(#REF!,$C$9:$AV$61,7) ->  | DQ57: F_FL_W | DS57: =DM60/DM62 -> 0.3839285714 | DW57: CHOSEN METHOD | DY57: =SB_UCalc!H26 -> 1 | ET57: 0 | EU57: 1 | GB57: CoP | GD57: =IF($BY$13=1,GD22,GD39) -> 3.5 | GG57: =IF($BY$33=1,GG22,GG39) -> 3.5 | GS57: LAYER 8 | GU57: --- | GX57: --- | HA57: --- | HD57: --- | HG57: kg SB-eq | HJ57: --- | HM57: MJ | HP57: --- | HS57: kg SO2-eq | HV57: --- | HY57: kg (PO4)3-eq | IB57: --- | IE57: kg C2H4-eq | IH57: --- | IK57: kg CO2-eq | IN57: --- | IQ57: kg CFC11-eq
C58: 50 | BC58: Belmonte | BD58: 13 | BU58: AP | BW58: =MCA_Inp!J22 -> 0.14 | DK58: ST | DM58: =VLOOKUP($CE$40,$C$9:$AV$61,32)*0.001 -> 0.0015 | DQ58: F_FL_W- | DS58: =1-DS57 -> 0.6160714286 | DW58: CM | DY58: =EH94 -> 2.215104484 | ET58: 0 | EU58: 1 | GB58: EER | GD58: 3.5 | GG58: 3.5 | GJ58: DIFFERENCE | GS58: LAYER 9 | GU58: --- | GX58: --- | HA58: --- | HD58: --- | HG58: kg SB-eq | HJ58: --- | HM58: MJ | HP58: --- | HS58: kg SO2-eq | HV58: --- | HY58: kg (PO4)3-eq | IB58: --- | IE58: kg C2H4-eq | IH58: --- | IK58: kg CO2-eq | IN58: --- | IQ58: kg CFC11-eq
C59: 51 | BC59: Benavente | BD59: 21 | BU59: EP | BW59: =MCA_Inp!J23 -> 0.14 | DK59: SS | DM59: =CC39*0.001 -> 0.4 | DQ59: F_ST_W | DS59: =DM58/DM62 -> 0.01339285714 | DW59: GM1 | DY59: =EP94 -> 1.965425295 | ET59: 0 | EU59: 1 | GB59: HUFE | GD59: 4.767602446 | GG59: 4.061465946 | GJ59: =GD59-GG59 -> 0.7061365005 | GS59: LAYER 10 | GU59: --- | GX59: --- | HA59: --- | HD59: --- | HG59: kg SB-eq | HJ59: --- | HM59: MJ | HP59: --- | HS59: kg SO2-eq | HV59: --- | HY59: kg (PO4)3-eq | IB59: --- | IE59: kg C2H4-eq | IH59: --- | IK59: kg CO2-eq | IN59: --- | IQ59: kg CFC11-eq
C60: 52 | BC60: Bombarral | BD60: 19 | BU60: POCP | BW60: =MCA_Inp!J24 -> 0.14 | DK60: FL | DM60: =VLOOKUP($CE$40,$C$9:$AV$61,28)*0.001 -> 0.043 | DN60: =VLOOKUP(#REF!,$C$9:$AV$61,7) ->  | DO60: =VLOOKUP(#REF!,$C$9:$AV$61,7) ->  | DQ60: F_ST_W- | DS60: =1-DS59 -> 0.9866071429 | DW60: GM2 | DY60: =EX94 -> 1.685187001 | ET60: 0 | EU60: 1 | GB60: HTFE | GD60: 1143.080363 | GG60: 973.7770752 | GJ60: 169.3032874 | HD60: =SUM(HD39:HF48)+SUM(HD50:HF59) -> 0.0001073441296 | HJ60: =SUM(HJ39:HL48)+SUM(HJ50:HL59) -> 249.0436529 | HP60: =SUM(HP39:HR48)+SUM(HP50:HR59) -> 0.05416941118 | HV60: =SUM(HV39:HX48)+SUM(HV50:HX59) -> 0.01002161934 | IB60: =SUM(IB39:ID48)+SUM(IB50:ID59) -> 0.01519582284 | IH60: =SUM(IH39:IJ48)+SUM(IH50:IJ59) -> -11.11370401 | IN60: =SUM(IN39:IP48)+SUM(IN50:IP59) -> 2.077358403e-07
C61: 53 | BC61: Borba | BD61: 25 | BU61: GWP | BW61: =MCA_Inp!J25 -> 0.16 | DK61: SHT | DM61: =CC41*0.001 -> 0.0345 | DQ61: F_WZ_SS | DS61: =DM62/DM59 -> 0.28 | DW61: GM3 | DY61: =FF94 -> 1.746039457 | EU61: =SUM(EU51:EU60) -> 10 | GB61: CUFE | GD61: 1.817648433 | GG61: 1.548433892 | GJ61: 0.2692145408
C62: 54 | BC62: Boticas | BD62: 2 | BU62: ODP | BW62: =MCA_Inp!J26 -> 0.14 | DK62: WZ | DM62: =DM60+2*DM61 -> 0.112 | DQ62: F_WZ_SS- | DS62: =1-DS61 -> 0.72 | DW62: AZM | DY62: =FN94 -> 1.942790248 | GB62: CTFE | GD62: 435.7993882 | GG62: 371.2525099 | GJ62: 64.54687831 | GS62: SOLUTION A
C63: 55 | BC63: Braga | BD63: 3 | DK63: TBW | DM63: =CC42*0.001 -> 0.05 | DQ63: F_TBW_WZ | DS63: =DM63/DM62 -> 0.4464285714 | DW63: R | DY63: =IF(DY57=1,DY58,IF(DY57=2,DY59,IF(DY57=3,DY60,IF(DY57=4,DY61,IF(DY57=5,DY62))))) -> 2.215104484 | GB63: UFE | GD63: 6.585250879 | GG63: 5.609899838 | GJ63: 0.9753510413 | GM63: % SAVED ENERGY
C64: 56 | BC64: Bragança | BD64: 2 | DQ64: F_TBW_WZ- | DS64: =1-DS63 -> 0.5535714286 | DW64: U | DY64: =1/DY63 -> 0.4514459734 | GB64: TFE | GD64: 1578.879751 | GG64: 1345.029585 | GJ64: 233.8501657 | GM64: =1-GG64/GD64 -> 0.1481114477
C65: 57 | BC65: Cabeceiras de Basto | BD65: 4 | BU65: MATERIAL 1 LIST | BY65: MATERIAL 2 LIST | CC65: STUD | CG65: TRACK | CK65: MUNICIPALITY LIST | CO65: OTHERS LIST | CS65: λ / R | CW65: Type | DA65: uCons | DE65: Portugal/Others | DQ65: F_ST_SS | DS65: =DM58/DM59 -> 0.00375 | GS65: Layers | GU65: Material 1 | GX65: Unit Consumption | HE65: Chosen Indicator
C66: 58 | BC66: Cadaval | BD66: 19 | DQ66: F_ST_SS- | DS66: =1-DS65 -> 0.99625 | GS66: LAYER 1 | GU66: =GU12 -> Gypsum Board (12,5 mm) [Gyptec] | GX66: =IF($HE$67=1,HD12,IF($HE$67=2,HJ12,IF($HE$67=3,HP12,IF($HE$67=4,HV12,IF($HE$67=5,IB12,IF($HE$67=6,IH12,IF($HE$67=7,IN12,0))))))) -> 0.00094 | HA66: =IF($HE$67=1,$SV$316,IF($HE$67=2,$SV$317,IF($HE$67=3,$SV$318,IF($HE$67=4,$SV$319,IF($HE$67=5,$SV$320,IF($HE$67=6,$SV$321,IF($HE$67=7,$SV$322,0))))))) -> kg C2H4-eq | HB66: =VLOOKUP(HB65,$ST$316:$SV$322,2) ->  | HC66: =VLOOKUP(HC65,$ST$316:$SV$322,2) ->  | HE66: =SA_LCA!H10 -> Photochemical Ozone Creation Potential (POCP)
C67: 59 | BC67: Caldas da Rainha | BD67: 19 | BU67: =IF(VLOOKUP(C9,$C$9:$AV$61,36)=2,D9,IF(VLOOKUP(C9,$C$9:$AV$61,36)=3,D9,IF(VLOOKUP(C9,$C$9:$AV$61,36)=4,D9,IF(VLOOKUP(C9,$C$9:$AV$61,36)=5,D9,IF(VLOOKUP(C9,$C$9:$AV$61,36)=7,D9,$D$9))))) -> --- | BY67: =IF(VLOOKUP(C9,$C$9:$AV$61,36)=1,D9,IF(VLOOKUP(C9,$C$9:$AV$61,36)=6,D9,$D$9)) -> --- | CC67: =IF(VLOOKUP(C9,$C$9:$AV$61,36)=1,D9,$D$9) -> --- | CG67: =IF(VLOOKUP(C9,$C$9:$AV$61,36)=1,D9,$D$9) -> --- | CK67: --- | CO67: =IF(Loc_DB!G12="",$BO$9,Loc_DB!G12) -> --- | CS67: R [(m²·K)/W] | CW67: LSF Structure (Studs/Tracks) | DA67: m/m² | DE67: 1 - Portugal | DQ67: F_TBW_SS | DS67: =DM63/DM59 -> 0.125 | GS67: LAYER 2 | GU67: OSB (12 mm) [Kronospan] | GX67: 0.006264 | HA67: kg C2H4-eq | HE67: =VLOOKUP(HE66,$IM$166:$IN$172,2) -> 5
C68: 60 | BC68: Calheta | BD68: 29 | BU68: =IF(VLOOKUP(C10,$C$9:$AV$61,36)=2,D10,IF(VLOOKUP(C10,$C$9:$AV$61,36)=3,D10,IF(VLOOKUP(C10,$C$9:$AV$61,36)=4,D10,IF(VLOOKUP(C10,$C$9:$AV$61,36)=5,D10,IF(VLOOKUP(C10,$C$9:$AV$61,36)=7,D10,$D$9))))) -> Gypsum Board (6 mm) [Gyptec] | BY68: =IF(VLOOKUP(C10,$C$9:$AV$61,36)=1,D10,IF(VLOOKUP(C10,$C$9:$AV$61,36)=6,D10,$D$9)) -> --- | CC68: =IF(VLOOKUP(C10,$C$9:$AV$61,36)=1,D10,$D$9) -> --- | CG68: =IF(VLOOKUP(C10,$C$9:$AV$61,36)=1,D10,$D$9) -> --- | CK68: Abrantes | CO68: =IF(Loc_DB!G14="",$BO$9,Loc_DB!G14) -> Helsinki_FI | CS68: λ [W/(m·K)] | CW68: Cavity Insulation | DA68: m²/m² | DE68: 2 - Other Locations | DQ68: F_TBW_SS- | DS68: =1-DS67 -> 0.875 | GS68: LAYER 3 | GU68: Mineral wool (90 mm) [Volcalis] | GX68: 0.0006462 | HA68: kg C2H4-eq
C69: 61 | BC69: Calheta | BD69: 30 | BU69: Gypsum Board (9,5 mm) [Gyptec] | BY69: --- | CC69: --- | CG69: --- | CK69: Águeda | CO69: =IF(Loc_DB!G15="",$BO$9,Loc_DB!G15) -> Minsk_BY | CW69: External Insulation | GS69: LAYER 4 | GU69: OSB (12 mm) [Kronospan] | GX69: 0.006264 | HA69: kg C2H4-eq
C70: 62 | BC70: Câmara de Lobos | BD70: 30 | BU70: Gypsum Board (12,5 mm) [Gyptec] | BY70: --- | CC70: --- | CG70: --- | CK70: Aguiar da Beira | CO70: =IF(Loc_DB!G16="",$BO$9,Loc_DB!G16) -> Oslo_NO | CW70: Other | GS70: LAYER 5 | GU70: Mortar (10 mm) | GX70: 0.000245 | HA70: kg C2H4-eq
BC71: Caminha | BD71: 1 | BU71: Gypsum Board (15 mm) [Gyptec] | BY71: --- | CC71: --- | CG71: --- | CK71: Alandroal | CO71: =IF(Loc_DB!G17="",$BO$9,Loc_DB!G17) -> Stockholm_SE | CW71: Sheathing Panel | ED71: ISO 6946 COMBINED METHOD | EL71: GORGOLEWSKI METHOD 1 | ET71: GORGOLEWSKI METHOD 2 | FB71: GORGOLEWSKI METHOD 3 | FJ71: ASHRAE ZONE METHOD | FR71: ASHRAE ZONE METHOD | GS71: LAYER 6 | GU71: --- | GX71: --- | HA71: kg C2H4-eq
BC72: Campo Maior | BD72: 24 | BU72: Gypsum Board (18 mm) [Gyptec] | BY72: --- | CC72: --- | CG72: --- | CK72: Albergaria-a-Velha | CO72: =IF(Loc_DB!G18="",$BO$9,Loc_DB!G18) -> Berlin_DE | CW72: Thermal Break Strip | DA72: LIST | GS72: LAYER 7 | GU72: --- | GX72: --- | HA72: kg C2H4-eq
BC73: Cantanhede | BD73: 10 | BU73: OSB (9 mm) [Kronospan] | BY73: --- | CC73: --- | CG73: --- | CK73: Albufeira | CO73: =IF(Loc_DB!G19="",$BO$9,Loc_DB!G19) -> Brussels_BE | CW73: Air Cavity | GS73: LAYER 8 | GU73: --- | GX73: --- | HA73: kg C2H4-eq
BC74: Carrazeda de Ansiães | BD74: 7 | BU74: OSB (12 mm) [Kronospan] | BY74: --- | CC74: --- | CG74: --- | CK74: Alcácer do Sal | CO74: =IF(Loc_DB!G20="",$BO$9,Loc_DB!G20) -> Vienna_AT | DA74: ASHRAE Zone Method | ED74: PARALLEL PATH METHOD | EH74: ISOTHERMAL PLANE METHOD | EL74: PARALLEL PATH METHOD | EP74: ISOTHERMAL PLANE METHOD | ET74: PARALLEL PATH METHOD | EX74: ISOTHERMAL PLANE METHOD | FB74: PARALLEL PATH METHOD | FF74: ISOTHERMAL PLANE METHOD | FJ74: Zone CAV | FN74: Zone W | FR74: Zone CAV | FV74: Zone W | GS74: LAYER 9 | GU74: --- | GX74: --- | HA74: kg C2H4-eq
BC75: Carregal do Sal | BD75: 15 | BU75: OSB (15 mm) [Kronospan] | BY75: --- | CC75: --- | CG75: --- | CK75: Alcanena | CO75: =IF(Loc_DB!G21="",$BO$9,Loc_DB!G21) -> London_GB | DA75: Gorgolewski Method 1 | ED75: Path A | EF75: Path B | EL75: Path A | EN75: Path B | ET75: Path A | EV75: Path B | FB75: Path A | FD75: Path B | GS75: LAYER 10 | GU75: --- | GX75: --- | HA75: kg C2H4-eq
BC76: Cartaxo | BD76: 21 | BU76: OSB (18 mm) [Kronospan] | BY76: --- | CC76: --- | CG76: --- | CK76: Alcobaça | CO76: =IF(Loc_DB!G22="",$BO$9,Loc_DB!G22) -> Prague_CZ | DA76: Gorgolewski Method 2 | DM76: e | DN76: lambda 1 | DO76: lambda 1' | DP76: lambda 2 | DQ76: lambda 2' | DR76: r 1 | DS76: r 2 | DT76: R1 | DU76: R2 | DV76: Ref. 1 | DW76: Ref. 2 | DX76: W-Met-1 | DY76: W-Met-2 | DZ76: W-Met-1 | EA76: Sum | EB76: W-TB | EC76: Rsi | ED76: 0.13 | EF76: 0.13 | EI76: 0.13 | EL76: =ED76 -> 0.13 | EN76: =EF76 -> 0.13 | EQ76: =EI76 -> 0.13 | ET76: =ED76 -> 0.13 | EV76: =EF76 -> 0.13 | EY76: =EI76 -> 0.13 | FB76: =ED76 -> 0.13 | FD76: =EF76 -> 0.13 | FG76: =EI76 -> 0.13 | FK76: =ED76 -> 0.13 | FO76: =EI76 -> 0.13 | FS76: =$AH$13 -> --- | FW76: =$AH$13 -> --- | GU76: Material 2 | GX76: Unit Consumption
BC77: Cascais | BD77: 22 | BU77: OSB (22 mm) [Kronospan] | BY77: --- | CC77: --- | CG77: --- | CK77: Alcochete | CO77: =IF(Loc_DB!G23="",$BO$9,Loc_DB!G23) -> Athens_GR | DA77: Gorgolewski Method 3 | DK77: LAYER 1 | DM77: =(VLOOKUP(CO34,$C$9:$AV$61,4)) -> 12.5 | DN77: =VLOOKUP(CO34,$C$9:$AV$61,7) -> 0.175 | DO77: =DM77*0.001/DR77 -> 0.175 | DP77: =VLOOKUP(CX34,$C$9:$AV$61,7) -> --- | DQ77: =DM77*0.001/DS77 ->  | DR77: =DT77 -> 0.07142857143 | DS77: =IF(VLOOKUP(CX34,$C$9:$AV$61,35)=2,(DM77*0.001)/DP77,VLOOKUP(CX34,$C$9:$AV$61,8)) -> --- | DT77: =AX38 -> 0.07142857143 | DU77: =IF(VLOOKUP(CX34,$C$9:$AV$61,35)=0,DT77,DS77) -> 0.07142857143 | DV77: =VLOOKUP(CO34,$C$9:$AV$61,9) -> Gyptec | DW77: =VLOOKUP(CX34,$C$9:$AV$61,9) -> --- | DX77: =1/($DS$12/($DM$57/DQ77)+$DS$13/($DM$57/DO77)) ->  | DY77: =1/($DS$59/(($DM$57-2*$DM$58)/DQ77)+$DS$60/(($DM$57-2*$DM$58)/DO77)) ->  | DZ77: =1/($DS$12/($DM$57/DQ77)+$DS$13/($DM$57/DO77)) ->  | EA77: =DX77+DY77+DZ77 ->  | EB77: =1/($DS$63/DU77+$DS$64/DT77) -> 0.07142857143 | ED77: =DT77 -> 0.07142857143 | EF77: =DU77 -> 0.07142857143 | EI77: =IF(VLOOKUP(CX34,$C$9:$AV$61,36)=1,1/(($DS$66/ED77)+($DS$65/EF77)),IF(VLOOKUP(CX34,$C$9:$AV$61,36)=6,1/(($DS$68/ED77)+($DS$67/EF77)),ED77)) -> 0.07142857143 | EL77: 0.07142857143 | EN77: 0.07142857143 | EQ77: 0.07142857143 | ET77: 0.07142857143 | EV77: 0.07142857143 | EY77: 0.07142857143 | FB77: 0.07142857143 | FD77: 0.07142857143 | FG77: 0.07142857143 | FK77: =ED77 -> 0.07142857143 | FO77: =IF(VLOOKUP(CX34,$C$9:$AV$61,36)=1,EA77,IF(VLOOKUP(CX34,$C$9:$AV$61,36)=6,EB77,FK77)) -> 0.07142857143 | FS77: =EL77 -> 0.07142857143 | FW77: =IF(EB77=EC77,EB77,IF(VLOOKUP(#REF!,#REF!,11)=1,#REF!,IF(VLOOKUP(#REF!,#REF!,11)=2,#REF!,0))) ->  | GS77: LAYER 1 | GU77: =GU23 -> --- | GX77: =IF($HE$67=1,HD23,IF($HE$67=2,HJ23,IF($HE$67=3,HP23,IF($HE$67=4,HV23,IF($HE$67=5,IB23,IF($HE$67=6,IH23,IF($HE$67=7,IN23,0))))))) -> --- | HA77: =IF($HE$67=1,$SV$316,IF($HE$67=2,$SV$317,IF($HE$67=3,$SV$318,IF($HE$67=4,$SV$319,IF($HE$67=5,$SV$320,IF($HE$67=6,$SV$321,IF($HE$67=7,$SV$322,0))))))) -> kg C2H4-eq | HB77: =VLOOKUP(HB76,$ST$316:$SV$322,2) ->  | HC77: =VLOOKUP(HC76,$ST$316:$SV$322,2) -> 
BC78: Castanheira de Pera | BD78: 16 | BU78: OSB (25 mm) [Kronospan] | BY78: --- | CC78: =IF(VLOOKUP(C20,$C$9:$AV$61,36)=1,D20,$D$9) -> --- | CG78: --- | CK78: Alcoutim | CO78: =IF(Loc_DB!G24="",$BO$9,Loc_DB!G24) -> Coimbra_PT | DA78: ISO 6946 Combined Method | DK78: LAYER 2 | DM78: 12 | DN78: 0.13 | DO78: 0.13 | DP78: --- | DR78: 0.09230769231 | DS78: --- | DT78: 0.09230769231 | DU78: 0.09230769231 | DV78: Kronospan | DW78: --- | DX78: =1/($DS$12/($DM$57/DQ78)+$DS$13/($DM$57/DO78)) ->  | DZ78: =1/($DS$12/($DM$57/DQ78)+$DS$13/($DM$57/DO78)) ->  | EB78: 0.09230769231 | ED78: 0.09230769231 | EF78: 0.09230769231 | EI78: 0.09230769231 | EL78: 0.09230769231 | EN78: 0.09230769231 | EQ78: 0.09230769231 | ET78: 0.09230769231 | EV78: 0.09230769231 | EY78: 0.09230769231 | FB78: 0.09230769231 | FD78: 0.09230769231 | FG78: 0.09230769231 | FK78: 0.09230769231 | FO78: 0.09230769231 | FS78: 0.09230769231 | FW78: =IF(EB78=EC78,EB78,IF(VLOOKUP(#REF!,#REF!,11)=1,#REF!,IF(VLOOKUP(#REF!,#REF!,11)=2,#REF!,0))) ->  | GS78: LAYER 2 | GU78: --- | GX78: --- | HA78: kg C2H4-eq
BC79: Castelo Branco | BD79: 12 | BU79: Mineral wool (10 mm) [Volcalis] | BY79: --- | CC79: --- | CG79: --- | CK79: Alenquer | CO79: =IF(Loc_DB!G25="",$BO$9,Loc_DB!G25) -> Madrid_SP | DK79: LAYER 3 | DM79: 10 | DN79: --- | DO79: 0.06666666667 | DP79: 0.035 | DQ79: 0.035 | DR79: 0.15 | DS79: 0.2857142857 | DT79: 0.15 | DU79: 0.2857142857 | DV79: ISO 6946 | DW79: IFoam | DX79: =1/($DS$12/($DM$57/DQ79)+$DS$13/($DM$57/DO79)) -> 1.735242752 | DY79: 1.313355049 | DZ79: =1/($DS$12/($DM$57/DQ79)+$DS$13/($DM$57/DO79)) -> 1.735242752 | EA79: 4.783840554 | EB79: 0.190368272 | ED79: 0.15 | EF79: 0.2857142857 | EI79: =IF(VLOOKUP(CX36,$C$9:$AV$61,36)=1,1/(($DS$66/ED79)+($DS$65/EF79)),IF(VLOOKUP(CX36,$C$9:$AV$61,36)=6,1/(($DS$68/ED79)+($DS$67/EF79)),ED79)) -> 0.1594684385 | EL79: 0.15 | EN79: 0.2857142857 | EQ79: 0.1594684385 | ET79: 0.15 | EV79: 0.2857142857 | EY79: 0.1594684385 | FB79: 0.15 | FD79: 0.2857142857 | FG79: 0.1594684385 | FK79: 0.15 | FO79: 0.190368272 | FS79: 0.15 | FW79: =IF(EB79=EC79,EB79,IF(VLOOKUP(#REF!,#REF!,11)=1,#REF!,IF(VLOOKUP(#REF!,#REF!,11)=2,#REF!,0))) ->  | GS79: LAYER 3 | GU79: Steel C90/U93 (90 mm) [Pertecno] | GX79: 0.0004660346 | HA79: kg C2H4-eq
BC80: Castelo de Paiva | BD80: 6 | BU80: Mineral wool (50 mm) [Volcalis] | BY80: --- | CC80: --- | CG80: --- | CK80: Alfândega da Fé | CO80: =IF(Loc_DB!G26="",$BO$9,Loc_DB!G26) -> Marseille_FR | DK80: LAYER 4 | DM80: 90 | DN80: 0.035 | DO80: 0.035 | DP80: 50 | DQ80: 50 | DR80: 2.571428571 | DS80: 0.0018 | DT80: 2.571428571 | DU80: 0.0018 | DV80: Volcalis | DW80: Pertecno | DX80: 0.003848093265 | DY80: =1/($DS$59/(($DM$57-2*$DM$58)/DQ80)+$DS$60/(($DM$57-2*$DM$58)/DO80)) -> 0.1235489904 | DZ80: 0.003848093265 | EA80: 0.1312451769 | EB80: =1/($DS$63/DU80+$DS$64/DT80) -> 0.004028503259 | ED80: 2.571428571 | EF80: 0.0018 | EI80: =IF(VLOOKUP(CX37,$C$9:$AV$61,36)=1,1/(($DS$66/ED80)+($DS$65/EF80)),IF(VLOOKUP(CX37,$C$9:$AV$61,36)=6,1/(($DS$68/ED80)+($DS$67/EF80)),ED80)) -> 0.4047331291 | EL80: 2.571428571 | EN80: 0.0018 | EQ80: 0.4047331291 | ET80: 2.571428571 | EV80: 0.0018 | EY80: 0.4047331291 | FB80: 2.571428571 | FD80: 0.0018 | FG80: 0.4047331291 | FK80: 2.571428571 | FO80: =IF(VLOOKUP(CX37,$C$9:$AV$61,36)=1,EA80,IF(VLOOKUP(CX37,$C$9:$AV$61,36)=6,EB80,FK80)) -> 0.1312451769 | FS80: 2.571428571 | FW80: =IF(EB80=EC80,EB80,IF(VLOOKUP(#REF!,#REF!,11)=1,#REF!,IF(VLOOKUP(#REF!,#REF!,11)=2,#REF!,0))) ->  | GS80: LAYER 4 | GU80: --- | GX80: --- | HA80: kg C2H4-eq
BC81: Castelo de Vide | BD81: 24 | BU81: Mineral wool (90 mm) [Volcalis] | BY81: --- | CC81: --- | CG81: --- | CK81: Alijó | CO81: =IF(Loc_DB!G27="",$BO$9,Loc_DB!G27) -> Rome_IT | DK81: LAYER 5 | DM81: 10 | DN81: --- | DO81: 0.06666666667 | DP81: 0.035 | DQ81: 0.035 | DR81: 0.15 | DS81: 0.2857142857 | DT81: 0.15 | DU81: 0.2857142857 | DV81: ISO 6946 | DW81: IFoam | DX81: 1.735242752 | DY81: 1.313355049 | DZ81: 1.735242752 | EA81: 4.783840554 | EB81: =1/($DS$63/DU81+$DS$64/DT81) -> 0.190368272 | ED81: 0.15 | EF81: 0.2857142857 | EI81: 0.1594684385 | EL81: 0.15 | EN81: 0.2857142857 | EQ81: 0.1594684385 | ET81: 0.15 | EV81: 0.2857142857 | EY81: 0.1594684385 | FB81: 0.15 | FD81: 0.2857142857 | FG81: 0.1594684385 | FK81: 0.15 | FO81: =IF(VLOOKUP(CX38,$C$9:$AV$61,36)=1,EA81,IF(VLOOKUP(CX38,$C$9:$AV$61,36)=6,EB81,FK81)) -> 0.190368272 | FS81: 0.15 | FW81: =IF(EB81=EC81,EB81,IF(VLOOKUP(#REF!,#REF!,11)=1,#REF!,IF(VLOOKUP(#REF!,#REF!,11)=2,#REF!,0))) ->  | GS81: LAYER 5 | GU81: --- | GX81: --- | HA81: kg C2H4-eq
BC82: Castro Daire | BD82: 15 | BU82: Mineral wool (100 mm) [Volcalis] | BY82: --- | CC82: --- | CG82: --- | CK82: Aljezur | CO82: =IF(Loc_DB!#REF!="",$BO$9,Loc_DB!#REF!) ->  | DK82: LAYER 6 | DM82: 12 | DN82: 0.13 | DO82: 0.13 | DP82: --- | DR82: 0.09230769231 | DS82: --- | DT82: 0.09230769231 | DU82: 0.09230769231 | DV82: Kronospan | DW82: --- | EB82: 0.09230769231 | ED82: 0.09230769231 | EF82: 0.09230769231 | EI82: 0.09230769231 | EL82: 0.09230769231 | EN82: 0.09230769231 | EQ82: 0.09230769231 | ET82: 0.09230769231 | EV82: 0.09230769231 | EY82: 0.09230769231 | FB82: 0.09230769231 | FD82: 0.09230769231 | FG82: 0.09230769231 | FK82: 0.09230769231 | FO82: 0.09230769231 | FS82: 0.09230769231 | FW82: =IF(EB82=EC82,EB82,IF(VLOOKUP(#REF!,#REF!,11)=1,#REF!,IF(VLOOKUP(#REF!,#REF!,11)=2,#REF!,0))) ->  | GS82: LAYER 6 | GU82: --- | GX82: --- | HA82: kg C2H4-eq
BC83: Castro Marim | BD83: 28 | BU83: Mineral wool (120 mm) [Volcalis] | BY83: --- | CC83: --- | CG83: --- | CK83: Aljustrel | CO83: =IF(Loc_DB!G28="",$BO$9,Loc_DB!G28) -> --- | DK83: LAYER 7 | DM83: 10 | DN83: 1.8 | DO83: 1.8 | DP83: --- | DR83: 0.005555555556 | DS83: --- | DT83: 0.005555555556 | DU83: 0.005555555556 | DV83: ITE50 | DW83: --- | EB83: 0.005555555556 | ED83: 0.005555555556 | EF83: 0.005555555556 | EI83: 0.005555555556 | EL83: 0.005555555556 | EN83: 0.005555555556 | EQ83: 0.005555555556 | ET83: 0.005555555556 | EV83: 0.005555555556 | EY83: 0.005555555556 | FB83: 0.005555555556 | FD83: 0.005555555556 | FG83: 0.005555555556 | FK83: 0.005555555556 | FO83: 0.005555555556 | FS83: 0.005555555556 | FW83: =IF(EB83=EC83,EB83,IF(VLOOKUP(#REF!,#REF!,11)=1,#REF!,IF(VLOOKUP(#REF!,#REF!,11)=2,#REF!,0))) ->  | GS83: LAYER 7 | GU83: --- | GX83: --- | HA83: kg C2H4-eq
BC84: Castro Verde | BD84: 27 | BU84: Mineral wool (200 mm) [Volcalis] | BY84: --- | CC84: --- | CG84: --- | CK84: Almada | CO84: =IF(Loc_DB!G29="",$BO$9,Loc_DB!G29) -> --- | DK84: LAYER 8 | DM84: --- | DN84: --- | DP84: --- | DR84: --- | DS84: --- | DT84: --- | DU84: --- | DV84: --- | DW84: --- | ED84: --- | EF84: --- | EI84: --- | EL84: --- | EN84: --- | EQ84: --- | ET84: --- | EV84: --- | EY84: --- | FB84: --- | FD84: --- | FG84: --- | FK84: --- | FO84: --- | FS84: --- | FW84: =IF(EB84=EC84,EB84,IF(VLOOKUP(#REF!,#REF!,11)=1,#REF!,IF(VLOOKUP(#REF!,#REF!,11)=2,#REF!,0))) ->  | GS84: LAYER 8 | GU84: --- | GX84: --- | HA84: kg C2H4-eq
BC85: Celorico da Beira | BD85: 11 | BU85: ETICS EPS (40 mm) [Weber] | BY85: --- | CC85: --- | CG85: --- | CK85: Almeida | CO85: =IF(Loc_DB!G30="",$BO$9,Loc_DB!G30) -> --- | DK85: LAYER 9 | DM85: --- | DN85: --- | DP85: --- | DR85: --- | DS85: --- | DT85: --- | DU85: --- | DV85: --- | DW85: --- | ED85: --- | EF85: --- | EI85: --- | EL85: --- | EN85: --- | EQ85: --- | ET85: --- | EV85: --- | EY85: --- | FB85: --- | FD85: --- | FG85: --- | FK85: --- | FO85: --- | FS85: --- | FW85: =IF(EB85=EC85,EB85,IF(VLOOKUP(#REF!,#REF!,11)=1,#REF!,IF(VLOOKUP(#REF!,#REF!,11)=2,#REF!,0))) ->  | GS85: LAYER 9 | GU85: --- | GX85: --- | HA85: kg C2H4-eq
BC86: Celorico de Basto | BD86: 6 | BU86: ETICS EPS (50 mm) [Weber] | BY86: --- | CC86: =IF(VLOOKUP(C28,$C$9:$AV$61,36)=1,D28,$D$9) -> --- | CG86: --- | CK86: Almeirim | CO86: =IF(Loc_DB!G31="",$BO$9,Loc_DB!G31) -> --- | DK86: LAYER 10 | DM86: --- | DN86: --- | DP86: --- | DR86: --- | DS86: --- | DT86: --- | DU86: --- | DV86: --- | DW86: --- | ED86: --- | EF86: --- | EI86: --- | EL86: --- | EN86: --- | EQ86: --- | ET86: --- | EV86: --- | EY86: --- | FB86: --- | FD86: --- | FG86: --- | FK86: --- | FO86: --- | FS86: --- | FW86: =IF(EB86=EC86,EB86,IF(VLOOKUP(#REF!,#REF!,11)=1,#REF!,IF(VLOOKUP(#REF!,#REF!,11)=2,#REF!,0))) ->  | GS86: LAYER 10 | GU86: --- | GX86: --- | HA86: kg C2H4-eq
BC87: Chamusca | BD87: 21 | BU87: ETICS EPS (70 mm) [Weber] | BY87: --- | CC87: --- | CG87: --- | CK87: Almodôvar | CO87: =IF(Loc_DB!G32="",$BO$9,Loc_DB!G32) -> --- | EC87: Rse | ED87: 0.04 | EF87: 0.04 | EI87: 0.04 | EL87: 0.04 | EN87: 0.04 | EQ87: 0.04 | ET87: 0.04 | EV87: 0.04 | EY87: 0.04 | FB87: 0.04 | FD87: 0.04 | FG87: 0.04 | FK87: 0.04 | FO87: =EI87 -> 0.04 | FS87: 0.04 | FW87: =EL87 -> 0.04 | GU87: TOTAL | GX87: =SUM(GX66:GZ75)+SUM(GX77:GZ86) -> 0.0148252346
BC88: Chaves | BD88: 2 | BU88: ETICS EPS (100 mm) [Weber] | BY88: --- | CC88: --- | CG88: --- | CK88: Alpiarça | CO88: =IF(Loc_DB!G33="",$BO$9,Loc_DB!G33) -> --- | ED88: =SUM(ED76:ED87) -> 3.303028083 | EF88: =SUM(EF76:EF87) -> 1.004828083 | EI88: =SUM(EI76:EI87) -> 1.155269518 | EL88: =SUM(EL76:EL87) -> 3.303028083 | EN88: =SUM(EN76:EN87) -> 1.004828083 | EQ88: =SUM(EQ76:EQ87) -> 1.155269518 | ET88: =SUM(ET76:ET87) -> 3.303028083 | EV88: =SUM(EV76:EV87) -> 1.004828083 | EY88: =SUM(EY76:EY87) -> 1.155269518 | FB88: =SUM(FB76:FB87) -> 3.303028083 | FD88: =SUM(FD76:FD87) -> 1.004828083 | FG88: =SUM(FG76:FG87) -> 1.155269518 | FK88: =SUM(FK76:FK87) -> 3.303028083 | FO88: =SUM(FO76:FO87) -> 0.9435812324 | FS88: =SUM(FS76:FS87) -> 3.173028083 | FW88: =SUM(FW76:FW87) -> 
BC89: Cinfães | BD89: 6 | BU89: ETICS EPS (120 mm) [Weber] | BY89: --- | CC89: --- | CG89: --- | CK89: Alter do Chão | CO89: =IF(Loc_DB!G34="",$BO$9,Loc_DB!G34) -> ---
BC90: Coimbra | BD90: 10 | BU90: ETICS EPS (150 mm) [Weber] | BY90: --- | CC90: --- | CG90: --- | CK90: Alvaiázere | CO90: =IF(Loc_DB!G35="",$BO$9,Loc_DB!G35) -> --- | ED90: Rupper | EH90: Rlower | EL90: Rupper | EP90: Rlower | ET90: Rupper | EX90: Rlower | FB90: Rupper | FF90: Rlower | GS90: SOLUTION B
BC91: Condeixa-a-Nova | BD91: 10 | BU91: --- | BY91: Steel C90/U93 (90 mm) [Pertecno] | CC91: Steel C90/U93 (90 mm) [Pertecno] | CG91: Steel C90/U93 (90 mm) [Pertecno] | CK91: Alvito | CO91: =IF(Loc_DB!G36="",$BO$9,Loc_DB!G36) -> --- | ED91: =1/($DS$66/ED88+$DS$65/EF88) -> 3.27493945 | EE91: [(m2 .K)/W] | EH91: =EI88 -> 1.155269518 | EI91: [(m2 .K)/W] | EL91: =ED91 -> 3.27493945 | EM91: [(m2 .K)/W] | EP91: =EH91 -> 1.155269518 | EQ91: [(m2 .K)/W] | ET91: =ED91 -> 3.27493945 | EU91: [(m2 .K)/W] | EX91: =EH91 -> 1.155269518 | EY91: [(m2 .K)/W] | FB91: =ED91 -> 3.27493945 | FC91: [(m2 .K)/W] | FF91: =EH91 -> 1.155269518 | FG91: [(m2 .K)/W]
BC92: Constância | BD92: 20 | BU92: --- | BY92: Steel C150/U153 (150 mm) [Pertecno] | CC92: Steel C150/U153 (150 mm) [Pertecno] | CG92: Steel C150/U153 (150 mm) [Pertecno] | CK92: Amadora | CO92: =IF(Loc_DB!G37="",$BO$9,Loc_DB!G37) -> ---
BC93: Coruche | BD93: 21 | BU93: --- | BY93: Steel C200/U204 (200 mm) [Pertecno] | CC93: Steel C200/U204 (200 mm) [Pertecno] | CG93: Steel C200/U204 (200 mm) [Pertecno] | CK93: Amarante | CO93: =IF(Loc_DB!G38="",$BO$9,Loc_DB!G38) -> --- | EH93: Rtotal | EL93: p | EP93: Rtotal | ET93: p | EX93: Rtotal | FB93: p | FF93: Rtotal | FN93: Rtotal | FV93: Rtotal | GS93: Layers | GU93: Material 1 | GX93: Indicator | HE93: Chosen Indicator
BC94: Covilhã | BD94: 13 | BU94: --- | BY94: Steel C250/U255 (250 mm) [Pertecno] | CC94: Steel C250/U255 (250 mm) [Pertecno] | CG94: Steel C250/U255 (250 mm) [Pertecno] | CK94: Amares | CO94: =IF(Loc_DB!G39="",$BO$9,Loc_DB!G39) -> --- | EH94: =(ED91+EH91)/2 -> 2.215104484 | EI94: [(m2 .K)/W] | EL94: =0.8*(EP91/EL91)+0.1 -> 0.3822084586 | EP94: =EL91*EL94+EP91*(1-EL94) -> 1.965425295 | EQ94: [(m2 .K)/W] | ET94: =EV98 -> 0.25 | EX94: =ET91*ET94+EX91*(1-ET94) -> 1.685187001 | EY94: [(m2 .K)/W] | FB94: =0.8*(FF91/FB91)+0.44-0.1*(DM60/0.04)-0.2*(0.6/DM59)-0.04*(DM57/0.1) -> 0.2787084586 | FF94: =FB91*FB94+FF91*(1-FB94) -> 1.746039457 | FG94: [(m2 .K)/W] | FN94: =1/(DS61/FO88+DS62/FK88) -> 1.942790248 | FO94: [(m2 .K)/W] | FV94: =1/(#REF!/FS88+#REF!/FW88) ->  | FW94: [(m2 .K)/W] | GS94: LAYER 1 | GU94: =GU39 -> Gypsum Board (12,5 mm) [Gyptec] | GX94: =IF($HE$95=1,HD39,IF($HE$95=2,HJ39,IF($HE$95=3,HP39,IF($HE$95=4,HV39,IF($HE$95=5,IB39,IF($HE$95=6,IH39,IF($HE$95=7,IN39,0))))))) -> 2.5 | HA94: =IF($HE$95=1,$SV$316,IF($HE$95=2,$SV$317,IF($HE$95=3,$SV$318,IF($HE$95=4,$SV$319,IF($HE$95=5,$SV$320,IF($HE$95=6,$SV$321,IF($HE$95=7,$SV$322,0))))))) -> kg CO2-eq | HB94: =VLOOKUP(HB93,$ST$316:$SV$322,2) ->  | HC94: =VLOOKUP(HC93,$ST$316:$SV$322,2) ->  | HE94: =SB_LCA!H10 -> Global Warming Potential (GWP)
BC95: Crato | BD95: 24 | BU95: --- | BY95: TB Strip Aerogel (10 mm) [Spacetherm] | CC95: =IF(VLOOKUP(C37,$C$9:$AV$61,36)=1,D37,$D$9) -> --- | CG95: --- | CK95: Anadia | CO95: =IF(Loc_DB!G40="",$BO$9,Loc_DB!G40) -> --- | GS95: LAYER 2 | GU95: OSB (12 mm) [Kronospan] | GX95: -9.036 | HA95: kg CO2-eq | HE95: =VLOOKUP(HE94,$IM$166:$IN$172,2) -> 6
BC96: Cuba | BD96: 27 | BU96: --- | BY96: TB Strip Rubber (10 mm) [Acousticork] | CC96: --- | CG96: --- | CK96: Angra do Heroísmo | ET96: =VLOOKUP(CO34,$C$9:$AV$61,36) -> 5 | EU96: =IF(ET96=3,2,1) -> 1 | EV96: =IF($DM$14<0.5,1,2) -> 1 | GS96: LAYER 3 | GU96: Air Cavity (10 mm) [ISO 6946] | GX96: 0 | HA96: kg CO2-eq
BC97: Elvas | BD97: 24 | BU97: --- | BY97: TB Strip Aerogel/Rubber (10 mm) [T4BI] | CC97: --- | CG97: --- | CK97: Ansião | ET97: =VLOOKUP(CO35,$C$9:$AV$61,36) -> 5 | EU97: =IF(ET97=3,2,1) -> 1 | EV97: =EU106*EV96 -> 10 | GS97: LAYER 4 | GU97: Mineral wool (90 mm) [Volcalis] | GX97: 1.521 | HA97: kg CO2-eq
BC98: Entroncamento | BD98: 20 | BU98: --- | BY98: TB Strip Rubber and Cork (10 mm) [Acousticork] | CC98: --- | CG98: --- | CK98: Arcos de Valdevez | ET98: 7 | EU98: 1 | EV98: =IF(EV97=20,0.3,IF(EV97=22,0.5,IF(EV97=10,0.25,IF(EV97=11,0.4,0.4)))) -> 0.25 | GS98: LAYER 5 | GU98: Air Cavity (10 mm) [ISO 6946] | GX98: 0 | HA98: kg CO2-eq
BC99: Espinho | BD99: 5 | BU99: --- | BY99: TB Strip XPS (10 mm) [IFoam] | CC99: --- | CG99: --- | CK99: Arganil | ET99: 2 | EU99: 1 | GS99: LAYER 6 | GU99: OSB (12 mm) [Kronospan] | GX99: -9.036 | HA99: kg CO2-eq
BC100: Esposende | BD100: 3 | BU100: Air Cavity (10 mm) [ISO 6946] | BY100: --- | CC100: --- | CG100: --- | CK100: Armamar | ET100: 7 | EU100: 1 | GS100: LAYER 7 | GU100: Mortar (10 mm) | GX100: 1.42 | HA100: kg CO2-eq
BC101: Estarreja | BD101: 9 | BU101: Air Cavity (15 mm) [ISO 6946] | BY101: --- | CC101: --- | CG101: --- | CK101: Arouca | ET101: 5 | EU101: 1 | FX101: 1 | GS101: LAYER 8 | GU101: --- | GX101: --- | HA101: kg CO2-eq
BC102: Estremoz | BD102: 25 | BU102: Air Cavity (20 mm) [ISO 6946] | BY102: --- | CC102: --- | CG102: --- | CK102: Arraiolos | ET102: 4 | EU102: 1 | FX102: 2 | GS102: LAYER 9 | GU102: --- | GX102: --- | HA102: kg CO2-eq
BC103: Évora | BD103: 25 | BU103: Air Cavity (25 mm) [ISO 6946] | BY103: --- | CC103: --- | CG103: --- | CK103: Arronches | ET103: 0 | EU103: 1 | FX103: 3 | GS103: LAYER 10 | GU103: --- | GX103: --- | HA103: kg CO2-eq
BC104: Fafe | BD104: 4 | BU104: Air Cavity (90 mm) [ISO 6946] | BY104: --- | CC104: --- | CG104: --- | CK104: Arruda dos Vinhos | ET104: 0 | EU104: 1 | FX104: 4 | GU104: Material 2 | GX104: Indicator
BC105: Faro | BD105: 28 | BU105: Air Cavity (150 mm) [ISO 6946] | BY105: --- | CC105: --- | CG105: --- | CK105: Aveiro | ET105: 0 | EU105: 1 | FX105: 5 | GS105: LAYER 1 | GU105: =GU50 -> --- | GX105: =IF($HE$95=1,HD50,IF($HE$95=2,HJ50,IF($HE$95=3,HP50,IF($HE$95=4,HV50,IF($HE$95=5,IB50,IF($HE$95=6,IH50,IF($HE$95=7,IN50,0))))))) -> --- | HA105: =IF($HE$95=1,$SV$316,IF($HE$95=2,$SV$317,IF($HE$95=3,$SV$318,IF($HE$95=4,$SV$319,IF($HE$95=5,$SV$320,IF($HE$95=6,$SV$321,IF($HE$95=7,$SV$322,0))))))) -> kg CO2-eq | HB105: =VLOOKUP(HB104,$ST$316:$SV$322,2) ->  | HC105: =VLOOKUP(HC104,$ST$316:$SV$322,2) -> 
BC106: Felgueiras | BD106: 6 | BU106: Air Cavity (200 mm) [ISO 6946] | BY106: --- | CC106: =IF(VLOOKUP(C48,$C$9:$AV$61,36)=1,D48,$D$9) -> --- | CG106: --- | CK106: Avis | EU106: =SUM(EU96:EU105) -> 10 | GS106: LAYER 2 | GU106: --- | GX106: --- | HA106: kg CO2-eq
BC107: Ferreira do Alentejo | BD107: 27 | BU107: Mortar (10 mm) | BY107: --- | CC107: --- | CG107: --- | CK107: Azambuja | GS107: LAYER 3 | GU107: TB Strip XPS (10 mm) [IFoam] | GX107: 0.7558823529 | HA107: kg CO2-eq
BC108: Ferreira do Zêzere | BD108: 20 | BU108: --- | BY108: --- | CC108: --- | CG108: --- | CK108: Baião | GS108: LAYER 4 | GU108: Steel C90/U93 (90 mm) [Pertecno] | GX108: 0.00553128 | HA108: kg CO2-eq
BC109: Figueira da Foz | BD109: 10 | BU109: --- | BY109: --- | CC109: --- | CG109: --- | CK109: Barcelos | GS109: LAYER 5 | GU109: TB Strip XPS (10 mm) [IFoam] | GX109: 0.7558823529 | HA109: kg CO2-eq
BC110: Figueira de Castelo Rodrigo | BD110: 11 | BU110: --- | BY110: --- | CC110: --- | CG110: --- | CK110: Barrancos | GS110: LAYER 6 | GU110: --- | GX110: --- | HA110: kg CO2-eq
BC111: Figueiró dos Vinhos | BD111: 16 | BU111: --- | BY111: --- | CC111: --- | CG111: --- | CK111: Barreiro | GS111: LAYER 7 | GU111: --- | GX111: --- | HA111: kg CO2-eq
BC112: Fornos de Algodres | BD112: 14 | BU112: --- | BY112: --- | CC112: --- | CG112: --- | CK112: Batalha | GS112: LAYER 8 | GU112: --- | GX112: --- | HA112: kg CO2-eq
BC113: Freixo de Espada à Cinta | BD113: 7 | BU113: --- | BY113: --- | CC113: --- | CG113: --- | CK113: Beja | GS113: LAYER 9 | GU113: --- | GX113: --- | HA113: kg CO2-eq
BC114: Fronteira | BD114: 24 | BU114: --- | BY114: --- | CC114: =IF(VLOOKUP(C56,$C$9:$AV$61,36)=1,D56,$D$9) -> --- | CG114: --- | CK114: Belmonte | GS114: LAYER 10 | GU114: --- | GX114: --- | HA114: kg CO2-eq
BC115: Funchal | BD115: 30 | BU115: --- | BY115: --- | CC115: --- | CG115: --- | CK115: Benavente | GU115: TOTAL | GX115: =SUM(GX94:GZ103)+SUM(GX105:GZ114) -> -11.11370401
BC116: Fundão | BD116: 13 | BU116: --- | BY116: --- | CC116: --- | CG116: --- | CK116: Bombarral
BC117: Gavião | BD117: 24 | CK117: Borba
BC118: Góis | BD118: 16 | CK118: Boticas
BC119: Golegã | BD119: 21 | CK119: Braga | GS119: GLOBAL A
BC120: Gondomar | BD120: 5 | CK120: Bragança
BC121: Gouveia | BD121: 14 | CK121: Cabeceiras de Basto | HK121: SOLUTION A (COMPONENTS) | HR121: SOLUTION B (CHOSEN COMPONENT)
BC122: Grândola | BD122: 26 | CK122: Cadaval | GS122: Layers | GU122: Material 1 | GX122: Indicator | HE122: Chosen Indicator
BC123: Guarda | BD123: 11 | CK123: Caldas da Rainha | GS123: LAYER 1 | GU123: =GU66 -> Gypsum Board (12,5 mm) [Gyptec] | GX123: =IF($HE$124=1,HD12,IF($HE$124=2,HJ12,IF($HE$124=3,HP12,IF($HE$124=4,HV12,IF($HE$124=5,IB12,IF($HE$124=6,IH12,IF($HE$124=7,IN12,0))))))) -> 0.00094 | HA123: =IF($HE$124=1,$SV$316,IF($HE$124=2,$SV$317,IF($HE$124=3,$SV$318,IF($HE$124=4,$SV$319,IF($HE$124=5,$SV$320,IF($HE$124=6,$SV$321,IF($HE$124=7,$SV$322,0))))))) -> kg C2H4-eq | HB123: =VLOOKUP(HB122,$ST$316:$SV$322,2) ->  | HC123: =VLOOKUP(HC122,$ST$316:$SV$322,2) ->  | HE123: =Comp_LCA!H10 -> Photochemical Ozone Creation Potential (POCP) | HK123: =GU123 -> Gypsum Board (12,5 mm) [Gyptec] | HN123: =GX123 -> 0.00094 | HR123: =Comp_LCA!F18 -> OSB (12 mm) [Kronospan] | HU123: =IF($HR$123=HK123,HN123,IF($HR$123=HK124,HN124,IF($HR$123=HK125,HN125,IF($HR$123=HK126,HN126,IF($HR$123=HK127,HN127,IF($HR$123=HK128,HN128,IF($HR$123=HK129,HN129,IF($HR$123=HK130,HN130,IF($HR$123=HK131,HN131,IF($HR$123=HK132,HN132,IF($HR$123=HK133,HN133,IF($HR$123=HK134,HN134,IF($HR$123=HK135,HN135,IF($HR$123=HK136,HN136,IF($HR$123=HK137,HN137,IF($HR$123=HK138,HN138,IF($HR$123=HK139,HN139,IF($HR$123=HK140,HN140,IF($HR$123=HK141,HN141,IF($HR$123=HK142,HN142,0)))))))))))))))))))) -> 0.006264
BC124: Guimarães | BD124: 4 | CK124: Calheta | GS124: LAYER 2 | GU124: OSB (12 mm) [Kronospan] | GX124: 0.006264 | HA124: kg C2H4-eq | HE124: =VLOOKUP(HE123,$IM$166:$IN$172,2) -> 5 | HK124: OSB (12 mm) [Kronospan] | HN124: 0.006264
BC125: Horta | BD125: 29 | CK125: Calheta | GS125: LAYER 3 | GU125: Mineral wool (90 mm) [Volcalis] | GX125: 0.0006462 | HA125: kg C2H4-eq | HK125: Mineral wool (90 mm) [Volcalis] | HN125: 0.0006462
BC126: Idanha-a-Nova | BD126: 12 | CK126: Câmara de Lobos | GS126: LAYER 4 | GU126: OSB (12 mm) [Kronospan] | GX126: 0.006264 | HA126: kg C2H4-eq | HK126: OSB (12 mm) [Kronospan] | HN126: 0.006264
BC127: Ílhavo | BD127: 9 | CK127: Caminha | GS127: LAYER 5 | GU127: Mortar (10 mm) | GX127: 0.000245 | HA127: kg C2H4-eq | HK127: Mortar (10 mm) | HN127: 0.000245
BC128: Lagoa - Algarve | BD128: 28 | CK128: Campo Maior | GS128: LAYER 6 | GU128: --- | GX128: --- | HA128: kg C2H4-eq | HK128: --- | HN128: ---
BC129: Lagoa - Açores | BD129: 29 | CK129: Cantanhede | GS129: LAYER 7 | GU129: --- | GX129: --- | HA129: kg C2H4-eq | HK129: --- | HN129: ---
BC130: Lagos | BD130: 28 | CK130: Carrazeda de Ansiães | GS130: LAYER 8 | GU130: --- | GX130: --- | HA130: kg C2H4-eq | HK130: --- | HN130: ---
BC131: Lajes das Flores | BD131: 29 | CK131: Carregal do Sal | GS131: LAYER 9 | GU131: --- | GX131: --- | HA131: kg C2H4-eq | HK131: --- | HN131: ---
BC132: Lajes do Pico | BD132: 29 | CK132: Cartaxo | GS132: LAYER 10 | GU132: --- | GX132: --- | HA132: kg C2H4-eq | HK132: --- | HN132: ---
BC133: Lamego | BD133: 7 | CK133: Cascais | GU133: Material 2 | GX133: Indicator | HK133: =GU134 -> --- | HN133: =GX134 -> ---
BC134: Leiria | BD134: 18 | CK134: Castanheira de Pera | GS134: LAYER 1 | GU134: =GU77 -> --- | GX134: =IF($HE$124=1,HD23,IF($HE$124=2,HJ23,IF($HE$124=3,HP23,IF($HE$124=4,HV23,IF($HE$124=5,IB23,IF($HE$124=6,IH23,IF($HE$124=7,IN23,0))))))) -> --- | HA134: =IF($HE$124=1,$SV$316,IF($HE$124=2,$SV$317,IF($HE$124=3,$SV$318,IF($HE$124=4,$SV$319,IF($HE$124=5,$SV$320,IF($HE$124=6,$SV$321,IF($HE$124=7,$SV$322,0))))))) -> kg C2H4-eq | HB134: =VLOOKUP(HB133,$ST$316:$SV$322,2) ->  | HC134: =VLOOKUP(HC133,$ST$316:$SV$322,2) ->  | HK134: --- | HN134: ---
BC135: Lisboa | BD135: 22 | CK135: Castelo Branco | GS135: LAYER 2 | GU135: --- | GX135: --- | HA135: kg C2H4-eq | HK135: Steel C90/U93 (90 mm) [Pertecno] | HN135: 0.0004660346
BC136: Loulé | BD136: 28 | CK136: Castelo de Paiva | GS136: LAYER 3 | GU136: Steel C90/U93 (90 mm) [Pertecno] | GX136: 0.0004660346 | HA136: kg C2H4-eq | HK136: --- | HN136: ---
BC137: Loures | BD137: 22 | CK137: Castelo de Vide | GS137: LAYER 4 | GU137: --- | GX137: --- | HA137: kg C2H4-eq | HK137: --- | HN137: ---
BC138: Lourinhã | BD138: 19 | CK138: Castro Daire | GS138: LAYER 5 | GU138: --- | GX138: --- | HA138: kg C2H4-eq | HK138: --- | HN138: ---
BC139: Lousã | BD139: 16 | CK139: Castro Marim | GS139: LAYER 6 | GU139: --- | GX139: --- | HA139: kg C2H4-eq | HK139: --- | HN139: ---
BC140: Lousada | BD140: 6 | CK140: Castro Verde | GS140: LAYER 7 | GU140: --- | GX140: --- | HA140: kg C2H4-eq | HK140: --- | HN140: ---
BC141: Mação | BD141: 20 | CK141: Celorico da Beira | GS141: LAYER 8 | GU141: --- | GX141: --- | HA141: kg C2H4-eq | HK141: --- | HN141: ---
BC142: Macedo de Cavaleiros | BD142: 2 | CK142: Celorico de Basto | GS142: LAYER 9 | GU142: --- | GX142: --- | HA142: kg C2H4-eq | HK142: --- | HN142: ---
BC143: Machico | BD143: 30 | CK143: Chamusca | GS143: LAYER 10 | GU143: --- | GX143: --- | HA143: kg C2H4-eq
BC144: Madalena | BD144: 29 | CK144: Chaves | GU144: TOTAL | GX144: =SUM(GX123:GZ132)+SUM(GX134:GZ143) -> 0.0148252346
BC145: Mafra | BD145: 22 | CK145: Cinfães
BC146: Maia | BD146: 5 | CK146: Coimbra
BC147: Mangualde | BD147: 15 | CK147: Condeixa-a-Nova | GS147: GLOBAL B
BC148: Manteigas | BD148: 11 | CK148: Constância
BC149: Marco de Canaveses | BD149: 6 | CK149: Coruche | HK149: SOLUTION B (COMPONENTS) | HR149: SOLUTION B (CHOSEN COMPONENT)
BC150: Marinha Grande | BD150: 18 | CK150: Covilhã | GS150: Layers | GU150: Material 1 | GX150: Indicator | HE150: Chosen Indicator
BC151: Marvão | BD151: 24 | CK151: Crato | GS151: LAYER 1 | GU151: =GU94 -> Gypsum Board (12,5 mm) [Gyptec] | GX151: =IF($HE$152=1,HD39,IF($HE$152=2,HJ39,IF($HE$152=3,HP39,IF($HE$152=4,HV39,IF($HE$152=5,IB39,IF($HE$152=6,IH39,IF($HE$152=7,IN39,0))))))) -> 0.00094 | HA151: =IF($HE$152=1,$SV$316,IF($HE$152=2,$SV$317,IF($HE$152=3,$SV$318,IF($HE$152=4,$SV$319,IF($HE$152=5,$SV$320,IF($HE$152=6,$SV$321,IF($HE$152=7,$SV$322,0))))))) -> kg C2H4-eq | HB151: =VLOOKUP(HB150,$ST$316:$SV$322,2) ->  | HC151: =VLOOKUP(HC150,$ST$316:$SV$322,2) ->  | HE151: =HE123 -> Photochemical Ozone Creation Potential (POCP) | HK151: =GU151 -> Gypsum Board (12,5 mm) [Gyptec] | HN151: =GX151 -> 0.00094 | HR151: =Comp_LCA!F24 -> OSB (12 mm) [Kronospan] | HU151: =IF($HR$151=HK151,HN151,IF($HR$151=HK152,HN152,IF($HR$151=HK153,HN153,IF($HR$151=HK154,HN154,IF($HR$151=HK155,HN155,IF($HR$151=HK156,HN156,IF($HR$151=HK157,HN157,IF($HR$151=HK158,HN158,IF($HR$151=HK159,HN159,IF($HR$151=HK160,HN160,IF($HR$151=HK161,HN161,IF($HR$151=HK162,HN162,IF($HR$151=HK163,HN163,IF($HR$151=HK164,HN164,IF($HR$151=HK165,HN165,IF($HR$151=HK166,HN166,IF($HR$151=HK167,HN167,IF($HR$151=HK168,HN168,IF($HR$151=HK169,HN169,IF($HR$151=HK170,HN170,0)))))))))))))))))))) -> 0.006264
BC152: Matosinhos | BD152: 5 | CK152: Cuba | GS152: LAYER 2 | GU152: OSB (12 mm) [Kronospan] | GX152: 0.006264 | HA152: kg C2H4-eq | HE152: =HE124 -> 5 | HK152: OSB (12 mm) [Kronospan] | HN152: 0.006264
BC153: Mealhada | BD153: 10 | CK153: Elvas | GS153: LAYER 3 | GU153: Air Cavity (10 mm) [ISO 6946] | GX153: 0 | HA153: kg C2H4-eq | HK153: Air Cavity (10 mm) [ISO 6946] | HN153: 0
BC154: Mêda | BD154: 11 | CK154: Entroncamento | GS154: LAYER 4 | GU154: Mineral wool (90 mm) [Volcalis] | GX154: 0.0006462 | HA154: kg C2H4-eq | HK154: Mineral wool (90 mm) [Volcalis] | HN154: 0.0006462
BC155: Melgaço | BD155: 1 | CK155: Espinho | GS155: LAYER 5 | GU155: Air Cavity (10 mm) [ISO 6946] | GX155: 0 | HA155: kg C2H4-eq | HK155: Air Cavity (10 mm) [ISO 6946] | HN155: 0
BC156: Mértola | BD156: 27 | CK156: Esposende | GS156: LAYER 6 | GU156: OSB (12 mm) [Kronospan] | GX156: 0.006264 | HA156: kg C2H4-eq | HK156: OSB (12 mm) [Kronospan] | HN156: 0.006264
BC157: Mesão Frio | BD157: 7 | CK157: Estarreja | GS157: LAYER 7 | GU157: Mortar (10 mm) | GX157: 0.000245 | HA157: kg C2H4-eq | HK157: Mortar (10 mm) | HN157: 0.000245
BC158: Mira | BD158: 10 | CK158: Estremoz | GS158: LAYER 8 | GU158: --- | GX158: --- | HA158: kg C2H4-eq | HK158: --- | HN158: ---
BC159: Miranda do Corvo | BD159: 16 | CK159: Évora | GS159: LAYER 9 | GU159: --- | GX159: --- | HA159: kg C2H4-eq | HK159: --- | HN159: ---
BC160: Miranda do Douro | BD160: 2 | CK160: Fafe | GS160: LAYER 10 | GU160: --- | GX160: --- | HA160: kg C2H4-eq | HK160: --- | HN160: ---
BC161: Mirandela | BD161: 2 | CK161: Faro | GU161: Material 2 | GX161: Indicator | HK161: =GU162 -> --- | HN161: =GX162 -> ---
BC162: Mogadouro | BD162: 2 | CK162: Felgueiras | GS162: LAYER 1 | GU162: =GU105 -> --- | GX162: =IF($HE$152=1,HD50,IF($HE$152=2,HJ50,IF($HE$152=3,HP50,IF($HE$152=4,HV50,IF($HE$152=5,IB50,IF($HE$152=6,IH50,IF($HE$152=7,IN50,0))))))) -> --- | HA162: =IF($HE$152=1,$SV$316,IF($HE$152=2,$SV$317,IF($HE$152=3,$SV$318,IF($HE$152=4,$SV$319,IF($HE$152=5,$SV$320,IF($HE$152=6,$SV$321,IF($HE$152=7,$SV$322,0))))))) -> kg C2H4-eq | HB162: =VLOOKUP(HB161,$ST$316:$SV$322,2) ->  | HC162: =VLOOKUP(HC161,$ST$316:$SV$322,2) ->  | HK162: --- | HN162: ---
BC163: Moimenta da Beira | BD163: 7 | CK163: Ferreira do Alentejo | GS163: LAYER 2 | GU163: --- | GX163: --- | HA163: kg C2H4-eq | HK163: TB Strip XPS (10 mm) [IFoam] | HN163: 0.0001852941176
BC164: Moita | BD164: 23 | CK164: Ferreira do Zêzere | GS164: LAYER 3 | GU164: TB Strip XPS (10 mm) [IFoam] | GX164: 0.0001852941176 | HA164: kg C2H4-eq | HK164: Steel C90/U93 (90 mm) [Pertecno] | HN164: 0.0004660346 | IM164: INPUT LIST
BC165: Monção | BD165: 1 | CK165: Figueira da Foz | GS165: LAYER 4 | GU165: Steel C90/U93 (90 mm) [Pertecno] | GX165: 0.0004660346 | HA165: kg C2H4-eq | HK165: TB Strip XPS (10 mm) [IFoam] | HN165: 0.0001852941176
BC166: Monchique | BD166: 28 | CK166: Figueira de Castelo Rodrigo | GS166: LAYER 5 | GU166: TB Strip XPS (10 mm) [IFoam] | GX166: 0.0001852941176 | HA166: kg C2H4-eq | HK166: --- | HN166: --- | IM166: Abiotic Resources Depletion Potential - Elements (ADPE) | IN166: 1
BC167: Mondim de Basto | BD167: 4 | CK167: Figueiró dos Vinhos | GS167: LAYER 6 | GU167: --- | GX167: --- | HA167: kg C2H4-eq | HK167: --- | HN167: --- | IM167: Abiotic Resources Depletion Potential - Fossil Resources (ADPF) | IN167: 2
BC168: Monforte | BD168: 24 | CK168: Fornos de Algodres | GS168: LAYER 7 | GU168: --- | GX168: --- | HA168: kg C2H4-eq | HK168: --- | HN168: --- | IM168: Acidification Potential (AP) | IN168: 3
BC169: Montalegre | BD169: 2 | CK169: Freixo de Espada à Cinta | GS169: LAYER 8 | GU169: --- | GX169: --- | HA169: kg C2H4-eq | HK169: --- | HN169: --- | IM169: Eutrophication Potential (EP) | IN169: 4
BC170: Montemor-o-Novo | BD170: 25 | CK170: Fronteira | GS170: LAYER 9 | GU170: --- | GX170: --- | HA170: kg C2H4-eq | HK170: --- | HN170: --- | IM170: Global Warming Potential (GWP) | IN170: 6
BC171: Montemor-o-Velho | BD171: 10 | CK171: Funchal | GS171: LAYER 10 | GU171: --- | GX171: --- | HA171: kg C2H4-eq | IM171: Photochemical Ozone Creation Potential (POCP) | IN171: 5
BC172: Montijo | BD172: 23 | CK172: Fundão | GU172: TOTAL | GX172: =SUM(GX151:GZ160)+SUM(GX162:GZ171) -> 0.01519582284 | IM172: Stratospheric Ozone Layer Depletion Potential (ODP) | IN172: 7
BC173: Mora | BD173: 24 | CK173: Gavião
BC174: Mortágua | BD174: 10 | CK174: Góis
BC175: Moura | BD175: 27 | CK175: Golegã
BC176: Mourão | BD176: 25 | CK176: Gondomar | GS176: GRAPH
BC177: Murça | BD177: 7 | CK177: Gouveia
BC178: Murtosa | BD178: 9 | CK178: Grândola | GS178: A - TOTAL | GU178: =HU151 -> 0.006264
BC179: Nazaré | BD179: 19 | CK179: Guarda | GS179: A - COMPONENT | GU179: =GX172 -> 0.01519582284
BC180: Nelas | BD180: 15 | CK180: Guimarães | GS180: B - TOTAL | GU180: =HU123 -> 0.006264
BC181: Nisa | BD181: 24 | CK181: Horta | GS181: B - COMPONENT | GU181: =GX144 -> 0.0148252346
BC182: Nordeste | BD182: 29 | CK182: Idanha-a-Nova
BC183: Óbidos | BD183: 19 | CK183: Ílhavo
BC184: Odemira | BD184: 26 | CK184: Lagoa - Algarve
BC185: Odivelas | BD185: 22 | CK185: Lagoa - Açores
BC186: Oeiras | BD186: 22 | CK186: Lagos
BC187: Oleiros | BD187: 17 | CK187: Lajes das Flores
BC188: Olhão | BD188: 28 | CK188: Lajes do Pico
BC189: Oliveira de Azeméis | BD189: 8 | CK189: Lamego
BC190: Oliveira de Frades | BD190: 15 | CK190: Leiria
BC191: Oliveira do Bairro | BD191: 9 | CK191: Lisboa
BC192: Oliveira do Hospital | BD192: 16 | CK192: Loulé
BC193: Ourém | BD193: 20 | CK193: Loures
BC194: Ourique | BD194: 27 | CK194: Lourinhã
BC195: Ovar | BD195: 9 | CK195: Lousã
BC196: Paços de Ferreira | BD196: 6 | CK196: Lousada
BC197: Palmela | BD197: 23 | CK197: Mação
BC198: Pampilhosa da Serra | BD198: 16 | CK198: Macedo de Cavaleiros
BC199: Paredes | BD199: 6 | CK199: Machico
BC200: Paredes de Coura | BD200: 1 | CK200: Madalena
BC201: Pedrógão Grande | BD201: 16 | CK201: Mafra
BC202: Penacova | BD202: 10 | CK202: Maia
BC203: Penafiel | BD203: 6 | CK203: Mangualde
BC204: Penalva do Castelo | BD204: 15 | CK204: Manteigas
... 171 more rows
